Workbook

Sheet Main
B10: 2023-03-17
B12: Sheet No. | C12: Template Name | D12: Summary
B13: 1 | C13: Future Intra | D13: For Intraday trading in F&O segment
B14: 2 | C14: Cash Intra | D14: For Intraday trading in cash market segment
B15: 3 | C15: Mid-cap Intra | D15: For Intraday trading in Mid-cap stocks
B16: 4 | C16: Bulk Deals | D16: Reveals Bulk Deals carried on NSE & BSE
B17: 5 | C17: Call Tracker
K27: `

Sheet Future Intra
M5: Back to Main Page
A6: FOR INTRA DAY TRADING | L6: =Main!B10 -> 2023-03-17
A9: Sr.no | B9: Sector | C9: Scrip | D9: Expiry Date | E9: CLOSE RATE | F9: Pivot Point | G9: Supports | J9: Resistances
E10: Point | F10: Point | G10: S1 | H10: S2 | I10: S3 | J10: R1 | K10: R2 | L10: R3 | M10: HIGH | N10: LOW | O10: OI | P10: % Change in OI
A11: 1 | B11: Index | C11: NIFTY | D11: 2023-03-29 | E11: 17047.30 | F11: 17031.93 | G11: 16933.87 | H11: 16820.43 | I11: 16722.37 | J11: 17145.37 | K11: 17243.43 | L11: 17356.87 | M11: 17130 | N11: 16918.5 | O11: 15381850 | P11: 1.82%
A12: 2 | B12: Index | C12: BANKNIFTY | D12: 2023-03-29 | E12: 39396.20 | F12: 39275.50 | G12: 38952.20 | H12: 38508.20 | I12: 38184.90 | J12: 39719.50 | K12: 40042.80 | L12: 40486.80 | M12: 39598.8 | N12: 38831.5 | O12: 5628950 | P12: 0.60%
A13: 3 | B13: Index | C13: FINNIFTY | D13: 2023-03-28 | E13: 17544.85 | F13: 17498.10 | G13: 17366.75 | H13: 17188.65 | I13: 17057.30 | J13: 17676.20 | K13: 17807.55 | L13: 17985.65 | M13: 17629.45 | N13: 17320 | O13: 34640 | P13: 0.93%
A14: 4 | B14: Index | C14: MIDCPNIFTY | D14: 2023-03-28 | E14: 6992.10 | F14: 2330.70 | G14: 4661.40 | H14: 2330.70 | I14: 4661.40 | J14: 4661.40 | K14: 2330.70 | L14: 4661.40 | M14: 0 | N14: 0 | O14: 0
A15: 5 | B15: Chemical | C15: AARTIIND | D15: 2023-03-29 | E15: 523.05 | F15: 520.58 | G15: 512.42 | H15: 501.78 | I15: 493.62 | J15: 531.22 | K15: 539.38 | L15: 550.02 | M15: 528.75 | N15: 509.95 | O15: 4246600 | P15: -0.99%
A16: 6 | B16: Capital_Goods | C16: ABB | D16: 2023-03-29 | E16: 3332.45 | F16: 3311.50 | G16: 3275.00 | H16: 3217.55 | I16: 3181.05 | J16: 3368.95 | K16: 3405.45 | L16: 3462.90 | M16: 3348 | N16: 3254.05 | O16: 1577500 | P16: -1.10%
A17: 7 | B17: Pharma | C17: ABBOTINDIA | D17: 2023-03-29 | E17: 20820.80 | F17: 20701.85 | G17: 20503.75 | H17: 20186.70 | I17: 19988.60 | J17: 21018.90 | K17: 21217.00 | L17: 21534.05 | M17: 20899.95 | N17: 20384.8 | O17: 45560 | P17: 0.80%
A18: 8 | B18: Others | C18: ABCAPITAL | D18: 2023-03-29 | E18: 149.25 | F18: 147.92 | G18: 145.63 | H18: 142.02 | I18: 139.73 | J18: 151.53 | K18: 153.82 | L18: 157.43 | M18: 150.2 | N18: 144.3 | O18: 33625800 | P18: 1.93%
A19: 9 | B19: Textile | C19: ABFRL | D19: 2023-03-29 | E19: 215.85 | F19: 214.87 | G19: 211.28 | H19: 206.72 | I19: 203.13 | J19: 219.43 | K19: 223.02 | L19: 227.58 | M19: 218.45 | N19: 210.3 | O19: 24479000 | P19: 1.64%
A20: 10 | B20: Cement | C20: ACC | D20: 2023-03-29 | E20: 1762.75 | F20: 1755.12 | G20: 1735.23 | H20: 1707.72 | I20: 1687.83 | J20: 1782.63 | K20: 1802.52 | L20: 1830.03 | M20: 1775 | N20: 1727.6 | O20: 4968750 | P20: 0.27%
A21: 11 | B21: Others | C21: ADANIENT | D21: 2023-03-29 | E21: 1853.35 | F21: 1845.08 | G21: 1808.37 | H21: 1763.38 | I21: 1726.67 | J21: 1890.07 | K21: 1926.78 | L21: 1971.77 | M21: 1881.8 | N21: 1800.1 | O21: 16138750 | P21: 2.53%
A22: 12 | B22: Others | C22: ADANIPORTS | D22: 2023-03-29 | E22: 681.55 | F22: 683.93 | G22: 674.27 | H22: 666.98 | I22: 657.32 | J22: 691.22 | K22: 700.88 | L22: 708.17 | M22: 693.6 | N22: 676.65 | O22: 38803125 | P22: -4.21%
A23: 13 | B23: Pharma | C23: ALKEM | D23: 2023-03-29 | E23: 3162.10 | F23: 3136.17 | G23: 3096.33 | H23: 3030.57 | I23: 2990.73 | J23: 3201.93 | K23: 3241.77 | L23: 3307.53 | M23: 3176 | N23: 3070.4 | O23: 462400 | P23: -1.95%
A24: 14 | B24: Cement | C24: AMBUJACEM | D24: 2023-03-29 | E24: 381.90 | F24: 376.55 | G24: 366.55 | H24: 351.20 | I24: 341.20 | J24: 391.90 | K24: 401.90 | L24: 417.25 | M24: 386.55 | N24: 361.2 | O24: 63752400 | P24: -0.87%
A25: 15 | B25: Others | C25: APOLLOHOSP | D25: 2023-03-29 | E25: 4331.75 | F25: 4333.42 | G25: 4285.73 | H25: 4239.72 | I25: 4192.03 | J25: 4379.43 | K25: 4427.12 | L25: 4473.13 | M25: 4381.1 | N25: 4287.4 | O25: 1407750 | P25: -0.53%
A26: 16 | B26: Automobile | C26: APOLLOTYRE | D26: 2023-03-29 | E26: 310.20 | F26: 309.68 | G26: 306.97 | H26: 303.73 | I26: 301.02 | J26: 312.92 | K26: 315.63 | L26: 318.87 | M26: 312.4 | N26: 306.45 | O26: 14350000 | P26: 3.20%
A27: 17 | B27: Automobile | C27: ASHOKLEY | D27: 2023-03-29 | E27: 140.10 | F27: 139.23 | G27: 138.02 | H27: 135.93 | I27: 134.72 | J27: 141.32 | K27: 142.53 | L27: 144.62 | M27: 140.45 | N27: 137.15 | O27: 68120000 | P27: 0.60%
A28: 18 | B28: FMCG | C28: ASIANPAINT | D28: 2023-03-29 | E28: 2900.80 | F28: 2882.47 | G28: 2858.38 | H28: 2815.97 | I28: 2791.88 | J28: 2924.88 | K28: 2948.97 | L28: 2991.38 | M28: 2906.55 | N28: 2840.05 | O28: 6605800 | P28: -1.81%
A29: 19 | B29: Others | C29: ASTRAL | D29: 2023-03-29 | E29: 1340.65 | F29: 1343.80 | G29: 1328.65 | H29: 1316.65 | I29: 1301.50 | J29: 1355.80 | K29: 1370.95 | L29: 1382.95 | M29: 1358.95 | N29: 1331.8 | O29: 2200899 | P29: -2.42%
A30: 20 | B30: Others | C30: ATUL | D30: 2023-03-29 | E30: 6958.65 | F30: 6909.22 | G30: 6819.43 | H30: 6680.22 | I30: 6590.43 | J30: 7048.43 | K30: 7138.22 | L30: 7277.43 | M30: 6999 | N30: 6770 | O30: 162450 | P30: -4.62%
A31: 21 | B31: Banking | C31: AUBANK | D31: 2023-03-29 | E31: 584.80 | F31: 582.18 | G31: 575.92 | H31: 567.03 | I31: 560.77 | J31: 591.07 | K31: 597.33 | L31: 606.22 | M31: 588.45 | N31: 573.3 | O31: 15778000 | P31: -1.02%
A32: 22 | B32: Pharma | C32: AUROPHARMA | D32: 2023-03-29 | E32: 476.90 | F32: 472.75 | G32: 465.65 | H32: 454.40 | I32: 447.30 | J32: 484.00 | K32: 491.10 | L32: 502.35 | M32: 479.85 | N32: 461.5 | O32: 14325000 | P32: 2.42%
A33: 23 | B33: Banking | C33: AXISBANK | D33: 2023-03-29 | E33: 835.15 | F33: 831.07 | G33: 821.33 | H33: 807.52 | I33: 797.78 | J33: 844.88 | K33: 854.62 | L33: 868.43 | M33: 840.8 | N33: 817.25 | O33: 52845600 | P33: 4.02%
A34: 24 | B34: Automobile | C34: BAJAJ-AUTO | D34: 2023-03-29 | E34: 3800.50 | F34: 3786.73 | G34: 3761.77 | H34: 3723.03 | I34: 3698.07 | J34: 3825.47 | K34: 3850.43 | L34: 3889.17 | M34: 3811.7 | N34: 3748 | O34: 1148750 | P34: 11.15%
A35: 25 | B35: Finance | C35: BAJAJFINSV | D35: 2023-03-29 | E35: 1299.85 | F35: 1295.10 | G35: 1279.95 | H35: 1260.05 | I35: 1244.90 | J35: 1315.00 | K35: 1330.15 | L35: 1350.05 | M35: 1310.25 | N35: 1275.2 | O35: 10156000 | P35: -0.97%
A36: 26 | B36: Finance | C36: BAJFINANCE | D36: 2023-03-29 | E36: 5746.45 | F36: 5740.47 | G36: 5696.23 | H36: 5646.02 | I36: 5601.78 | J36: 5790.68 | K36: 5834.92 | L36: 5885.13 | M36: 5784.7 | N36: 5690.25 | O36: 5574375 | P36: 2.11%
A37: 27 | B37: Automobile | C37: BALKRISIND | D37: 2023-03-29 | E37: 1986.00 | F37: 1978.15 | G37: 1959.30 | H37: 1932.60 | I37: 1913.75 | J37: 2004.85 | K37: 2023.70 | L37: 2050.40 | M37: 1997 | N37: 1951.45 | O37: 1707000 | P37: -1.35%
A38: 28 | B38: Others | C38: BALRAMCHIN | D38: 2023-03-29 | E38: 390.15 | F38: 389.53 | G38: 384.62 | H38: 379.08 | I38: 374.17 | J38: 395.07 | K38: 399.98 | L38: 405.52 | M38: 394.45 | N38: 384 | O38: 7140800 | P38: 1.57%
A39: 29 | B39: Banking | C39: BANDHANBNK | D39: 2023-03-29 | E39: 205.30 | F39: 203.35 | G39: 200.15 | H39: 195.00 | I39: 191.80 | J39: 208.50 | K39: 211.70 | L39: 216.85 | M39: 206.55 | N39: 198.2 | O39: 44803800 | P39: -0.42%
A40: 30 | B40: Banking | C40: BANKBARODA | D40: 2023-03-29 | E40: 160.70 | F40: 159.78 | G40: 157.37 | H40: 154.03 | I40: 151.62 | J40: 163.12 | K40: 165.53 | L40: 168.87 | M40: 162.2 | N40: 156.45 | O40: 103188150 | P40: 2.96%
A41: 31 | B41: FMCG | C41: BATAINDIA | D41: 2023-03-29 | E41: 1416.30 | F41: 1411.42 | G41: 1400.48 | H41: 1384.67 | I41: 1373.73 | J41: 1427.23 | K41: 1438.17 | L41: 1453.98 | M41: 1422.35 | N41: 1395.6 | O41: 3057450 | P41: 0.10%
A42: 32 | B42: Capital_Goods | C42: BEL | D42: 2023-03-29 | E42: 92.00 | F42: 91.33 | G42: 90.22 | H42: 88.43 | I42: 87.32 | J42: 93.12 | K42: 94.23 | L42: 96.02 | M42: 92.45 | N42: 89.55 | O42: 112985400 | P42: 0.93%
A43: 33 | B43: FMCG | C43: BERGEPAINT | D43: 2023-03-29 | E43: 605.05 | F43: 599.58 | G43: 592.77 | H43: 580.48 | I43: 573.67 | J43: 611.87 | K43: 618.68 | L43: 630.97 | M43: 606.4 | N43: 587.3 | O43: 8275300 | P43: -6.19%
A44: 34 | B44: Automobile | C44: BHARATFORG | D44: 2023-03-29 | E44: 789.60 | F44: 787.33 | G44: 779.52 | H44: 769.43 | I44: 761.62 | J44: 797.42 | K44: 805.23 | L44: 815.32 | M44: 795.15 | N44: 777.25 | O44: 7482000 | P44: 2.17%
A45: 35 | B45: Telecom | C45: BHARTIARTL | D45: 2023-03-29 | E45: 750.20 | F45: 753.47 | G45: 744.28 | H45: 738.37 | I45: 729.18 | J45: 759.38 | K45: 768.57 | L45: 774.48 | M45: 762.65 | N45: 747.55 | O45: 40363600 | P45: 1.29%
A46: 36 | B46: Capital_Goods | C46: BHEL | D46: 2023-03-29 | E46: 75.85 | F46: 75.25 | G46: 74.10 | H46: 72.35 | I46: 71.20 | J46: 77.00 | K46: 78.15 | L46: 79.90 | M46: 76.4 | N46: 73.5 | O46: 71767500 | P46: -0.04%
A47: 37 | B47: Pharma | C47: BIOCON | D47: 2023-03-29 | E47: 223.15 | F47: 223.75 | G47: 221.20 | H47: 219.25 | I47: 216.70 | J47: 225.70 | K47: 228.25 | L47: 230.20 | M47: 226.3 | N47: 221.8 | O47: 37858000 | P47: -0.27%
A48: 38 | B48: Automobile | C48: BOSCHLTD | D48: 2023-03-29 | E48: 18204.45 | F48: 18165.42 | G48: 18021.93 | H48: 17839.42 | I48: 17695.93 | J48: 18347.93 | K48: 18491.42 | L48: 18673.93 | M48: 18308.9 | N48: 17982.9 | O48: 161650 | P48: -0.34%
A49: 39 | B49: Oil_Gas | C49: BPCL | D49: 2023-03-29 | E49: 351.40 | F49: 346.27 | G49: 339.83 | H49: 328.27 | I49: 321.83 | J49: 357.83 | K49: 364.27 | L49: 375.83 | M49: 352.7 | N49: 334.7 | O49: 15364800 | P49: 8.11%
A50: 40 | B50: FMCG | C50: BRITANNIA | D50: 2023-03-29 | E50: 4332.30 | F50: 4316.10 | G50: 4291.20 | H50: 4250.10 | I50: 4225.20 | J50: 4357.20 | K50: 4382.10 | L50: 4423.20 | M50: 4341 | N50: 4275 | O50: 1267000 | P50: -1.32%
A51: 41 | B51: Technology | C51: BSOFT | D51: 2023-03-29 | E51: 272.55 | F51: 271.50 | G51: 265.30 | H51: 258.05 | I51: 251.85 | J51: 278.75 | K51: 284.95 | L51: 292.20 | M51: 277.7 | N51: 264.25 | O51: 7400000 | P51: -3.24%
A52: 42 | B52: Banking | C52: CANBK | D52: 2023-03-29 | E52: 283.15 | F52: 282.53 | G52: 277.82 | H52: 272.48 | I52: 267.77 | J52: 287.87 | K52: 292.58 | L52: 297.92 | M52: 287.25 | N52: 277.2 | O52: 42822000 | P52: 2.73%
A53: 43 | B53: Finance | C53: CANFINHOME | D53: 2023-03-29 | E53: 524.15 | F53: 521.42 | G53: 513.83 | H53: 503.52 | I53: 495.93 | J53: 531.73 | K53: 539.32 | L53: 549.63 | M53: 529 | N53: 511.1 | O53: 3249675 | P53: 2.59%
A54: 44 | B54: Others | C54: CHAMBLFERT | D54: 2023-03-29 | E54: 277.15 | F54: 276.38 | G54: 272.77 | H54: 268.38 | I54: 264.77 | J54: 280.77 | K54: 284.38 | L54: 288.77 | M54: 280 | N54: 272 | O54: 4842000 | P54: 1.83%
A55: 45 | B55: Finance | C55: CHOLAFIN | D55: 2023-03-29 | E55: 750.35 | F55: 749.45 | G55: 742.70 | H55: 735.05 | I55: 728.30 | J55: 757.10 | K55: 763.85 | L55: 771.50 | M55: 756.2 | N55: 741.8 | O55: 10211250 | P55: -0.84%
A56: 46 | B56: Pharma | C56: CIPLA | D56: 2023-03-29 | E56: 886.00 | F56: 886.28 | G56: 879.57 | H56: 873.13 | I56: 866.42 | J56: 892.72 | K56: 899.43 | L56: 905.87 | M56: 893 | N56: 879.85 | O56: 15592200 | P56: -1.63%
A57: 47 | B57: Others | C57: COALINDIA | D57: 2023-03-29 | E57: 221.75 | F57: 220.80 | G57: 218.25 | H57: 214.75 | I57: 212.20 | J57: 224.30 | K57: 226.85 | L57: 230.35 | M57: 223.35 | N57: 217.3 | O57: 38245200 | P57: 0.52%
A58: 48 | B58: Technology | C58: COFORGE | D58: 2023-03-29 | E58: 3864.25 | F58: 3888.92 | G58: 3823.93 | H58: 3783.62 | I58: 3718.63 | J58: 3929.23 | K58: 3994.22 | L58: 4034.53 | M58: 3953.9 | N58: 3848.6 | O58: 819750 | P58: 0.15%
A59: 49 | B59: FMCG | C59: COLPAL | D59: 2023-03-29 | E59: 1506.85 | F59: 1503.08 | G59: 1492.77 | H59: 1478.68 | I59: 1468.37 | J59: 1517.17 | K59: 1527.48 | L59: 1541.57 | M59: 1513.4 | N59: 1489 | O59: 1795500 | P59: -0.47%
A60: 50 | B60: Others | C60: CONCOR | D60: 2023-03-29 | E60: 593.85 | F60: 591.18 | G60: 586.57 | H60: 579.28 | I60: 574.67 | J60: 598.47 | K60: 603.08 | L60: 610.37 | M60: 595.8 | N60: 583.9 | O60: 9294000 | P60: -1.86%
A61: 51 | B61: Others | C61: COROMANDEL | D61: 2023-03-29 | E61: 865.55 | F61: 869.00 | G61: 858.15 | H61: 850.75 | I61: 839.90 | J61: 876.40 | K61: 887.25 | L61: 894.65 | M61: 879.85 | N61: 861.6 | O61: 1760500 | P61: 3.71%
A62: 52 | B62: Capital_Goods | C62: CROMPTON | D62: 2023-03-29 | E62: 288.15 | F62: 290.02 | G62: 285.53 | H62: 282.92 | I62: 278.43 | J62: 292.63 | K62: 297.12 | L62: 299.73 | M62: 294.5 | N62: 287.4 | O62: 6547500 | P62: 6.78%
A63: 53 | B63: Banking | C63: CUB | D63: 2023-03-29 | E63: 130.95 | F63: 130.93 | G63: 128.42 | H63: 125.88 | I63: 123.37 | J63: 133.47 | K63: 135.98 | L63: 138.52 | M63: 133.45 | N63: 128.4 | O63: 14835000 | P63: 9.69%
A64: 54 | B64: Capital_Goods | C64: CUMMINSIND | D64: 2023-03-29 | E64: 1649.70 | F64: 1655.70 | G64: 1622.05 | H64: 1594.40 | I64: 1560.75 | J64: 1683.35 | K64: 1717.00 | L64: 1744.65 | M64: 1689.35 | N64: 1628.05 | O64: 3735600 | P64: -1.49%
A65: 55 | B65: FMCG | C65: DABUR | D65: 2023-03-29 | E65: 535.80 | F65: 532.62 | G65: 526.08 | H65: 516.37 | I65: 509.83 | J65: 542.33 | K65: 548.87 | L65: 558.58 | M65: 539.15 | N65: 522.9 | O65: 10951250 | P65: -4.38%
A66: 56 | B66: Cement | C66: DALBHARAT | D66: 2023-03-29 | E66: 1792.20 | F66: 1791.28 | G66: 1778.57 | H66: 1764.93 | I66: 1752.22 | J66: 1804.92 | K66: 1817.63 | L66: 1831.27 | M66: 1804 | N66: 1777.65 | O66: 1980500 | P66: -0.33%
A67: 57 | B67: Chemical | C67: DEEPAKNTR | D67: 2023-03-29 | E67: 1817.05 | F67: 1805.62 | G67: 1777.98 | H67: 1738.92 | I67: 1711.28 | J67: 1844.68 | K67: 1872.32 | L67: 1911.38 | M67: 1833.25 | N67: 1766.55 | O67: 1814500 | P67: 1.07%
A68: 58 | B68: Others | C68: DELTACORP | D68: 2023-03-29 | E68: 193.60 | F68: 191.32 | G68: 187.28 | H68: 180.97 | I68: 176.93 | J68: 197.63 | K68: 201.67 | L68: 207.98 | M68: 195.35 | N68: 185 | O68: 16046800 | P68: 4.71%
A69: 59 | B69: Pharma | C69: DIVISLAB | D69: 2023-03-29 | E69: 2817.35 | F69: 2819.40 | G69: 2776.80 | H69: 2736.25 | I69: 2693.65 | J69: 2859.95 | K69: 2902.55 | L69: 2943.10 | M69: 2862 | N69: 2778.85 | O69: 3072150 | P69: -2.41%
A70: 60 | B70: Others | C70: DIXON | D70: 2023-03-29 | E70: 2877.05 | F70: 2874.18 | G70: 2833.42 | H70: 2789.78 | I70: 2749.02 | J70: 2917.82 | K70: 2958.58 | L70: 3002.22 | M70: 2914.95 | N70: 2830.55 | O70: 717625 | P70: -0.52%
A71: 61 | B71: Realty | C71: DLF | D71: 2023-03-29 | E71: 362.00 | F71: 357.30 | G71: 351.10 | H71: 340.20 | I71: 334.00 | J71: 368.20 | K71: 374.40 | L71: 385.30 | M71: 363.5 | N71: 346.4 | O71: 45173700 | P71: -1.91%
A72: 62 | B72: Pharma | C72: DRREDDY | D72: 2023-03-29 | E72: 4398.30 | F72: 4407.25 | G72: 4376.25 | H72: 4354.20 | I72: 4323.20 | J72: 4429.30 | K72: 4460.30 | L72: 4482.35 | M72: 4438.25 | N72: 4385.2 | O72: 2079000 | P72: 0.07%
A73: 63 | B73: Automobile | C73: EICHERMOT | D73: 2023-03-29 | E73: 3043.35 | F73: 3048.72 | G73: 3000.48 | H73: 2957.62 | I73: 2909.38 | J73: 3091.58 | K73: 3139.82 | L73: 3182.68 | M73: 3096.95 | N73: 3005.85 | O73: 3022950 | P73: -2.50%
A74: 64 | B74: Automobile | C74: ESCORTS | D74: 2023-03-29 | E74: 1898.40 | F74: 1894.63 | G74: 1860.92 | H74: 1823.43 | I74: 1789.72 | J74: 1932.12 | K74: 1965.83 | L74: 2003.32 | M74: 1928.35 | N74: 1857.15 | O74: 1630750 | P74: -3.53%
A75: 65 | B75: Automobile | C75: EXIDEIND | D75: 2023-03-29 | E75: 177.55 | F75: 177.15 | G75: 175.50 | H75: 173.45 | I75: 171.80 | J75: 179.20 | K75: 180.85 | L75: 182.90 | M75: 178.8 | N75: 175.1 | O75: 18784800 | P75: 2.64%
A76: 66 | B76: Banking | C76: FEDERALBNK | D76: 2023-03-29 | E76: 127.55 | F76: 126.90 | G76: 125.50 | H76: 123.45 | I76: 122.05 | J76: 128.95 | K76: 130.35 | L76: 132.40 | M76: 128.3 | N76: 124.85 | O76: 63395000 | P76: 1.58%
A77: 67 | B77: Technology | C77: FSL | D77: 2023-03-29 | E77: 112.55 | F77: 111.55 | G77: 109.85 | H77: 107.15 | I77: 105.45 | J77: 114.25 | K77: 115.95 | L77: 118.65 | M77: 113.25 | N77: 108.85 | O77: 14196000 | P77: 1.30%
A78: 68 | B78: Oil_Gas | C78: GAIL | D78: 2023-03-29 | E78: 110.10 | F78: 110.27 | G78: 108.08 | H78: 106.07 | I78: 103.88 | J78: 112.28 | K78: 114.47 | L78: 116.48 | M78: 112.45 | N78: 108.25 | O78: 65761050 | P78: 4.14%
A79: 69 | B79: Pharma | C79: GLENMARK | D79: 2023-03-29 | E79: 434.75 | F79: 432.38 | G79: 427.47 | H79: 420.18 | I79: 415.27 | J79: 439.67 | K79: 444.58 | L79: 451.87 | M79: 437.3 | N79: 425.1 | O79: 4896650 | P79: 1.56%
A80: 70 | B80: Infrastructure | C80: GMRINFRA | D80: 2023-03-29 | E80: 41.80 | F80: 41.58 | G80: 40.77 | H80: 39.73 | I80: 38.92 | J80: 42.62 | K80: 43.43 | L80: 44.47 | M80: 42.4 | N80: 40.55 | O80: 135517500 | P80: 2.33%
A81: 71 | B81: Others | C81: GNFC | D81: 2023-03-29 | E81: 524.75 | F81: 523.83 | G81: 514.67 | H81: 504.58 | I81: 495.42 | J81: 533.92 | K81: 543.08 | L81: 553.17 | M81: 533 | N81: 513.75 | O81: 8343400 | P81: -2.16%
A82: 72 | B82: FMCG | C82: GODREJCP | D82: 2023-03-29 | E82: 934.20 | F82: 927.48 | G82: 916.07 | H82: 897.93 | I82: 886.52 | J82: 945.62 | K82: 957.03 | L82: 975.17 | M82: 938.9 | N82: 909.35 | O82: 5364000 | P82: 2.80%
A83: 73 | B83: Realty | C83: GODREJPROP | D83: 2023-03-29 | E83: 1107.60 | F83: 1101.02 | G83: 1083.48 | H83: 1059.37 | I83: 1041.83 | J83: 1125.13 | K83: 1142.67 | L83: 1166.78 | M83: 1118.55 | N83: 1076.9 | O83: 4330750 | P83: 0.73%
A84: 74 | B84: Pharma | C84: GRANULES | D84: 2023-03-29 | E84: 284.65 | F84: 284.65 | G84: 281.90 | H84: 279.15 | I84: 276.40 | J84: 287.40 | K84: 290.15 | L84: 292.90 | M84: 287.4 | N84: 281.9 | O84: 6294000 | P84: 0.29%
A85: 75 | B85: Cement | C85: GRASIM | D85: 2023-03-29 | E85: 1566.20 | F85: 1558.08 | G85: 1544.12 | H85: 1522.03 | I85: 1508.07 | J85: 1580.17 | K85: 1594.13 | L85: 1616.22 | M85: 1572.05 | N85: 1536 | O85: 11086025 | P85: 1.28%
A86: 76 | B86: Oil_Gas | C86: GUJGASLTD | D86: 2023-03-29 | E86: 498.25 | F86: 494.85 | G86: 488.90 | H86: 479.55 | I86: 473.60 | J86: 504.20 | K86: 510.15 | L86: 519.50 | M86: 500.8 | N86: 485.5 | O86: 4543750 | P86: -2.18%
A87: 77 | B87: Others | C87: HAL | D87: 2023-03-29 | E87: 2714.70 | F87: 2717.62 | G87: 2655.23 | H87: 2595.77 | I87: 2533.38 | J87: 2777.08 | K87: 2839.47 | L87: 2898.93 | M87: 2780 | N87: 2658.15 | O87: 3208500 | P87: -0.29%
A88: 78 | B88: Capital_Goods | C88: HAVELLS | D88: 2023-03-29 | E88: 1188.75 | F88: 1185.02 | G88: 1177.18 | H88: 1165.62 | I88: 1157.78 | J88: 1196.58 | K88: 1204.42 | L88: 1215.98 | M88: 1192.85 | N88: 1173.45 | O88: 4984000 | P88: 1.60%
A89: 79 | B89: Technology | C89: HCLTECH | D89: 2023-03-29 | E89: 1075.15 | F89: 1079.47 | G89: 1069.08 | H89: 1063.02 | I89: 1052.63 | J89: 1085.53 | K89: 1095.92 | L89: 1101.98 | M89: 1089.85 | N89: 1073.4 | O89: 12164600 | P89: 0.50%
A90: 80 | B90: Finance | C90: HDFC | D90: 2023-03-29 | E90: 2545.10 | F90: 2540.75 | G90: 2519.15 | H90: 2493.20 | I90: 2471.60 | J90: 2566.70 | K90: 2588.30 | L90: 2614.25 | M90: 2562.35 | N90: 2514.8 | O90: 23183100 | P90: 4.63%
A91: 81 | B91: Finance | C91: HDFCAMC | D91: 2023-03-29 | E91: 1692.15 | F91: 1683.98 | G91: 1661.02 | H91: 1629.88 | I91: 1606.92 | J91: 1715.12 | K91: 1738.08 | L91: 1769.22 | M91: 1706.95 | N91: 1652.85 | O91: 3243600 | P91: 0.52%
A92: 82 | B92: Banking | C92: HDFCBANK | D92: 2023-03-29 | E92: 1560.55 | F92: 1555.72 | G92: 1543.63 | H92: 1526.72 | I92: 1514.63 | J92: 1572.63 | K92: 1584.72 | L92: 1601.63 | M92: 1567.8 | N92: 1538.8 | O92: 73294650 | P92: 2.79%
A93: 83 | B93: Finance | C93: HDFCLIFE | D93: 2023-03-29 | E93: 463.80 | F93: 464.98 | G93: 458.97 | H93: 454.13 | I93: 448.12 | J93: 469.82 | K93: 475.83 | L93: 480.67 | M93: 471 | N93: 460.15 | O93: 24721400 | P93: 5.81%
A94: 84 | B94: Automobile | C94: HEROMOTOCO | D94: 2023-03-29 | E94: 2383.80 | F94: 2388.67 | G94: 2371.28 | H94: 2358.77 | I94: 2341.38 | J94: 2401.18 | K94: 2418.57 | L94: 2431.08 | M94: 2406.05 | N94: 2376.15 | O94: 2926800 | P94: -7.74%
A95: 85 | B95: Metals | C95: HINDALCO | D95: 2023-03-29 | E95: 386.95 | F95: 390.27 | G95: 381.03 | H95: 375.12 | I95: 365.88 | J95: 396.18 | K95: 405.42 | L95: 411.33 | M95: 399.5 | N95: 384.35 | O95: 29017800 | P95: 8.83%
A96: 86 | B96: Metals | C96: HINDCOPPER | D96: 2023-03-29 | E96: 98.05 | F96: 96.93 | G96: 95.17 | H96: 92.28 | I96: 90.52 | J96: 99.82 | K96: 101.58 | L96: 104.47 | M96: 98.7 | N96: 94.05 | O96: 20035200 | P96: 0.10%
A97: 87 | B97: Oil_Gas | C97: HINDPETRO | D97: 2023-03-29 | E97: 245.45 | F97: 242.63 | G97: 236.82 | H97: 228.18 | I97: 222.37 | J97: 251.27 | K97: 257.08 | L97: 265.72 | M97: 248.45 | N97: 234 | O97: 22086000 | P97: -2.86%
A98: 88 | B98: FMCG | C98: HINDUNILVR | D98: 2023-03-29 | E98: 2466.00 | F98: 2453.87 | G98: 2429.18 | H98: 2392.37 | I98: 2367.68 | J98: 2490.68 | K98: 2515.37 | L98: 2552.18 | M98: 2478.55 | N98: 2417.05 | O98: 9818700 | P98: -2.62%
A99: 89 | B99: Others | C99: HONAUT | D99: 2023-03-29 | E99: 35032.05 | F99: 34996.73 | G99: 34647.82 | H99: 34263.58 | I99: 33914.67 | J99: 35380.97 | K99: 35729.88 | L99: 36114.12 | M99: 35345.65 | N99: 34612.5 | O99: 22290 | P99: 1.43%
A100: 90 | B100: Finance | C100: IBULHSGFIN | D100: 2023-03-29 | E100: 100.75 | F100: 99.80 | G100: 98.10 | H100: 95.45 | I100: 93.75 | J100: 102.45 | K100: 104.15 | L100: 106.80 | M100: 101.5 | N100: 97.15 | O100: 52796000 | P100: -2.45%
A101: 91 | B101: Banking | C101: ICICIBANK | D101: 2023-03-29 | E101: 827.95 | F101: 825.13 | G101: 816.72 | H101: 805.48 | I101: 797.07 | J101: 836.37 | K101: 844.78 | L101: 856.02 | M101: 833.55 | N101: 813.9 | O101: 73775800 | P101: 5.37%
A102: 92 | B102: Finance | C102: ICICIGI | D102: 2023-03-29 | E102: 1065.75 | F102: 1064.65 | G102: 1055.40 | H102: 1045.05 | I102: 1035.80 | J102: 1075.00 | K102: 1084.25 | L102: 1094.60 | M102: 1073.9 | N102: 1054.3 | O102: 3957175 | P102: -0.60%
A103: 93 | B103: Finance | C103: ICICIPRULI | D103: 2023-03-29 | E103: 411.60 | F103: 405.15 | G103: 389.30 | H103: 367.00 | I103: 351.15 | J103: 427.45 | K103: 443.30 | L103: 465.60 | M103: 421 | N103: 382.85 | O103: 16054500 | P103: 7.76%
A104: 94 | B104: Telecom | C104: IDEA | D104: 2023-03-29 | E104: 6.45 | F104: 6.42 | G104: 6.28 | H104: 6.12 | I104: 5.98 | J104: 6.58 | K104: 6.72 | L104: 6.88 | M104: 6.55 | N104: 6.25 | O104: 517860000 | P104: 2.30%
A105: 95 | B105: Finance | C105: IDFC | D105: 2023-03-29 | E105: 78.10 | F105: 77.45 | G105: 76.45 | H105: 74.80 | I105: 73.80 | J105: 79.10 | K105: 80.10 | L105: 81.75 | M105: 78.45 | N105: 75.8 | O105: 166160000 | P105: -2.60%
A106: 96 | B106: Banking | C106: IDFCFIRSTB | D106: 2023-03-29 | E106: 55.60 | F106: 55.20 | G106: 54.45 | H106: 53.30 | I106: 52.55 | J106: 56.35 | K106: 57.10 | L106: 58.25 | M106: 55.95 | N106: 54.05 | O106: 195615000 | P106: -1.20%
A107: 97 | B107: Others | C107: IEX | D107: 2023-03-29 | E107: 152.85 | F107: 151.78 | G107: 150.12 | H107: 147.38 | I107: 145.72 | J107: 154.52 | K107: 156.18 | L107: 158.92 | M107: 153.45 | N107: 149.05 | O107: 40830000 | P107: -1.11%
A108: 98 | B108: Oil_Gas | C108: IGL | D108: 2023-03-29 | E108: 430.00 | F108: 427.97 | G108: 421.43 | H108: 412.87 | I108: 406.33 | J108: 436.53 | K108: 443.07 | L108: 451.63 | M108: 434.5 | N108: 419.4 | O108: 11768625 | P108: 0.90%
A109: 99 | B109: Infrastructure | C109: INDHOTEL | D109: 2023-03-29 | E109: 321.80 | F109: 319.13 | G109: 315.47 | H109: 309.13 | I109: 305.47 | J109: 325.47 | K109: 329.13 | L109: 335.47 | M109: 322.8 | N109: 312.8 | O109: 23418000 | P109: -2.38%
A110: 100 | B110: Cement | C110: INDIACEM | D110: 2023-03-29 | E110: 193.65 | F110: 192.35 | G110: 189.85 | H110: 186.05 | I110: 183.55 | J110: 196.15 | K110: 198.65 | L110: 202.45 | M110: 194.85 | N110: 188.55 | O110: 14845100 | P110: -1.04%
A111: 101 | B111: Others | C111: INDIAMART | D111: 2023-03-29 | E111: 4809.55 | F111: 4786.53 | G111: 4713.62 | H111: 4617.68 | I111: 4544.77 | J111: 4882.47 | K111: 4955.38 | L111: 5051.32 | M111: 4859.45 | N111: 4690.6 | O111: 347400 | P111: 0.78%
A112: 102 | B112: Others | C112: INDIGO | D112: 2023-03-29 | E112: 1870.05 | F112: 1868.80 | G112: 1849.90 | H112: 1829.75 | I112: 1810.85 | J112: 1888.95 | K112: 1907.85 | L112: 1928.00 | M112: 1887.7 | N112: 1848.65 | O112: 3521400 | P112: -0.42%
A113: 103 | B113: Banking | C113: INDUSINDBK | D113: 2023-03-29 | E113: 1023.85 | F113: 1024.12 | G113: 1006.23 | H113: 988.62 | I113: 970.73 | J113: 1041.73 | K113: 1059.62 | L113: 1077.23 | M113: 1042 | N113: 1006.5 | O113: 30142800 | P113: 3.21%
A114: 104 | B114: Telecom | C114: INDUSTOWER | D114: 2023-03-29 | E114: 153.65 | F114: 152.12 | G114: 149.08 | H114: 144.52 | I114: 141.48 | J114: 156.68 | K114: 159.72 | L114: 164.28 | M114: 155.15 | N114: 147.55 | O114: 31474800 | P114: -5.24%
A115: 105 | B115: Technology | C115: INFY | D115: 2023-03-29 | E115: 1408.10 | F115: 1411.55 | G115: 1401.10 | H115: 1394.10 | I115: 1383.65 | J115: 1418.55 | K115: 1429.00 | L115: 1436.00 | M115: 1422 | N115: 1404.55 | O115: 38768400 | P115: 4.41%
A116: 106 | B116: Technology | C116: INTELLECT | D116: 2023-03-29 | E116: 403.40 | F116: 399.30 | G116: 393.40 | H116: 383.40 | I116: 377.50 | J116: 409.30 | K116: 415.20 | L116: 425.20 | M116: 405.2 | N116: 389.3 | O116: 4641000 | P116: -1.53%
A117: 107 | B117: Oil_Gas | C117: IOC | D117: 2023-03-29 | E117: 80.40 | F117: 80.18 | G117: 79.47 | H117: 78.53 | I117: 77.82 | J117: 81.12 | K117: 81.83 | L117: 82.77 | M117: 80.9 | N117: 79.25 | O117: 78585000 | P117: 4.99%
A118: 108 | B118: Pharma | C118: IPCALAB | D118: 2023-03-29 | E118: 785.80 | F118: 786.68 | G118: 770.57 | H118: 755.33 | I118: 739.22 | J118: 801.92 | K118: 818.03 | L118: 833.27 | M118: 802.8 | N118: 771.45 | O118: 2388100 | P118: -0.19%
A119: 109 | B119: Others | C119: IRCTC | D119: 2023-03-29 | E119: 606.70 | F119: 604.43 | G119: 598.97 | H119: 591.23 | I119: 585.77 | J119: 612.17 | K119: 617.63 | L119: 625.37 | M119: 609.9 | N119: 596.7 | O119: 13395375 | P119: -1.29%
A120: 110 | B120: FMCG | C120: ITC | D120: 2023-03-29 | E120: 380.65 | F120: 379.65 | G120: 377.30 | H120: 373.95 | I120: 371.60 | J120: 383.00 | K120: 385.35 | L120: 388.70 | M120: 382 | N120: 376.3 | O120: 60476800 | P120: 0.40%
A121: 111 | B121: Metals | C121: JINDALSTEL | D121: 2023-03-29 | E121: 556.20 | F121: 561.10 | G121: 546.20 | H121: 536.20 | I121: 521.30 | J121: 571.10 | K121: 586.00 | L121: 596.00 | M121: 576 | N121: 551.1 | O121: 22385000 | P121: 0.50%
A122: 112 | B122: Cement | C122: JKCEMENT | D122: 2023-03-29 | E122: 2799.40 | F122: 2806.57 | G122: 2779.88 | H122: 2760.37 | I122: 2733.68 | J122: 2826.08 | K122: 2852.77 | L122: 2872.28 | M122: 2833.25 | N122: 2787.05 | O122: 440750 | P122: -2.76%
A123: 113 | B123: Metals | C123: JSWSTEEL | D123: 2023-03-29 | E123: 665.35 | F123: 664.67 | G123: 651.38 | H123: 637.42 | I123: 624.13 | J123: 678.63 | K123: 691.92 | L123: 705.88 | M123: 677.95 | N123: 650.7 | O123: 24552450 | P123: -2.04%
A124: 114 | B124: Others | C124: JUBLFOOD | D124: 2023-03-29 | E124: 427.75 | F124: 429.72 | G124: 421.63 | H124: 415.52 | I124: 407.43 | J124: 435.83 | K124: 443.92 | L124: 450.03 | M124: 437.8 | N124: 423.6 | O124: 15553750 | P124: -0.96%
A125: 115 | B125: Banking | C125: KOTAKBANK | D125: 2023-03-29 | E125: 1673.35 | F125: 1672.33 | G125: 1656.57 | H125: 1639.78 | I125: 1624.02 | J125: 1689.12 | K125: 1704.88 | L125: 1721.67 | M125: 1688.1 | N125: 1655.55 | O125: 45274800 | P125: 2.43%
A126: 116 | B126: Finance | C126: L&TFH | D126: 2023-03-29 | E126: 86.15 | F126: 85.80 | G126: 84.50 | H126: 82.85 | I126: 81.55 | J126: 87.45 | K126: 88.75 | L126: 90.40 | M126: 87.1 | N126: 84.15 | O126: 73382052 | P126: -1.06%
A127: 117 | B127: Others | C127: LALPATHLAB | D127: 2023-03-29 | E127: 1877.40 | F127: 1867.07 | G127: 1853.48 | H127: 1829.57 | I127: 1815.98 | J127: 1890.98 | K127: 1904.57 | L127: 1928.48 | M127: 1880.65 | N127: 1843.15 | O127: 872000 | P127: 0.00%
A128: 118 | B128: Pharma | C128: LAURUSLABS | D128: 2023-03-29 | E128: 307.60 | F128: 308.47 | G128: 304.23 | H128: 300.87 | I128: 296.63 | J128: 311.83 | K128: 316.07 | L128: 319.43 | M128: 312.7 | N128: 305.1 | O128: 10058400 | P128: -0.58%
A129: 119 | B129: Finance | C129: LICHSGFIN | D129: 2023-03-29 | E129: 348.30 | F129: 346.58 | G129: 342.22 | H129: 336.13 | I129: 331.77 | J129: 352.67 | K129: 357.03 | L129: 363.12 | M129: 350.95 | N129: 340.5 | O129: 12712000 | P129: -2.60%
A130: 120 | B130: Capital_Goods | C130: LT | D130: 2023-03-29 | E130: 2173.05 | F130: 2167.03 | G130: 2138.52 | H130: 2103.98 | I130: 2075.47 | J130: 2201.57 | K130: 2230.08 | L130: 2264.62 | M130: 2195.55 | N130: 2132.5 | O130: 7545300 | P130: 1.86%
A131: 121 | B131: Technology | C131: LTIM | D131: 2023-03-29 | E131: 4577.20 | F131: 4564.68 | G131: 4503.52 | H131: 4429.83 | I131: 4368.67 | J131: 4638.37 | K131: 4699.53 | L131: 4773.22 | M131: 4625.85 | N131: 4491 | O131: 1259850 | P131: -1.75%
A132: 122 | B132: Technology | C132: LTTS | D132: 2023-03-29 | E132: 3482.55 | F132: 3484.30 | G132: 3443.60 | H132: 3404.65 | I132: 3363.95 | J132: 3523.25 | K132: 3563.95 | L132: 3602.90 | M132: 3525 | N132: 3445.35 | O132: 1422000 | P132: 0.03%
A133: 123 | B133: Pharma | C133: LUPIN | D133: 2023-03-29 | E133: 668.90 | F133: 665.93 | G133: 659.97 | H133: 651.03 | I133: 645.07 | J133: 674.87 | K133: 680.83 | L133: 689.77 | M133: 671.9 | N133: 657 | O133: 7376300 | P133: -0.85%
A134: 124 | B134: Automobile | C134: M&M | D134: 2023-03-29 | E134: 1171.75 | F134: 1166.22 | G134: 1151.68 | H134: 1131.62 | I134: 1117.08 | J134: 1186.28 | K134: 1200.82 | L134: 1220.88 | M134: 1180.75 | N134: 1146.15 | O134: 15640100 | P134: -0.80%
A135: 125 | B135: Finance | C135: M&MFIN | D135: 2023-03-29 | E135: 243.25 | F135: 242.57 | G135: 239.93 | H135: 236.62 | I135: 233.98 | J135: 245.88 | K135: 248.52 | L135: 251.83 | M135: 245.2 | N135: 239.25 | O135: 24056000 | P135: -3.22%
A136: 126 | B136: Finance | C136: MANAPPURAM | D136: 2023-03-29 | E136: 113.15 | F136: 112.27 | G136: 109.88 | H136: 106.62 | I136: 104.23 | J136: 115.53 | K136: 117.92 | L136: 121.18 | M136: 114.65 | N136: 109 | O136: 38124000 | P136: 1.86%
A137: 127 | B137: FMCG | C137: MARICO | D137: 2023-03-29 | E137: 491.55 | F137: 489.55 | G137: 485.25 | H137: 478.95 | I137: 474.65 | J137: 495.85 | K137: 500.15 | L137: 506.45 | M137: 493.85 | N137: 483.25 | O137: 8200800 | P137: -0.09%
A138: 128 | B138: Automobile | C138: MARUTI | D138: 2023-03-29 | E138: 8473.80 | F138: 8494.93 | G138: 8424.42 | H138: 8375.03 | I138: 8304.52 | J138: 8544.32 | K138: 8614.83 | L138: 8664.22 | M138: 8565.45 | N138: 8445.55 | O138: 2173000 | P138: -1.98%
A139: 129 | B139: FMCG | C139: MCDOWELL-N | D139: 2023-03-29 | E139: 778.55 | F139: 772.80 | G139: 762.75 | H139: 746.95 | I139: 736.90 | J139: 788.60 | K139: 798.65 | L139: 814.45 | M139: 782.85 | N139: 757 | O139: 12648750 | P139: -1.39%
A140: 130 | B140: Others | C140: MCX | D140: 2023-03-29 | E140: 1493.40 | F140: 1497.25 | G140: 1484.95 | H140: 1476.50 | I140: 1464.20 | J140: 1505.70 | K140: 1518.00 | L140: 1526.45 | M140: 1509.55 | N140: 1488.8 | O140: 908800 | P140: -2.91%
A141: 131 | B141: Pharma | C141: METROPOLIS | D141: 2023-03-29 | E141: 1263.35 | F141: 1273.58 | G141: 1247.12 | H141: 1230.88 | I141: 1204.42 | J141: 1289.82 | K141: 1316.28 | L141: 1332.52 | M141: 1300.05 | N141: 1257.35 | O141: 855200 | P141: -4.68%
A142: 132 | B142: Finance | C142: MFSL | D142: 2023-03-29 | E142: 650.35 | F142: 648.15 | G142: 639.20 | H142: 628.05 | I142: 619.10 | J142: 659.30 | K142: 668.25 | L142: 679.40 | M142: 657.1 | N142: 637 | O142: 4343300 | P142: -0.42%
A143: 133 | B143: Oil_Gas | C143: MGL | D143: 2023-03-29 | E143: 992.40 | F143: 987.15 | G143: 977.35 | H143: 962.30 | I143: 952.50 | J143: 1002.20 | K143: 1012.00 | L143: 1027.05 | M143: 996.95 | N143: 972.1 | O143: 2560000 | P143: 3.03%
A144: 134 | B144: Automobile | C144: MOTHERSON | D144: 2023-03-29 | E144: 68.60 | F144: 69.23 | G144: 65.52 | H144: 62.43 | I144: 58.72 | J144: 72.32 | K144: 76.03 | L144: 79.12 | M144: 72.95 | N144: 66.15 | O144: 67189500 | P144: 7.95%
A145: 135 | B145: Technology | C145: MPHASIS | D145: 2023-03-29 | E145: 1913.70 | F145: 1902.10 | G145: 1881.30 | H145: 1848.90 | I145: 1828.10 | J145: 1934.50 | K145: 1955.30 | L145: 1987.70 | M145: 1922.9 | N145: 1869.7 | O145: 2868250 | P145: 0.46%
A146: 136 | B146: Automobile | C146: MRF | D146: 2023-03-29 | E146: 83598.75 | F146: 83114.70 | G146: 82199.25 | H146: 80799.75 | I146: 79884.30 | J146: 84514.20 | K146: 85429.65 | L146: 86829.15 | M146: 84030.15 | N146: 81715.2 | O146: 57820 | P146: -1.31%
A147: 137 | B147: Finance | C147: MUTHOOTFIN | D147: 2023-03-29 | E147: 932.25 | F147: 927.17 | G147: 914.88 | H147: 897.52 | I147: 885.23 | J147: 944.53 | K147: 956.82 | L147: 974.18 | M147: 939.45 | N147: 909.8 | O147: 8895700 | P147: -0.82%
A148: 138 | B148: Metals | C148: NATIONALUM | D148: 2023-03-29 | E148: 81.95 | F148: 81.52 | G148: 80.63 | H148: 79.32 | I148: 78.43 | J148: 82.83 | K148: 83.72 | L148: 85.03 | M148: 82.4 | N148: 80.2 | O148: 47820000 | P148: -5.13%
A149: 139 | B149: Others | C149: NAUKRI | D149: 2023-03-29 | E149: 3439.95 | F149: 3417.15 | G149: 3375.80 | H149: 3311.65 | I149: 3270.30 | J149: 3481.30 | K149: 3522.65 | L149: 3586.80 | M149: 3458.5 | N149: 3353 | O149: 1670500 | P149: -1.36%
A150: 140 | B150: Chemical | C150: NAVINFLUOR | D150: 2023-03-29 | E150: 4125.90 | F150: 4125.82 | G150: 4081.08 | H150: 4036.27 | I150: 3991.53 | J150: 4170.63 | K150: 4215.37 | L150: 4260.18 | M150: 4170.55 | N150: 4081 | O150: 550650 | P150: 1.30%
A151: 141 | B151: FMCG | C151: NESTLEIND | D151: 2023-03-29 | E151: 18494.30 | F151: 18346.92 | G151: 18133.83 | H151: 17773.37 | I151: 17560.28 | J151: 18707.38 | K151: 18920.47 | L151: 19280.93 | M151: 18560 | N151: 17986.45 | O151: 268800 | P151: -4.57%
A152: 142 | B152: Metals | C152: NMDC | D152: 2023-03-29 | E152: 113.70 | F152: 114.30 | G152: 112.15 | H152: 110.60 | I152: 108.45 | J152: 115.85 | K152: 118.00 | L152: 119.55 | M152: 116.45 | N152: 112.75 | O152: 51313500 | P152: -1.32%
A153: 143 | B153: Power | C153: NTPC | D153: 2023-03-29 | E153: 179.90 | F153: 179.20 | G153: 178.10 | H153: 176.30 | I153: 175.20 | J153: 181.00 | K153: 182.10 | L153: 183.90 | M153: 180.3 | N153: 177.4 | O153: 86719800 | P153: -0.98%
A154: 144 | B154: Realty | C154: OBEROIRLTY | D154: 2023-03-29 | E154: 859.40 | F154: 856.23 | G154: 845.62 | H154: 831.83 | I154: 821.22 | J154: 870.02 | K154: 880.63 | L154: 894.42 | M154: 866.85 | N154: 842.45 | O154: 5910100 | P154: -0.26%
A155: 145 | B155: Technology | C155: OFSS | D155: 2023-03-29 | E155: 3216.20 | F155: 3220.00 | G155: 3197.95 | H155: 3179.70 | I155: 3157.65 | J155: 3238.25 | K155: 3260.30 | L155: 3278.55 | M155: 3242.05 | N155: 3201.75 | O155: 278800 | P155: 1.75%
A156: 146 | B156: Oil_Gas | C156: ONGC | D156: 2023-03-29 | E156: 152.45 | F156: 151.45 | G156: 149.20 | H156: 145.95 | I156: 143.70 | J156: 154.70 | K156: 156.95 | L156: 160.20 | M156: 153.7 | N156: 148.2 | O156: 33880000 | P156: -13.61%
A157: 147 | B157: Textile | C157: PAGEIND | D157: 2023-03-29 | E157: 37198.35 | F157: 37265.67 | G157: 36881.33 | H157: 36564.32 | I157: 36179.98 | J157: 37582.68 | K157: 37967.02 | L157: 38284.03 | M157: 37650 | N157: 36948.65 | O157: 129255 | P157: -0.59%
A158: 148 | B158: Pharma | C158: PEL | D158: 2023-03-29 | E158: 695.45 | F158: 684.80 | G158: 669.40 | H158: 643.35 | I158: 627.95 | J158: 710.85 | K158: 726.25 | L158: 752.30 | M158: 700.2 | N158: 658.75 | O158: 9699250 | P158: 7.58%
A159: 149 | B159: Technology | C159: PERSISTENT | D159: 2023-03-29 | E159: 4501.35 | F159: 4526.10 | G159: 4457.30 | H159: 4413.25 | I159: 4344.45 | J159: 4570.15 | K159: 4638.95 | L159: 4683.00 | M159: 4594.9 | N159: 4482.05 | O159: 1145025 | P159: 0.49%
A160: 150 | B160: Oil_Gas | C160: PETRONET | D160: 2023-03-29 | E160: 238.40 | F160: 238.70 | G160: 236.90 | H160: 235.40 | I160: 233.60 | J160: 240.20 | K160: 242.00 | L160: 243.50 | M160: 240.5 | N160: 237.2 | O160: 14370000 | P160: -5.84%
A161: 151 | B161: Finance | C161: PFC | D161: 2023-03-29 | E161: 159.15 | F161: 158.50 | G161: 156.55 | H161: 153.95 | I161: 152.00 | J161: 161.10 | K161: 163.05 | L161: 165.65 | M161: 160.45 | N161: 155.9 | O161: 58621000 | P161: 2.58%
A162: 152 | B162: FMCG | C162: PIDILITIND | D162: 2023-03-29 | E162: 2353.25 | F162: 2350.35 | G162: 2325.70 | H162: 2298.15 | I162: 2273.50 | J162: 2377.90 | K162: 2402.55 | L162: 2430.10 | M162: 2375 | N162: 2322.8 | O162: 2866000 | P162: -3.59%
A163: 153 | B163: Chemical | C163: PIIND | D163: 2023-03-29 | E163: 2981.05 | F163: 2982.50 | G163: 2956.60 | H163: 2932.15 | I163: 2906.25 | J163: 3006.95 | K163: 3032.85 | L163: 3057.30 | M163: 3008.4 | N163: 2958.05 | O163: 2102250 | P163: 0.38%
A164: 154 | B164: Banking | C164: PNB | D164: 2023-03-29 | E164: 48.30 | F164: 48.00 | G164: 47.30 | H164: 46.30 | I164: 45.60 | J164: 49.00 | K164: 49.70 | L164: 50.70 | M164: 48.7 | N164: 47 | O164: 215344000 | P164: 1.00%
A165: 155 | B165: Others | C165: POLYCAB | D165: 2023-03-29 | E165: 2873.60 | F165: 2877.22 | G165: 2844.48 | H165: 2815.37 | I165: 2782.63 | J165: 2906.33 | K165: 2939.07 | L165: 2968.18 | M165: 2909.95 | N165: 2848.1 | O165: 1347300 | P165: 2.93%
A166: 156 | B166: Power | C166: POWERGRID | D166: 2023-03-29 | E166: 232.60 | F166: 231.53 | G166: 229.87 | H166: 227.13 | I166: 225.47 | J166: 234.27 | K166: 235.93 | L166: 238.67 | M166: 233.2 | N166: 228.8 | O166: 32275800 | P166: -6.27%
A167: 157 | B167: Media | C167: PVR | D167: 2023-03-29 | E167: 1592.55 | F167: 1576.72 | G167: 1556.13 | H167: 1519.72 | I167: 1499.13 | J167: 1613.13 | K167: 1633.72 | L167: 1670.13 | M167: 1597.3 | N167: 1540.3 | O167: 2149774 | P167: -4.85%
A168: 158 | B168: Others | C168: RAIN | D168: 2023-03-29 | E168: 158.60 | F168: 158.12 | G168: 156.18 | H168: 153.77 | I168: 151.83 | J168: 160.53 | K168: 162.47 | L168: 164.88 | M168: 160.05 | N168: 155.7 | O168: 12061000 | P168: 0.03%
A169: 159 | B169: Cement | C169: RAMCOCEM | D169: 2023-03-29 | E169: 720.05 | F169: 718.10 | G169: 713.50 | H169: 706.95 | I169: 702.35 | J169: 724.65 | K169: 729.25 | L169: 735.80 | M169: 722.7 | N169: 711.55 | O169: 2618000 | P169: -2.96%
A170: 160 | B170: Banking | C170: RBLBANK | D170: 2023-03-29 | E170: 142.25 | F170: 141.92 | G170: 139.13 | H170: 136.02 | I170: 133.23 | J170: 145.03 | K170: 147.82 | L170: 150.93 | M170: 144.7 | N170: 138.8 | O170: 36580000 | P170: 7.87%
A171: 161 | B171: Power | C171: RECLTD | D171: 2023-03-29 | E171: 117.90 | F171: 117.23 | G171: 115.92 | H171: 113.93 | I171: 112.62 | J171: 119.22 | K171: 120.53 | L171: 122.52 | M171: 118.55 | N171: 115.25 | O171: 60296000 | P171: 0.32%
A172: 162 | B172: Oil_Gas | C172: RELIANCE | D172: 2023-03-29 | E172: 2237.40 | F172: 2239.12 | G172: 2211.83 | H172: 2186.27 | I172: 2158.98 | J172: 2264.68 | K172: 2291.97 | L172: 2317.53 | M172: 2266.4 | N172: 2213.55 | O172: 44927750 | P172: 3.26%
A173: 163 | B173: Metals | C173: SAIL | D173: 2023-03-29 | E173: 85.20 | F173: 85.23 | G173: 83.47 | H173: 81.73 | I173: 79.97 | J173: 86.97 | K173: 88.73 | L173: 90.47 | M173: 87 | N173: 83.5 | O173: 109608000 | P173: 3.10%
A174: 164 | B174: Banking | C174: SBICARD | D174: 2023-03-29 | E174: 722.80 | F174: 722.65 | G174: 715.25 | H174: 707.70 | I174: 700.30 | J174: 730.20 | K174: 737.60 | L174: 745.15 | M174: 730.05 | N174: 715.1 | O174: 9632000 | P174: 0.77%
A175: 165 | B175: Finance | C175: SBILIFE | D175: 2023-03-29 | E175: 1065.40 | F175: 1072.98 | G175: 1051.97 | H175: 1038.53 | I175: 1017.52 | J175: 1086.42 | K175: 1107.43 | L175: 1120.87 | M175: 1094 | N175: 1059.55 | O175: 6979500 | P175: 12.68%
A176: 166 | B176: Banking | C176: SBIN | D176: 2023-03-29 | E176: 527.45 | F176: 524.93 | G176: 518.12 | H176: 508.78 | I176: 501.97 | J176: 534.27 | K176: 541.08 | L176: 550.42 | M176: 531.75 | N176: 515.6 | O176: 77095500 | P176: 3.08%
A177: 167 | B177: Cement | C177: SHREECEM | D177: 2023-03-29 | E177: 25479.40 | F177: 25391.70 | G177: 25133.45 | H177: 24787.50 | I177: 24529.25 | J177: 25737.65 | K177: 25995.90 | L177: 26341.85 | M177: 25649.95 | N177: 25045.75 | O177: 385150 | P177: -1.73%
A178: 168 | B178: Capital_Goods | C178: SIEMENS | D178: 2023-03-29 | E178: 3275.75 | F178: 3260.83 | G178: 3234.92 | H178: 3194.08 | I178: 3168.17 | J178: 3301.67 | K178: 3327.58 | L178: 3368.42 | M178: 3286.75 | N178: 3220 | O178: 1765775 | P178: -3.78%
A179: 169 | B179: Textile | C179: SRF | D179: 2023-03-29 | E179: 2316.85 | F179: 2304.38 | G179: 2283.77 | H179: 2250.68 | I179: 2230.07 | J179: 2337.47 | K179: 2358.08 | L179: 2391.17 | M179: 2325 | N179: 2271.3 | O179: 3286875 | P179: 1.00%
A180: 170 | B180: Finance | C180: SHRIRAMFIN | D180: 2023-03-29 | E180: 1255.45 | F180: 1251.72 | G180: 1236.03 | H180: 1216.62 | I180: 1200.93 | J180: 1271.13 | K180: 1286.82 | L180: 1306.23 | M180: 1267.4 | N180: 1232.3 | O180: 3819600 | P180: -0.75%
A181: 171 | B181: Pharma | C181: SUNPHARMA | D181: 2023-03-29 | E181: 969.90 | F181: 966.55 | G181: 960.35 | H181: 950.80 | I181: 944.60 | J181: 976.10 | K181: 982.30 | L181: 991.85 | M181: 972.75 | N181: 957 | O181: 18423300 | P181: -1.00%
A182: 172 | B182: Media | C182: SUNTV | D182: 2023-03-29 | E182: 435.10 | F182: 431.08 | G182: 423.67 | H182: 412.23 | I182: 404.82 | J182: 442.52 | K182: 449.93 | L182: 461.37 | M182: 438.5 | N182: 419.65 | O182: 8949000 | P182: 2.84%
A183: 173 | B183: Pharma | C183: SYNGENE | D183: 2023-03-29 | E183: 583.05 | F183: 584.93 | G183: 579.32 | H183: 575.58 | I183: 569.97 | J183: 588.67 | K183: 594.28 | L183: 598.02 | M183: 590.55 | N183: 581.2 | O183: 2206000 | P183: -0.68%
A184: 174 | B184: Chemical | C184: TATACHEM | D184: 2023-03-29 | E184: 963.25 | F184: 960.70 | G184: 950.05 | H184: 936.85 | I184: 926.20 | J184: 973.90 | K184: 984.55 | L184: 997.75 | M184: 971.35 | N184: 947.5 | O184: 5877500 | P184: 0.35%
A185: 175 | B185: Telecom | C185: TATACOMM | D185: 2023-03-29 | E185: 1183.55 | F185: 1179.77 | G185: 1166.78 | H185: 1150.02 | I185: 1137.03 | J185: 1196.53 | K185: 1209.52 | L185: 1226.28 | M185: 1192.75 | N185: 1163 | O185: 2195500 | P185: -0.54%
A186: 176 | B186: FMCG | C186: TATACONSUM | D186: 2023-03-29 | E186: 697.70 | F186: 695.97 | G186: 692.03 | H186: 686.37 | I186: 682.43 | J186: 701.63 | K186: 705.57 | L186: 711.23 | M186: 699.9 | N186: 690.3 | O186: 11213100 | P186: -0.20%
A187: 177 | B187: Automobile | C187: TATAMOTORS | D187: 2023-03-29 | E187: 417.60 | F187: 414.78 | G187: 409.12 | H187: 400.63 | I187: 394.97 | J187: 423.27 | K187: 428.93 | L187: 437.42 | M187: 420.45 | N187: 406.3 | O187: 59359800 | P187: 1.85%
A188: 178 | B188: Power | C188: TATAPOWER | D188: 2023-03-29 | E188: 204.55 | F188: 203.02 | G188: 200.68 | H188: 196.82 | I188: 194.48 | J188: 206.88 | K188: 209.22 | L188: 213.08 | M188: 205.35 | N188: 199.15 | O188: 95981625 | P188: 0.18%
A189: 179 | B189: Metals | C189: TATASTEEL | D189: 2023-03-29 | E189: 105.40 | F189: 105.55 | G189: 103.80 | H189: 102.20 | I189: 100.45 | J189: 107.15 | K189: 108.90 | L189: 110.50 | M189: 107.3 | N189: 103.95 | O189: 209566500 | P189: -3.91%
A190: 180 | B190: Technology | C190: TCS | D190: 2023-03-29 | E190: 3193.05 | F190: 3203.70 | G190: 3172.85 | H190: 3152.65 | I190: 3121.80 | J190: 3223.90 | K190: 3254.75 | L190: 3274.95 | M190: 3234.55 | N190: 3183.5 | O190: 10820075 | P190: 2.90%
A191: 181 | B191: Technology | C191: TECHM | D191: 2023-03-29 | E191: 1120.10 | F191: 1116.63 | G191: 1107.47 | H191: 1094.83 | I191: 1085.67 | J191: 1129.27 | K191: 1138.43 | L191: 1151.07 | M191: 1125.8 | N191: 1104 | O191: 12044400 | P191: -4.12%
A192: 182 | B192: FMCG | C192: TITAN | D192: 2023-03-29 | E192: 2457.15 | F192: 2453.97 | G192: 2420.73 | H192: 2384.32 | I192: 2351.08 | J192: 2490.38 | K192: 2523.62 | L192: 2560.03 | M192: 2487.2 | N192: 2417.55 | O192: 6634125 | P192: -3.06%
A193: 183 | B193: Pharma | C193: TORNTPHARM | D193: 2023-03-29 | E193: 1559.40 | F193: 1556.35 | G193: 1544.15 | H193: 1528.90 | I193: 1516.70 | J193: 1571.60 | K193: 1583.80 | L193: 1599.05 | M193: 1568.55 | N193: 1541.1 | O193: 1688500 | P193: 0.75%
A194: 184 | B194: Power | C194: TORNTPOWER | D194: 2023-03-29 | E194: 546.95 | F194: 544.32 | G194: 538.38 | H194: 529.82 | I194: 523.88 | J194: 552.88 | K194: 558.82 | L194: 567.38 | M194: 550.25 | N194: 535.75 | O194: 3061500 | P194: 3.76%
A195: 185 | B195: Others | C195: TRENT | D195: 2023-03-29 | E195: 1343.30 | F195: 1336.18 | G195: 1321.37 | H195: 1299.43 | I195: 1284.62 | J195: 1358.12 | K195: 1372.93 | L195: 1394.87 | M195: 1351 | N195: 1314.25 | O195: 3389200 | P195: -2.41%
A196: 186 | B196: Automobile | C196: TVSMOTOR | D196: 2023-03-29 | E196: 1052.70 | F196: 1044.28 | G196: 1033.77 | H196: 1014.83 | I196: 1004.32 | J196: 1063.22 | K196: 1073.73 | L196: 1092.67 | M196: 1054.8 | N196: 1025.35 | O196: 6180300 | P196: 1.06%
A197: 187 | B197: FMCG | C197: UBL | D197: 2023-03-29 | E197: 1463.55 | F197: 1456.48 | G197: 1443.07 | H197: 1422.58 | I197: 1409.17 | J197: 1476.97 | K197: 1490.38 | L197: 1510.87 | M197: 1469.9 | N197: 1436 | O197: 1171200 | P197: 4.13%
A198: 188 | B198: Cement | C198: ULTRACEMCO | D198: 2023-03-29 | E198: 7147.85 | F198: 7146.22 | G198: 7107.43 | H198: 7067.02 | I198: 7028.23 | J198: 7186.63 | K198: 7225.42 | L198: 7265.83 | M198: 7185 | N198: 7105.8 | O198: 1896100 | P198: -0.37%
A199: 189 | B199: Chemical | C199: UPL | D199: 2023-03-29 | E199: 698.70 | F199: 699.40 | G199: 693.50 | H199: 688.30 | I199: 682.40 | J199: 704.60 | K199: 710.50 | L199: 715.70 | M199: 705.3 | N199: 694.2 | O199: 16060200 | P199: 1.40%
A200: 190 | B200: Metals | C200: VEDL | D200: 2023-03-29 | E200: 276.65 | F200: 275.43 | G200: 270.47 | H200: 264.28 | I200: 259.32 | J200: 281.62 | K200: 286.58 | L200: 292.77 | M200: 280.4 | N200: 269.25 | O200: 42834000 | P200: 9.42%
A201: 191 | B201: Capital_Goods | C201: VOLTAS | D201: 2023-03-29 | E201: 884.90 | F201: 879.48 | G201: 871.77 | H201: 858.63 | I201: 850.92 | J201: 892.62 | K201: 900.33 | L201: 913.47 | M201: 887.2 | N201: 866.35 | O201: 5093400 | P201: -0.26%
A202: 192 | B202: Capital_Goods | C202: WHIRLPOOL | D202: 2023-03-29 | E202: 1345.55 | F202: 1340.07 | G202: 1325.53 | H202: 1305.52 | I202: 1290.98 | J202: 1360.08 | K202: 1374.62 | L202: 1394.63 | M202: 1354.6 | N202: 1320.05 | O202: 915950 | P202: 1.67%
A203: 193 | B203: Technology | C203: WIPRO | D203: 2023-03-29 | E203: 374.10 | F203: 374.53 | G203: 371.22 | H203: 368.33 | I203: 365.02 | J203: 377.42 | K203: 380.73 | L203: 383.62 | M203: 377.85 | N203: 371.65 | O203: 37402500 | P203: 2.47%
A204: 194 | B204: Media | C204: ZEEL | D204: 2023-03-29 | E204: 207.95 | F204: 201.75 | G204: 194.55 | H204: 181.15 | I204: 173.95 | J204: 215.15 | K204: 222.35 | L204: 235.75 | M204: 208.95 | N204: 188.35 | O204: 76746000 | P204: 1.79%
A205: 195 | B205: Pharma | C205: ZYDUSLIFE | D205: 2023-03-29 | E205: 482.35 | F205: 481.75 | G205: 473.60 | H205: 464.85 | I205: 456.70 | J205: 490.50 | K205: 498.65 | L205: 507.40 | M205: 489.9 | N205: 473 | O205: 7117200 | P205: 6.38%
A222: Pivot Point: This is trigger point for intra day buy/sell based on the price range of the previous day
... 14 more rows

Sheet Cash Intra
M5: Back to Main Page
A6: FOR INTRA DAY TRADING | K6: =Main!B10 -> 2023-03-17
A8: Sr.no | C8: CLOSE RATE | D8: Pivot Point | E8: Supports | H8: Resistances
E9: S1 | F9: S2 | G9: S3 | H9: R1 | I9: R2 | J9: R3 | K9: HIGH | L9: LOW | M9: Total Trade Quanity in Lakhs
A10: 1 | B10: Nifty 50 | C10: 16985.60 | D10: 16966.07 | E10: 16869.68 | F10: 16753.77 | G10: 16657.38 | H10: 17081.98 | I10: 17178.37 | J10: 17294.28 | K10: 17062.45 | L10: 16850.15
A11: 2 | B11: Nifty Bank | C11: 39132.60 | D11: 39042.38 | E11: 38703.37 | F11: 38274.13 | G11: 37935.12 | H11: 39471.62 | I11: 39810.63 | J11: 40239.87 | K11: 39381.40 | L11: 38613.15
A12: 3 | B12: Nifty CPSE | C12: 2946.60 | D12: 2933.63 | E12: 2909.02 | F12: 2871.43 | G12: 2846.82 | H12: 2971.22 | I12: 2995.83 | J12: 3033.42 | K12: 2958.25 | L12: 2896.05
A13: 4 | B13: Nifty Infra | C13: 5068.20 | D13: 5058.27 | E13: 5021.73 | F13: 4975.27 | G13: 4938.73 | H13: 5104.73 | I13: 5141.27 | J13: 5187.73 | K13: 5094.80 | L13: 5011.80
A14: 5 | B14: Nifty IT | C14: 28517.25 | D14: 28554.65 | E14: 28362.95 | F14: 28208.65 | G14: 28016.95 | H14: 28708.95 | I14: 28900.65 | J14: 29054.95 | K14: 28746.35 | L14: 28400.35
A15: 6 | B15: Nifty PSE | C15: 4559.60 | D15: 4538.95 | E15: 4503.40 | F15: 4447.20 | G15: 4411.65 | H15: 4595.15 | I15: 4630.70 | J15: 4686.90 | K15: 4574.50 | L15: 4482.75
A16: 7 | B16: Nifty Midcap 50 | C16: 8455.05 | D16: 8420.85 | E16: 8357.90 | F16: 8260.75 | G16: 8197.80 | H16: 8518.00 | I16: 8580.95 | J16: 8678.10 | K16: 8483.80 | L16: 8323.70
A17: 8 | B17: ABB | C17: 3327.95 | D17: 3308.20 | E17: 3271.75 | F17: 3215.55 | G17: 3179.10 | H17: 3364.40 | I17: 3400.85 | J17: 3457.05 | K17: 3344.65 | L17: 3252 | M17: 2.57895
A18: 9 | B18: ACC | C18: 1750.3 | D18: 1746.80 | E18: 1723.60 | F18: 1696.90 | G18: 1673.70 | H18: 1773.50 | I18: 1796.70 | J18: 1823.40 | K18: 1770 | L18: 1720.1 | M18: 3.70585
A19: 10 | B19: AUBANK | C19: 584 | D19: 582.27 | E19: 575.58 | F19: 567.17 | G19: 560.48 | H19: 590.68 | I19: 597.37 | J19: 605.78 | K19: 588.95 | L19: 573.85 | M19: 14.53328
A20: 11 | B20: ABBOTINDIA | C20: 20704 | D20: 20579.73 | E20: 20379.47 | F20: 20054.93 | G20: 19854.67 | H20: 20904.27 | I20: 21104.53 | J20: 21429.07 | K20: 20780 | L20: 20255.2 | M20: 0.06621
A21: 12 | B21: ADANIENT | C21: 1843.8 | D21: 1837.93 | E21: 1800.87 | F21: 1757.93 | G21: 1720.87 | H21: 1880.87 | I21: 1917.93 | J21: 1960.87 | K21: 1875 | L21: 1795 | M21: 65.09495
A22: 13 | B22: ADANIGREEN | C22: 777.4 | D22: 769.93 | E22: 762.47 | F22: 747.53 | G22: 740.07 | H22: 784.87 | I22: 792.33 | J22: 807.27 | K22: 777.4 | L22: 755 | M22: 30.38749
A23: 14 | B23: ADANIPORTS | C23: 679.6 | D23: 682.37 | E23: 672.38 | F23: 665.17 | G23: 655.18 | H23: 689.58 | I23: 699.57 | J23: 706.78 | K23: 692.35 | L23: 675.15 | M23: 129.92236
A24: 15 | B24: ATGL | C24: 888.4 | D24: 901.47 | E24: 866.93 | F24: 845.47 | G24: 810.93 | H24: 922.93 | I24: 957.47 | J24: 978.93 | K24: 936 | L24: 880 | M24: 25.59661
A25: 16 | B25: ADANITRANS | C25: 973.7 | D25: 951.57 | E25: 928.38 | F25: 883.07 | G25: 859.88 | H25: 996.88 | I25: 1020.07 | J25: 1065.38 | K25: 974.75 | L25: 906.25 | M25: 31.51991
A26: 17 | B26: AWL | C26: 420.65 | D26: 421.95 | E26: 412.90 | F26: 405.15 | G26: 396.10 | H26: 429.70 | I26: 438.75 | J26: 446.50 | K26: 431 | L26: 414.2 | M26: 27.31224
A27: 18 | B27: ABCAPITAL | C27: 148.8 | D27: 147.35 | E27: 145.25 | F27: 141.70 | G27: 139.60 | H27: 150.90 | I27: 153.00 | J27: 156.55 | K27: 149.45 | L27: 143.8 | M27: 22.5879
A28: 19 | B28: ABFRL | C28: 215 | D28: 213.97 | E28: 210.38 | F28: 205.77 | G28: 202.18 | H28: 218.58 | I28: 222.17 | J28: 226.78 | K28: 217.55 | L28: 209.35 | M28: 26.23576
A29: 20 | B29: ALKEM | C29: 3155.05 | D29: 3125.77 | E29: 3081.18 | F29: 3007.32 | G29: 2962.73 | H29: 3199.63 | I29: 3244.22 | J29: 3318.08 | K29: 3170.35 | L29: 3051.9 | M29: 0.73462
A30: 21 | B30: AMBUJACEM | C30: 378.8 | D30: 374.35 | E30: 364.70 | F30: 350.60 | G30: 340.95 | H30: 388.45 | I30: 398.10 | J30: 412.20 | K30: 384 | L30: 360.25 | M30: 172.63261
A31: 22 | B31: APOLLOHOSP | C31: 4319.05 | D31: 4318.35 | E31: 4266.70 | F31: 4214.35 | G31: 4162.70 | H31: 4370.70 | I31: 4422.35 | J31: 4474.70 | K31: 4370 | L31: 4266 | M31: 3.00181
A32: 23 | B32: ASHOKLEY | C32: 139.75 | D32: 138.87 | E32: 137.68 | F32: 135.62 | G32: 134.43 | H32: 140.93 | I32: 142.12 | J32: 144.18 | K32: 140.05 | L32: 136.8 | M32: 101.23191
A33: 24 | B33: ASIANPAINT | C33: 2893.25 | D33: 2873.98 | E33: 2847.97 | F33: 2802.68 | G33: 2776.67 | H33: 2919.27 | I33: 2945.28 | J33: 2990.57 | K33: 2900 | L33: 2828.7 | M33: 17.55487
A34: 25 | B34: ASTRAL | C34: 1334 | D34: 1339.97 | E34: 1323.03 | F34: 1312.07 | G34: 1295.13 | H34: 1350.93 | I34: 1367.87 | J34: 1378.83 | K34: 1356.9 | L34: 1329 | M34: 2.588
A35: 26 | B35: AUROPHARMA | C35: 473.25 | D35: 469.42 | E35: 461.83 | F35: 450.42 | G35: 442.83 | H35: 480.83 | I35: 488.42 | J35: 499.83 | K35: 477 | L35: 458 | M35: 37.2123
A36: 27 | B36: DMART | C36: 3382.15 | D36: 3376.43 | E36: 3297.72 | F36: 3213.28 | G36: 3134.57 | H36: 3460.87 | I36: 3539.58 | J36: 3624.02 | K36: 3455.15 | L36: 3292 | M36: 3.53906
A37: 28 | B37: AXISBANK | C37: 830.55 | D37: 827.58 | E37: 817.27 | F37: 803.98 | G37: 793.67 | H37: 840.87 | I37: 851.18 | J37: 864.47 | K37: 837.9 | L37: 814.3 | M37: 87.91383
A38: 29 | B38: BAJAJ-AUTO | C38: 3800.2 | D38: 3784.05 | E38: 3757.10 | F38: 3714.00 | G38: 3687.05 | H38: 3827.15 | I38: 3854.10 | J38: 3897.20 | K38: 3811 | L38: 3740.95 | M38: 3.77544
A39: 30 | B39: BAJFINANCE | C39: 5715.1 | D39: 5711.70 | E39: 5668.40 | F39: 5621.70 | G39: 5578.40 | H39: 5758.40 | I39: 5801.70 | J39: 5848.40 | K39: 5755 | L39: 5665 | M39: 8.84963
A40: 31 | B40: BAJAJFINSV | C40: 1293.6 | D40: 1289.38 | E40: 1274.77 | F40: 1255.93 | G40: 1241.32 | H40: 1308.22 | I40: 1322.83 | J40: 1341.67 | K40: 1304 | L40: 1270.55 | M40: 15.39281
A41: 32 | B41: BAJAJHLDNG | C41: 6113.35 | D41: 6086.58 | E41: 6027.82 | F41: 5942.28 | G41: 5883.52 | H41: 6172.12 | I41: 6230.88 | J41: 6316.42 | K41: 6145.35 | L41: 6001.05 | M41: 0.24489
A42: 33 | B42: BALKRISIND | C42: 1980.15 | D42: 1970.63 | E42: 1953.22 | F42: 1926.28 | G42: 1908.87 | H42: 1997.57 | I42: 2014.98 | J42: 2041.92 | K42: 1988.05 | L42: 1943.7 | M42: 1.62807
A43: 34 | B43: BANDHANBNK | C43: 204.4 | D43: 202.65 | E43: 199.50 | F43: 194.60 | G43: 191.45 | H43: 207.55 | I43: 210.70 | J43: 215.60 | K43: 205.8 | L43: 197.75 | M43: 94.37354
A44: 35 | B44: BANKBARODA | C44: 159.75 | D44: 158.93 | E44: 156.42 | F44: 153.08 | G44: 150.57 | H44: 162.27 | I44: 164.78 | J44: 168.12 | K44: 161.45 | L44: 155.6 | M44: 242.91234
A45: 36 | B45: BANKINDIA | C45: 71.4 | D45: 70.40 | E45: 68.90 | F45: 66.40 | G45: 64.90 | H45: 72.90 | I45: 74.40 | J45: 76.90 | K45: 71.9 | L45: 67.9 | M45: 178.8391
A46: 37 | B46: BATAINDIA | C46: 1407.9 | D46: 1403.78 | E46: 1393.12 | F46: 1378.33 | G46: 1367.67 | H46: 1418.57 | I46: 1429.23 | J46: 1444.02 | K46: 1414.45 | L46: 1389 | M46: 2.84712
A47: 38 | B47: BERGEPAINT | C47: 603.7 | D47: 599.65 | E47: 594.30 | F47: 584.90 | G47: 579.55 | H47: 609.05 | I47: 614.40 | J47: 623.80 | K47: 605 | L47: 590.25 | M47: 14.8168
A48: 39 | B48: BEL | C48: 91.9 | D48: 91.42 | E48: 90.13 | F48: 88.37 | G48: 87.08 | H48: 93.18 | I48: 94.47 | J48: 96.23 | K48: 92.7 | L48: 89.65 | M48: 122.78142
A49: 40 | B49: BHARATFORG | C49: 788.5 | D49: 786.42 | E49: 778.18 | F49: 767.87 | G49: 759.63 | H49: 796.73 | I49: 804.97 | J49: 815.28 | K49: 794.65 | L49: 776.1 | M49: 9.6079
A50: 41 | B50: BHEL | C50: 75.6 | D50: 74.95 | E50: 73.90 | F50: 72.20 | G50: 71.15 | H50: 76.65 | I50: 77.70 | J50: 79.40 | K50: 76 | L50: 73.25 | M50: 107.50873
A51: 42 | B51: BPCL | C51: 350.9 | D51: 345.93 | E51: 339.12 | F51: 327.33 | G51: 320.52 | H51: 357.72 | I51: 364.53 | J51: 376.32 | K51: 352.75 | L51: 334.15 | M51: 182.87315
A52: 43 | B52: BHARTIARTL | C52: 745.95 | D52: 749.48 | E52: 739.97 | F52: 733.98 | G52: 724.47 | H52: 755.47 | I52: 764.98 | J52: 770.97 | K52: 759 | L52: 743.5 | M52: 74.65693
A53: 44 | B53: BIOCON | C53: 221.85 | D53: 222.83 | E53: 220.02 | F53: 218.18 | G53: 215.37 | H53: 224.67 | I53: 227.48 | J53: 229.32 | K53: 225.65 | L53: 221 | M53: 26.54387
A54: 45 | B54: BOSCHLTD | C54: 18118.35 | D54: 18093.98 | E54: 17972.97 | F54: 17827.58 | G54: 17706.57 | H54: 18239.37 | I54: 18360.38 | J54: 18505.77 | K54: 18215 | L54: 17948.6 | M54: 0.246
A55: 46 | B55: BRITANNIA | C55: 4311.2 | D55: 4293.73 | E55: 4267.47 | F55: 4223.73 | G55: 4197.47 | H55: 4337.47 | I55: 4363.73 | J55: 4407.47 | K55: 4320 | L55: 4250 | M55: 2.60044
A56: 47 | B56: CANBK | C56: 281.65 | D56: 280.98 | E56: 276.37 | F56: 271.08 | G56: 266.47 | H56: 286.27 | I56: 290.88 | J56: 296.17 | K56: 285.6 | L56: 275.7 | M56: 98.40727
A57: 48 | B57: CHOLAFIN | C57: 746.65 | D57: 746.78 | E57: 739.77 | F57: 732.88 | G57: 725.87 | H57: 753.67 | I57: 760.68 | J57: 767.57 | K57: 753.8 | L57: 739.9 | M57: 8.48375
A58: 49 | B58: CIPLA | C58: 883.45 | D58: 883.40 | E58: 876.80 | F58: 870.15 | G58: 863.55 | H58: 890.05 | I58: 896.65 | J58: 903.30 | K58: 890 | L58: 876.75 | M58: 20.23997
A59: 50 | B59: CLEAN | C59: 1380.95 | D59: 1388.32 | E59: 1367.63 | F59: 1354.32 | G59: 1333.63 | H59: 1401.63 | I59: 1422.32 | J59: 1435.63 | K59: 1409 | L59: 1375 | M59: 0.72981
A60: 51 | B60: COALINDIA | C60: 220.85 | D60: 219.88 | E60: 217.32 | F60: 213.78 | G60: 211.22 | H60: 223.42 | I60: 225.98 | J60: 229.52 | K60: 222.45 | L60: 216.35 | M60: 49.88245
A61: 52 | B61: COFORGE | C61: 3852.05 | D61: 3877.57 | E61: 3810.53 | F61: 3769.02 | G61: 3701.98 | H61: 3919.08 | I61: 3986.12 | J61: 4027.63 | K61: 3944.6 | L61: 3836.05 | M61: 3.4538
A62: 53 | B62: COLPAL | C62: 1500.15 | D62: 1498.22 | E62: 1488.48 | F62: 1476.82 | G62: 1467.08 | H62: 1509.88 | I62: 1519.62 | J62: 1531.28 | K62: 1507.95 | L62: 1486.55 | M62: 3.13224
A63: 54 | B63: CONCOR | C63: 592.35 | D63: 589.58 | E63: 585.42 | F63: 578.48 | G63: 574.32 | H63: 596.52 | I63: 600.68 | J63: 607.62 | K63: 593.75 | L63: 582.65 | M63: 6.96941
A64: 55 | B64: COROMANDEL | C64: 861.1 | D64: 865.52 | E64: 853.58 | F64: 846.07 | G64: 834.13 | H64: 873.03 | I64: 884.97 | J64: 892.48 | K64: 877.45 | L64: 858 | M64: 1.79044
A65: 56 | B65: CROMPTON | C65: 286.45 | D65: 288.80 | E65: 283.60 | F65: 280.75 | G65: 275.55 | H65: 291.65 | I65: 296.85 | J65: 299.70 | K65: 294 | L65: 285.95 | M65: 15.99131
A66: 57 | B66: CUMMINSIND | C66: 1657.7 | D66: 1664.03 | E66: 1628.17 | F66: 1598.63 | G66: 1562.77 | H66: 1693.57 | I66: 1729.43 | J66: 1758.97 | K66: 1699.9 | L66: 1634.5 | M66: 6.55835
A67: 58 | B67: DLF | C67: 360.05 | D67: 355.45 | E67: 349.40 | F67: 338.75 | G67: 332.70 | H67: 366.10 | I67: 372.15 | J67: 382.80 | K67: 361.5 | L67: 344.8 | M67: 54.12088
A68: 59 | B68: DABUR | C68: 534.5 | D68: 530.92 | E68: 524.08 | F68: 513.67 | G68: 506.83 | H68: 541.33 | I68: 548.17 | J68: 558.58 | K68: 537.75 | L68: 520.5 | M68: 20.94724
A69: 60 | B69: DALBHARAT | C69: 1785.45 | D69: 1784.83 | E69: 1770.67 | F69: 1755.88 | G69: 1741.72 | H69: 1799.62 | I69: 1813.78 | J69: 1828.57 | K69: 1799 | L69: 1770.05 | M69: 2.29888
A70: 61 | B70: DEEPAKNTR | C70: 1810.2 | D70: 1804.68 | E70: 1780.97 | F70: 1751.73 | G70: 1728.02 | H70: 1833.92 | I70: 1857.63 | J70: 1886.87 | K70: 1828.4 | L70: 1775.45 | M70: 3.40071
A71: 62 | B71: DELHIVERY | C71: 331.35 | D71: 331.48 | E71: 326.97 | F71: 322.58 | G71: 318.07 | H71: 335.87 | I71: 340.38 | J71: 344.77 | K71: 336 | L71: 327.1 | M71: 14.51678
A72: 63 | B72: DIVISLAB | C72: 2801.6 | D72: 2806.03 | E72: 2763.37 | F72: 2725.13 | G72: 2682.47 | H72: 2844.27 | I72: 2886.93 | J72: 2925.17 | K72: 2848.7 | L72: 2767.8 | M72: 4.77596
A73: 64 | B73: DIXON | C73: 2868.05 | D73: 2866.28 | E73: 2832.57 | F73: 2797.08 | G73: 2763.37 | H73: 2901.77 | I73: 2935.48 | J73: 2970.97 | K73: 2900 | L73: 2830.8 | M73: 2.31087
A74: 65 | B74: LALPATHLAB | C74: 1867 | D74: 1857.70 | E74: 1845.40 | F74: 1823.80 | G74: 1811.50 | H74: 1879.30 | I74: 1891.60 | J74: 1913.20 | K74: 1870 | L74: 1836.1 | M74: 1.71777
A75: 66 | B75: DRREDDY | C75: 4383.75 | D75: 4394.70 | E75: 4359.40 | F75: 4335.05 | G75: 4299.75 | H75: 4419.05 | I75: 4454.35 | J75: 4478.70 | K75: 4430 | L75: 4370.35 | M75: 2.76928
A76: 67 | B76: EICHERMOT | C76: 3035.45 | D76: 3037.48 | E76: 2993.97 | F76: 2952.48 | G76: 2908.97 | H76: 3078.97 | I76: 3122.48 | J76: 3163.97 | K76: 3081 | L76: 2996 | M76: 4.39612
A77: 68 | B77: EMAMILTD | C77: 357.95 | D77: 360.95 | E77: 351.85 | F77: 345.75 | G77: 336.65 | H77: 367.05 | I77: 376.15 | J77: 382.25 | K77: 370.05 | L77: 354.85 | M77: 3.80505
A78: 69 | B78: ESCORTS | C78: 1896.05 | D78: 1896.20 | E78: 1863.85 | F78: 1831.65 | G78: 1799.30 | H78: 1928.40 | I78: 1960.75 | J78: 1992.95 | K78: 1928.55 | L78: 1864 | M78: 2.32456
A79: 70 | B79: NYKAA | C79: 138.1 | D79: 137.17 | E79: 134.53 | F79: 130.97 | G79: 128.33 | H79: 140.73 | I79: 143.37 | J79: 146.93 | K79: 139.8 | L79: 133.6 | M79: 77.97383
A80: 71 | B80: FEDERALBNK | C80: 127.3 | D80: 126.62 | E80: 125.23 | F80: 123.17 | G80: 121.78 | H80: 128.68 | I80: 130.07 | J80: 132.13 | K80: 128 | L80: 124.55 | M80: 93.1876
A81: 72 | B81: FORTIS | C81: 265.3 | D81: 265.83 | E81: 263.47 | F81: 261.63 | G81: 259.27 | H81: 267.67 | I81: 270.03 | J81: 271.87 | K81: 268.2 | L81: 264 | M81: 10.1898
A82: 73 | B82: GAIL | C82: 109.55 | D82: 109.83 | E82: 107.52 | F82: 105.48 | G82: 103.17 | H82: 111.87 | I82: 114.18 | J82: 116.22 | K82: 112.15 | L82: 107.8 | M82: 267.57814
A83: 74 | B83: GLAND | C83: 1217.75 | D83: 1215.35 | E83: 1192.80 | F83: 1167.85 | G83: 1145.30 | H83: 1240.30 | I83: 1262.85 | J83: 1287.80 | K83: 1237.9 | L83: 1190.4 | M83: 4.0602
A84: 75 | B84: GODREJCP | C84: 932.35 | D84: 925.52 | E84: 912.18 | F84: 892.02 | G84: 878.68 | H84: 945.68 | I84: 959.02 | J84: 979.18 | K84: 938.85 | L84: 905.35 | M84: 13.06258
A85: 76 | B85: GODREJPROP | C85: 1101.8 | D85: 1095.03 | E85: 1078.22 | F85: 1054.63 | G85: 1037.82 | H85: 1118.62 | I85: 1135.43 | J85: 1159.02 | K85: 1111.85 | L85: 1071.45 | M85: 3.86256
A86: 77 | B86: GRASIM | C86: 1560.45 | D86: 1551.40 | E86: 1536.10 | F86: 1511.75 | G86: 1496.45 | H86: 1575.75 | I86: 1591.05 | J86: 1615.40 | K86: 1566.7 | L86: 1527.05 | M86: 5.81059
A87: 78 | B87: GUJGASLTD | C87: 496.8 | D87: 493.27 | E87: 487.58 | F87: 478.37 | G87: 472.68 | H87: 502.48 | I87: 508.17 | J87: 517.38 | K87: 498.95 | L87: 484.05 | M87: 4.41404
A88: 79 | B88: GSPL | C88: 274.3 | D88: 272.67 | E88: 270.28 | F88: 266.27 | G88: 263.88 | H88: 276.68 | I88: 279.07 | J88: 283.08 | K88: 275.05 | L88: 268.65 | M88: 6.90987
A89: 80 | B89: HCLTECH | C89: 1072.4 | D89: 1076.53 | E89: 1065.52 | F89: 1058.63 | G89: 1047.62 | H89: 1083.42 | I89: 1094.43 | J89: 1101.32 | K89: 1087.55 | L89: 1069.65 | M89: 18.12907
A90: 81 | B90: HDFCAMC | C90: 1682.65 | D90: 1674.50 | E90: 1652.90 | F90: 1623.15 | G90: 1601.55 | H90: 1704.25 | I90: 1725.85 | J90: 1755.60 | K90: 1696.1 | L90: 1644.75 | M90: 6.55602
A91: 82 | B91: HDFCBANK | C91: 1551.9 | D91: 1547.68 | E91: 1536.27 | F91: 1520.63 | G91: 1509.22 | H91: 1563.32 | I91: 1574.73 | J91: 1590.37 | K91: 1559.1 | L91: 1532.05 | M91: 108.76671
A92: 83 | B92: HDFCLIFE | C92: 461.4 | D92: 462.73 | E92: 456.47 | F92: 451.53 | G92: 445.27 | H92: 467.67 | I92: 473.93 | J92: 478.87 | K92: 469 | L92: 457.8 | M92: 67.90599
A93: 84 | B93: HAVELLS | C93: 1185.05 | D93: 1181.35 | E93: 1172.70 | F93: 1160.35 | G93: 1151.70 | H93: 1193.70 | I93: 1202.35 | J93: 1214.70 | K93: 1190 | L93: 1169 | M93: 4.19044
A94: 85 | B94: HEROMOTOCO | C94: 2370.95 | D94: 2376.65 | E94: 2359.30 | F94: 2347.65 | G94: 2330.30 | H94: 2388.30 | I94: 2405.65 | J94: 2417.30 | K94: 2394 | L94: 2365 | M94: 5.77586
A95: 86 | B95: HINDALCO | C95: 384.95 | D95: 389.63 | E95: 378.42 | F95: 371.88 | G95: 360.67 | H95: 396.17 | I95: 407.38 | J95: 413.92 | K95: 400.85 | L95: 383.1 | M95: 167.39755
A96: 87 | B96: HAL | C96: 2722.75 | D96: 2728.48 | E96: 2659.47 | F96: 2596.18 | G96: 2527.17 | H96: 2791.77 | I96: 2860.78 | J96: 2924.07 | K96: 2797.5 | L96: 2665.2 | M96: 12.69539
A97: 88 | B97: HINDPETRO | C97: 244.5 | D97: 241.47 | E97: 236.03 | F97: 227.57 | G97: 222.13 | H97: 249.93 | I97: 255.37 | J97: 263.83 | K97: 246.9 | L97: 233 | M97: 167.45564
A98: 89 | B98: HINDUNILVR | C98: 2459.35 | D98: 2445.47 | E98: 2421.63 | F98: 2383.92 | G98: 2360.08 | H98: 2483.18 | I98: 2507.02 | J98: 2544.73 | K98: 2469.3 | L98: 2407.75 | M98: 16.28035
A99: 90 | B99: HINDZINC | C99: 304.85 | D99: 302.37 | E99: 298.73 | F99: 292.62 | G99: 288.98 | H99: 308.48 | I99: 312.12 | J99: 318.23 | K99: 306 | L99: 296.25 | M99: 19.96713
A100: 91 | B100: HONAUT | C100: 34768.25 | D100: 34818.48 | E100: 34486.97 | F100: 34205.68 | G100: 33874.17 | H100: 35099.77 | I100: 35431.28 | J100: 35712.57 | K100: 35150 | L100: 34537.2 | M100: 0.02914
A101: 92 | B101: HDFC | C101: 2531.6 | D101: 2527.27 | E101: 2506.38 | F101: 2481.17 | G101: 2460.28 | H101: 2552.48 | I101: 2573.37 | J101: 2598.58 | K101: 2548.15 | L101: 2502.05 | M101: 39.40604
A102: 93 | B102: ICICIBANK | C102: 823.9 | D102: 821.83 | E102: 812.37 | F102: 800.83 | G102: 791.37 | H102: 833.37 | I102: 842.83 | J102: 854.37 | K102: 831.3 | L102: 810.3 | M102: 149.87868
A103: 94 | B103: ICICIGI | C103: 1061.3 | D103: 1060.50 | E103: 1049.85 | F103: 1038.40 | G103: 1027.75 | H103: 1071.95 | I103: 1082.60 | J103: 1094.05 | K103: 1071.15 | L103: 1049.05 | M103: 3.02074
A104: 95 | B104: ICICIPRULI | C104: 409.65 | D104: 403.08 | E104: 387.27 | F104: 364.88 | G104: 349.07 | H104: 425.47 | I104: 441.28 | J104: 463.67 | K104: 418.9 | L104: 380.7 | M104: 95.10146
A105: 96 | B105: ISEC | C105: 446.6 | D105: 448.43 | E105: 443.42 | F105: 440.23 | G105: 435.22 | H105: 451.62 | I105: 456.63 | J105: 459.82 | K105: 453.45 | L105: 445.25 | M105: 2.60643
A106: 97 | B106: IDFCFIRSTB | C106: 55.35 | D106: 54.98 | E106: 54.27 | F106: 53.18 | G106: 52.47 | H106: 56.07 | I106: 56.78 | J106: 57.87 | K106: 55.7 | L106: 53.9 | M106: 278.96428
A107: 98 | B107: ITC | C107: 381.45 | D107: 380.22 | E107: 378.08 | F107: 374.72 | G107: 372.58 | H107: 383.58 | I107: 385.72 | J107: 389.08 | K107: 382.35 | L107: 376.85 | M107: 157.10094
A108: 99 | B108: INDIAMART | C108: 4800.8 | D108: 4790.27 | E108: 4710.53 | F108: 4620.27 | G108: 4540.53 | H108: 4880.53 | I108: 4960.27 | J108: 5050.53 | K108: 4870 | L108: 4700 | M108: 0.66641
A109: 100 | B109: INDIANB | C109: 261.35 | D109: 261.55 | E109: 256.00 | F109: 250.65 | G109: 245.10 | H109: 266.90 | I109: 272.45 | J109: 277.80 | K109: 267.1 | L109: 256.2 | M109: 19.54675
A110: 101 | B110: IEX | C110: 152.2 | D110: 151.17 | E110: 149.53 | F110: 146.87 | G110: 145.23 | H110: 153.83 | I110: 155.47 | J110: 158.13 | K110: 152.8 | L110: 148.5 | M110: 70.08028
A111: 102 | B111: INDHOTEL | C111: 320.9 | D111: 318.32 | E111: 314.73 | F111: 308.57 | G111: 304.98 | H111: 324.48 | I111: 328.07 | J111: 334.23 | K111: 321.9 | L111: 312.15 | M111: 22.39532
A112: 103 | B112: IOC | C112: 79.9 | D112: 79.70 | E112: 78.95 | F112: 78.00 | G112: 77.25 | H112: 80.65 | I112: 81.40 | J112: 82.35 | K112: 80.45 | L112: 78.75 | M112: 273.48566
A113: 104 | B113: IRCTC | C113: 603.45 | D113: 601.92 | E113: 597.23 | F113: 591.02 | G113: 586.33 | H113: 608.13 | I113: 612.82 | J113: 619.03 | K113: 606.6 | L113: 595.7 | M113: 9.214
A114: 105 | B114: IGL | C114: 427.5 | D114: 425.42 | E114: 418.88 | F114: 410.27 | G114: 403.73 | H114: 434.03 | I114: 440.57 | J114: 449.18 | K114: 431.95 | L114: 416.8 | M114: 10.79689
A115: 106 | B115: INDUSTOWER | C115: 153.2 | D115: 151.67 | E115: 148.63 | F115: 144.07 | G115: 141.03 | H115: 156.23 | I115: 159.27 | J115: 163.83 | K115: 154.7 | L115: 147.1 | M115: 42.69554
A116: 107 | B116: INDUSINDBK | C116: 1017.8 | D116: 1020.55 | E116: 999.15 | F116: 980.50 | G116: 959.10 | H116: 1039.20 | I116: 1060.60 | J116: 1079.25 | K116: 1041.95 | L116: 1001.9 | M116: 92.6121
A117: 108 | B117: NAUKRI | C117: 3425.85 | D117: 3405.53 | E117: 3365.32 | F117: 3304.78 | G117: 3264.57 | H117: 3466.07 | I117: 3506.28 | J117: 3566.82 | K117: 3445.75 | L117: 3345 | M117: 2.47863
A118: 109 | B118: INFY | C118: 1404.1 | D118: 1406.87 | E118: 1395.93 | F118: 1387.77 | G118: 1376.83 | H118: 1415.03 | I118: 1425.97 | J118: 1434.13 | K118: 1417.8 | L118: 1398.7 | M118: 73.23117
A119: 110 | B119: INDIGO | C119: 1865.35 | D119: 1863.52 | E119: 1844.23 | F119: 1823.12 | G119: 1803.83 | H119: 1884.63 | I119: 1903.92 | J119: 1925.03 | K119: 1882.8 | L119: 1842.4 | M119: 3.77044
A120: 111 | B120: IPCALAB | C120: 781.3 | D120: 782.93 | E120: 765.87 | F120: 750.43 | G120: 733.37 | H120: 798.37 | I120: 815.43 | J120: 830.87 | K120: 800 | L120: 767.5 | M120: 2.88791
A121: 112 | B121: JSWENERGY | C121: 254.65 | D121: 253.10 | E121: 248.75 | F121: 242.85 | G121: 238.50 | H121: 259.00 | I121: 263.35 | J121: 269.25 | K121: 257.45 | L121: 247.2 | M121: 14.38489
A122: 113 | B122: JSWSTEEL | C122: 662.4 | D122: 662.38 | E122: 649.07 | F122: 635.73 | G122: 622.42 | H122: 675.72 | I122: 689.03 | J122: 702.37 | K122: 675.7 | L122: 649.05 | M122: 25.12474
A123: 114 | B123: JINDALSTEL | C123: 553.7 | D123: 559.37 | E123: 544.33 | F123: 534.97 | G123: 519.93 | H123: 568.73 | I123: 583.77 | J123: 593.13 | K123: 574.4 | L123: 550 | M123: 42.08636
A124: 115 | B124: JUBLFOOD | C124: 425.35 | D124: 427.62 | E124: 419.23 | F124: 413.12 | G124: 404.73 | H124: 433.73 | I124: 442.12 | J124: 448.23 | K124: 436 | L124: 421.5 | M124: 25.44948
A125: 116 | B125: KOTAKBANK | C125: 1663.55 | D125: 1663.53 | E125: 1648.22 | F125: 1632.88 | G125: 1617.57 | H125: 1678.87 | I125: 1694.18 | J125: 1709.52 | K125: 1678.85 | L125: 1648.2 | M125: 36.32063
A126: 117 | B126: L&TFH | C126: 85.75 | D126: 85.37 | E126: 84.23 | F126: 82.72 | G126: 81.58 | H126: 86.88 | I126: 88.02 | J126: 89.53 | K126: 86.5 | L126: 83.85 | M126: 32.39101
A127: 118 | B127: LTTS | C127: 3481.9 | D127: 3486.07 | E127: 3448.13 | F127: 3414.37 | G127: 3376.43 | H127: 3519.83 | I127: 3557.77 | J127: 3591.53 | K127: 3524 | L127: 3452.3 | M127: 1.78263
A128: 119 | B128: LICHSGFIN | C128: 347.1 | D128: 345.32 | E128: 340.83 | F128: 334.57 | G128: 330.08 | H128: 351.58 | I128: 356.07 | J128: 362.33 | K128: 349.8 | L128: 339.05 | M128: 9.06941
A129: 120 | B129: LTIM | C129: 4553.05 | D129: 4545.97 | E129: 4487.08 | F129: 4421.12 | G129: 4362.23 | H129: 4611.93 | I129: 4670.82 | J129: 4736.78 | K129: 4604.85 | L129: 4480 | M129: 4.16508
A130: 121 | B130: LT | C130: 2173.6 | D130: 2164.20 | E130: 2141.40 | F130: 2109.20 | G130: 2086.40 | H130: 2196.40 | I130: 2219.20 | J130: 2251.40 | K130: 2187 | L130: 2132 | M130: 29.46792
A131: 122 | B131: LAURUSLABS | C131: 305.75 | D131: 306.95 | E131: 302.80 | F131: 299.85 | G131: 295.70 | H131: 309.90 | I131: 314.05 | J131: 317.00 | K131: 311.1 | L131: 304 | M131: 12.12826
A132: 123 | B132: LICI | C132: 572.45 | D132: 574.03 | E132: 569.17 | F132: 565.88 | G132: 561.02 | H132: 577.32 | I132: 582.18 | J132: 585.47 | K132: 578.9 | L132: 570.75 | M132: 9.72
A133: 124 | B133: LINDEINDIA | C133: 3717.8 | D133: 3701.62 | E133: 3668.33 | F133: 3618.87 | G133: 3585.58 | H133: 3751.08 | I133: 3784.37 | J133: 3833.83 | K133: 3734.9 | L133: 3652.15 | M133: 0.36144
A134: 125 | B134: LUPIN | C134: 666.2 | D134: 662.58 | E134: 657.17 | F134: 648.13 | G134: 642.72 | H134: 671.62 | I134: 677.03 | J134: 686.07 | K134: 668 | L134: 653.55 | M134: 5.9696
A135: 126 | B135: MRF | C135: 83140.7 | D135: 82673.92 | E135: 81846.83 | F135: 80552.97 | G135: 79725.88 | H135: 83967.78 | I135: 84794.87 | J135: 86088.73 | K135: 83501 | L135: 81380.05 | M135: 0.07114
A136: 127 | B136: M&MFIN | C136: 242.15 | D136: 241.93 | E136: 239.52 | F136: 236.88 | G136: 234.47 | H136: 244.57 | I136: 246.98 | J136: 249.62 | K136: 244.35 | L136: 239.3 | M136: 21.68829
A137: 128 | B137: M&M | C137: 1167.05 | D137: 1160.82 | E137: 1146.38 | F137: 1125.72 | G137: 1111.28 | H137: 1181.48 | I137: 1195.92 | J137: 1216.58 | K137: 1175.25 | L137: 1140.15 | M137: 36.0448
A138: 129 | B138: MARICO | C138: 488.6 | D138: 487.20 | E138: 483.40 | F138: 478.20 | G138: 474.40 | H138: 492.40 | I138: 496.20 | J138: 501.40 | K138: 491 | L138: 482 | M138: 11.0468
A139: 130 | B139: MARUTI | C139: 8437.45 | D139: 8460.62 | E139: 8387.83 | F139: 8338.22 | G139: 8265.43 | H139: 8510.23 | I139: 8583.02 | J139: 8632.63 | K139: 8533.4 | L139: 8411 | M139: 3.40261
A140: 131 | B140: MFSL | C140: 646.55 | D140: 645.37 | E140: 636.33 | F140: 626.12 | G140: 617.08 | H140: 655.58 | I140: 664.62 | J140: 674.83 | K140: 654.4 | L140: 635.15 | M140: 4.04928
A141: 132 | B141: MAXHEALTH | C141: 464.4 | D141: 464.32 | E141: 457.68 | F141: 450.97 | G141: 444.33 | H141: 471.03 | I141: 477.67 | J141: 484.38 | K141: 470.95 | L141: 457.6 | M141: 17.94019
A142: 133 | B142: MSUMI | C142: 46.55 | D142: 46.85 | E142: 45.70 | F142: 44.85 | G142: 43.70 | H142: 47.70 | I142: 48.85 | J142: 49.70 | K142: 48 | L142: 46 | M142: 83.69979
A143: 134 | B143: MPHASIS | C143: 1905.05 | D143: 1893.62 | E143: 1874.38 | F143: 1843.72 | G143: 1824.48 | H143: 1924.28 | I143: 1943.52 | J143: 1974.18 | K143: 1912.85 | L143: 1862.95 | M143: 3.33657
A144: 135 | B144: MUTHOOTFIN | C144: 930.3 | D144: 926.13 | E144: 915.42 | F144: 900.53 | G144: 889.82 | H144: 941.02 | I144: 951.73 | J144: 966.62 | K144: 936.85 | L144: 911.25 | M144: 3.33014
A145: 136 | B145: NTPC | C145: 179.6 | D145: 178.85 | E145: 177.70 | F145: 175.80 | G145: 174.65 | H145: 180.75 | I145: 181.90 | J145: 183.80 | K145: 180 | L145: 176.95 | M145: 94.05016
A146: 137 | B146: NATIONALUM | C146: 82 | D146: 81.55 | E146: 80.75 | F146: 79.50 | G146: 78.70 | H146: 82.80 | I146: 83.60 | J146: 84.85 | K146: 82.35 | L146: 80.3 | M146: 151.27247
A147: 138 | B147: NAVINFLUOR | C147: 4118.6 | D147: 4126.50 | E147: 4083.00 | F147: 4047.40 | G147: 4003.90 | H147: 4162.10 | I147: 4205.60 | J147: 4241.20 | K147: 4170 | L147: 4090.9 | M147: 0.54551
A148: 139 | B148: NESTLEIND | C148: 18450.65 | D148: 18306.13 | E148: 18112.27 | F148: 17773.88 | G148: 17580.02 | H148: 18644.52 | I148: 18838.38 | J148: 19176.77 | K148: 18500 | L148: 17967.75 | M148: 0.83043
A149: 140 | B149: NAM-INDIA | C149: 215.65 | D149: 217.17 | E149: 213.63 | F149: 211.62 | G149: 208.08 | H149: 219.18 | I149: 222.72 | J149: 224.73 | K149: 220.7 | L149: 215.15 | M149: 3.65725
A150: 141 | B150: OBEROIRLTY | C150: 854.2 | D150: 852.10 | E150: 842.55 | F150: 830.90 | G150: 821.35 | H150: 863.75 | I150: 873.30 | J150: 884.95 | K150: 861.65 | L150: 840.45 | M150: 3.05799
A151: 142 | B151: ONGC | C151: 152.2 | D151: 151.20 | E151: 149.00 | F151: 145.80 | G151: 143.60 | H151: 154.40 | I151: 156.60 | J151: 159.80 | K151: 153.4 | L151: 148 | M151: 185.51936
A152: 143 | B152: OIL | C152: 249.5 | D152: 251.45 | E152: 245.05 | F152: 240.60 | G152: 234.20 | H152: 255.90 | I152: 262.30 | J152: 266.75 | K152: 257.85 | L152: 247 | M152: 19.40559
A153: 144 | B153: PAYTM | C153: 571.65 | D153: 570.90 | E153: 563.80 | F153: 555.95 | G153: 548.85 | H153: 578.75 | I153: 585.85 | J153: 593.70 | K153: 578 | L153: 563.05 | M153: 28.55637
A154: 145 | B154: OFSS | C154: 3205.4 | D154: 3213.63 | E154: 3185.97 | F154: 3166.53 | G154: 3138.87 | H154: 3233.07 | I154: 3260.73 | J154: 3280.17 | K154: 3241.3 | L154: 3194.2 | M154: 0.54494
A155: 146 | B155: POLICYBZR | C155: 581.8 | D155: 578.40 | E155: 565.50 | F155: 549.20 | G155: 536.30 | H155: 594.70 | I155: 607.60 | J155: 623.90 | K155: 591.3 | L155: 562.1 | M155: 30.83121
A156: 147 | B156: PIIND | C156: 2972.3 | D156: 2974.82 | E156: 2943.48 | F156: 2914.67 | G156: 2883.33 | H156: 3003.63 | I156: 3034.97 | J156: 3063.78 | K156: 3006.15 | L156: 2946 | M156: 2.04643
A157: 148 | B157: PAGEIND | C157: 37025.95 | D157: 37115.78 | E157: 36738.12 | F157: 36450.28 | G157: 36072.62 | H157: 37403.62 | I157: 37781.28 | J157: 38069.12 | K157: 37493.45 | L157: 36827.95 | M157: 0.11709
A158: 149 | B158: PATANJALI | C158: 945.5 | D158: 938.57 | E158: 923.13 | F158: 900.77 | G158: 885.33 | H158: 960.93 | I158: 976.37 | J158: 998.73 | K158: 954 | L158: 916.2 | M158: 6.53848
A159: 150 | B159: PERSISTENT | C159: 4480.7 | D159: 4508.90 | E159: 4433.80 | F159: 4386.90 | G159: 4311.80 | H159: 4555.80 | I159: 4630.90 | J159: 4677.80 | K159: 4584 | L159: 4462 | M159: 2.67466
A160: 151 | B160: PETRONET | C160: 237.85 | D160: 238.02 | E160: 236.23 | F160: 234.62 | G160: 232.83 | H160: 239.63 | I160: 241.42 | J160: 243.03 | K160: 239.8 | L160: 236.4 | M160: 41.26157
A161: 152 | B161: PIDILITIND | C161: 2341.2 | D161: 2339.17 | E161: 2314.13 | F161: 2287.07 | G161: 2262.03 | H161: 2366.23 | I161: 2391.27 | J161: 2418.33 | K161: 2364.2 | L161: 2312.1 | M161: 2.63331
A162: 153 | B162: POLYCAB | C162: 2877.3 | D162: 2894.17 | E162: 2852.13 | F162: 2826.97 | G162: 2784.93 | H162: 2919.33 | I162: 2961.37 | J162: 2986.53 | K162: 2936.2 | L162: 2869 | M162: 3.76887
A163: 154 | B163: POONAWALLA | C163: 281.3 | D163: 279.97 | E163: 276.33 | F163: 271.37 | G163: 267.73 | H163: 284.93 | I163: 288.57 | J163: 293.53 | K163: 283.6 | L163: 275 | M163: 12.94698
A164: 155 | B164: PFC | C164: 158.15 | D164: 157.88 | E164: 155.37 | F164: 152.58 | G164: 150.07 | H164: 160.67 | I164: 163.18 | J164: 165.97 | K164: 160.4 | L164: 155.1 | M164: 86.7855
A165: 156 | B165: POWERGRID | C165: 232.15 | D165: 231.13 | E165: 229.37 | F165: 226.58 | G165: 224.82 | H165: 233.92 | I165: 235.68 | J165: 238.47 | K165: 232.9 | L165: 228.35 | M165: 138.28363
A166: 157 | B166: PRESTIGE | C166: 400.25 | D166: 398.75 | E166: 393.50 | F166: 386.75 | G166: 381.50 | H166: 405.50 | I166: 410.75 | J166: 417.50 | K166: 404 | L166: 392 | M166: 3.30942
A167: 158 | B167: PGHH | C167: 13390.1 | D167: 13398.95 | E167: 13313.55 | F167: 13237.00 | G167: 13151.60 | H167: 13475.50 | I167: 13560.90 | J167: 13637.45 | K167: 13484.35 | L167: 13322.4 | M167: 0.021
A168: 159 | B168: PNB | C168: 48 | D168: 47.75 | E168: 47.05 | F168: 46.10 | G168: 45.40 | H168: 48.70 | I168: 49.40 | J168: 50.35 | K168: 48.45 | L168: 46.8 | M168: 563.23397
A169: 160 | B169: RECLTD | C169: 117.2 | D169: 116.65 | E169: 115.45 | F169: 113.70 | G169: 112.50 | H169: 118.40 | I169: 119.60 | J169: 121.35 | K169: 117.85 | L169: 114.9 | M169: 82.18711
A170: 161 | B170: RELIANCE | C170: 2225.9 | D170: 2227.37 | E170: 2200.73 | F170: 2175.57 | G170: 2148.93 | H170: 2252.53 | I170: 2279.17 | J170: 2304.33 | K170: 2254 | L170: 2202.2 | M170: 84.74595
A171: 162 | B171: SBICARD | C171: 727.7 | D171: 727.18 | E171: 720.62 | F171: 713.53 | G171: 706.97 | H171: 734.27 | I171: 740.83 | J171: 747.92 | K171: 733.75 | L171: 720.1 | M171: 4.78722
A172: 163 | B172: SBILIFE | C172: 1062.65 | D172: 1068.60 | E172: 1048.65 | F172: 1034.65 | G172: 1014.70 | H172: 1082.60 | I172: 1102.55 | J172: 1116.55 | K172: 1088.55 | L172: 1054.6 | M172: 10.23855
A173: 164 | B173: SRF | C173: 2309.65 | D173: 2296.68 | E173: 2275.97 | F173: 2242.28 | G173: 2221.57 | H173: 2330.37 | I173: 2351.08 | J173: 2384.77 | K173: 2317.4 | L173: 2263 | M173: 4.46515
A174: 165 | B174: MOTHERSON | C174: 68.5 | D174: 68.62 | E174: 65.93 | F174: 63.37 | G174: 60.68 | H174: 71.18 | I174: 73.87 | J174: 76.43 | K174: 71.3 | L174: 66.05 | M174: 4199.07533
A175: 166 | B175: SHREECEM | C175: 25472.95 | D175: 25385.43 | E175: 25122.47 | F175: 24771.98 | G175: 24509.02 | H175: 25735.92 | I175: 25998.88 | J175: 26349.37 | K175: 25648.4 | L175: 25034.95 | M175: 0.40517
A176: 167 | B176: SHRIRAMFIN | C176: 1250.2 | D176: 1246.58 | E176: 1232.32 | F176: 1214.43 | G176: 1200.17 | H176: 1264.47 | I176: 1278.73 | J176: 1296.62 | K176: 1260.85 | L176: 1228.7 | M176: 7.97714
A177: 168 | B177: SIEMENS | C177: 3263.8 | D177: 3247.50 | E177: 3220.20 | F177: 3176.60 | G177: 3149.30 | H177: 3291.10 | I177: 3318.40 | J177: 3362.00 | K177: 3274.8 | L177: 3203.9 | M177: 2.25349
A178: 169 | B178: SONACOMS | C178: 413.65 | D178: 414.82 | E178: 405.63 | F178: 397.62 | G178: 388.43 | H178: 422.83 | I178: 432.02 | J178: 440.03 | K178: 424 | L178: 406.8 | M178: 34.89547
A179: 170 | B179: SBIN | C179: 524.5 | D179: 522.72 | E179: 516.08 | F179: 507.67 | G179: 501.03 | H179: 531.13 | I179: 537.77 | J179: 546.18 | K179: 529.35 | L179: 514.3 | M179: 200.40008
A180: 171 | B180: SAIL | C180: 85.3 | D180: 85.55 | E180: 83.80 | F180: 82.30 | G180: 80.55 | H180: 87.05 | I180: 88.80 | J180: 90.30 | K180: 87.3 | L180: 84.05 | M180: 206.84933
A181: 172 | B181: SUNPHARMA | C181: 967.4 | D181: 963.03 | E181: 956.07 | F181: 944.73 | G181: 937.77 | H181: 974.37 | I181: 981.33 | J181: 992.67 | K181: 970 | L181: 951.7 | M181: 22.28093
A182: 173 | B182: SUNTV | C182: 435.05 | D182: 430.95 | E182: 423.15 | F182: 411.25 | G182: 403.45 | H182: 442.85 | I182: 450.65 | J182: 462.55 | K182: 438.75 | L182: 419.05 | M182: 6.39963
A183: 174 | B183: SYNGENE | C183: 579.45 | D183: 581.38 | E183: 574.12 | F183: 568.78 | G183: 561.52 | H183: 586.72 | I183: 593.98 | J183: 599.32 | K183: 588.65 | L183: 576.05 | M183: 3.80412
A184: 175 | B184: TVSMOTOR | C184: 1053.6 | D184: 1045.93 | E184: 1034.12 | F184: 1014.63 | G184: 1002.82 | H184: 1065.42 | I184: 1077.23 | J184: 1096.72 | K184: 1057.75 | L184: 1026.45 | M184: 7.47118
A185: 176 | B185: TATACHEM | C185: 958.5 | D185: 955.90 | E185: 945.85 | F185: 933.20 | G185: 923.15 | H185: 968.55 | I185: 978.60 | J185: 991.25 | K185: 965.95 | L185: 943.25 | M185: 6.3478
A186: 177 | B186: TATACOMM | C186: 1177.2 | D186: 1173.52 | E186: 1160.48 | F186: 1143.77 | G186: 1130.73 | H186: 1190.23 | I186: 1203.27 | J186: 1219.98 | K186: 1186.55 | L186: 1156.8 | M186: 1.89152
A187: 178 | B187: TCS | C187: 3185 | D187: 3192.27 | E187: 3164.73 | F187: 3144.47 | G187: 3116.93 | H187: 3212.53 | I187: 3240.07 | J187: 3260.33 | K187: 3219.8 | L187: 3172 | M187: 19.0106
A188: 179 | B188: TATACONSUM | C188: 694 | D188: 693.15 | E188: 689.85 | F188: 685.70 | G188: 682.40 | H188: 697.30 | I188: 700.60 | J188: 704.75 | K188: 696.45 | L188: 689 | M188: 9.74834
A189: 180 | B189: TATAELXSI | C189: 6115.1 | D189: 6095.33 | E189: 6050.77 | F189: 5986.43 | G189: 5941.87 | H189: 6159.67 | I189: 6204.23 | J189: 6268.57 | K189: 6139.9 | L189: 6031 | M189: 1.01504
A190: 181 | B190: TATAMOTORS | C190: 415.7 | D190: 413.07 | E190: 407.63 | F190: 399.57 | G190: 394.13 | H190: 421.13 | I190: 426.57 | J190: 434.63 | K190: 418.5 | L190: 405 | M190: 118.54885
A191: 182 | B191: TATAPOWER | C191: 203.4 | D191: 202.27 | E191: 199.98 | F191: 196.57 | G191: 194.28 | H191: 205.68 | I191: 207.97 | J191: 211.38 | K191: 204.55 | L191: 198.85 | M191: 74.83698
A192: 183 | B192: TATASTEEL | C192: 105.05 | D192: 105.33 | E192: 103.42 | F192: 101.78 | G192: 99.87 | H192: 106.97 | I192: 108.88 | J192: 110.52 | K192: 107.25 | L192: 103.7 | M192: 810.8834
A193: 184 | B193: TTML | C193: 58.7 | D193: 59.27 | E193: 57.53 | F193: 56.37 | G193: 54.63 | H193: 60.43 | I193: 62.17 | J193: 63.33 | K193: 61 | L193: 58.1 | M193: 16.80671
A194: 185 | B194: TECHM | C194: 1117.75 | D194: 1113.80 | E194: 1105.00 | F194: 1092.25 | G194: 1083.45 | H194: 1126.55 | I194: 1135.35 | J194: 1148.10 | K194: 1122.6 | L194: 1101.05 | M194: 23.96839
A195: 186 | B195: RAMCOCEM | C195: 717.1 | D195: 715.67 | E195: 710.33 | F195: 703.57 | G195: 698.23 | H195: 722.43 | I195: 727.77 | J195: 734.53 | K195: 721 | L195: 708.9 | M195: 2.21157
A196: 187 | B196: TITAN | C196: 2450.35 | D196: 2448.45 | E196: 2414.90 | F196: 2379.45 | G196: 2345.90 | H196: 2483.90 | I196: 2517.45 | J196: 2552.90 | K196: 2482 | L196: 2413 | M196: 23.17115
A197: 188 | B197: TORNTPHARM | C197: 1551.65 | D197: 1549.92 | E197: 1534.93 | F197: 1518.22 | G197: 1503.23 | H197: 1566.63 | I197: 1581.62 | J197: 1598.33 | K197: 1564.9 | L197: 1533.2 | M197: 3.39468
A198: 189 | B198: TORNTPOWER | C198: 545.6 | D198: 542.35 | E198: 536.70 | F198: 527.80 | G198: 522.15 | H198: 551.25 | I198: 556.90 | J198: 565.80 | K198: 548 | L198: 533.45 | M198: 3.91132
A199: 190 | B199: TRENT | C199: 1336.35 | D199: 1329.80 | E199: 1314.55 | F199: 1292.75 | G199: 1277.50 | H199: 1351.60 | I199: 1366.85 | J199: 1388.65 | K199: 1345.05 | L199: 1308 | M199: 4.75242
A200: 191 | B200: TRIDENT | C200: 28.55 | D200: 28.87 | E200: 28.18 | F200: 27.82 | G200: 27.13 | H200: 29.23 | I200: 29.92 | J200: 30.28 | K200: 29.55 | L200: 28.5 | M200: 51.76165
A201: 192 | B201: TIINDIA | C201: 2667.55 | D201: 2666.28 | E201: 2642.57 | F201: 2617.58 | G201: 2593.87 | H201: 2691.27 | I201: 2714.98 | J201: 2739.97 | K201: 2690 | L201: 2641.3 | M201: 2.07254
A202: 193 | B202: UPL | C202: 696.4 | D202: 698.10 | E202: 690.35 | F202: 684.30 | G202: 676.55 | H202: 704.15 | I202: 711.90 | J202: 717.95 | K202: 705.85 | L202: 692.05 | M202: 7.13926
A203: 194 | B203: ULTRACEMCO | C203: 7104.6 | D203: 7110.15 | E203: 7070.50 | F203: 7036.40 | G203: 6996.75 | H203: 7144.25 | I203: 7183.90 | J203: 7218.00 | K203: 7149.8 | L203: 7076.05 | M203: 4.59814
A204: 195 | B204: UNIONBANK | C204: 64.5 | D204: 64.47 | E204: 63.53 | F204: 62.57 | G204: 61.63 | H204: 65.43 | I204: 66.37 | J204: 67.33 | K204: 65.4 | L204: 63.5 | M204: 168.75112
A205: 196 | B205: UBL | C205: 1453.95 | D205: 1450.32 | E205: 1436.63 | F205: 1419.32 | G205: 1405.63 | H205: 1467.63 | I205: 1481.32 | J205: 1498.63 | K205: 1464 | L205: 1433 | M205: 3.39037
... 29 more rows

Sheet MidCap Intra
L5: Back To Main Page
A6: FOR INTRA DAY TRADING | K6: =Main!B10 -> 2023-03-17
A9: Sr.no | B9: Scrip | C9: CLOSE RATE | D9: Pivot Point | E9: Supports | H9: Resistances
E10: S1 | F10: S2 | G10: S3 | H10: R1 | I10: R2 | J10: R3 | K10: HIGH | L10: LOW | M10: Total Trade Quanity in Lakhs
A11: 1 | B11: 360ONE | C11: 433.1 | D11: 433.38 | E11: 427.37 | F11: 421.63 | G11: 415.62 | H11: 439.12 | I11: 445.13 | J11: 450.87 | K11: 439.4 | L11: 427.65 | M11: 1.51171
A12: 2 | B12: 3MINDIA | C12: 22982.45 | D12: 23111.38 | E12: 22722.77 | F12: 22463.08 | G12: 22074.47 | H12: 23371.07 | I12: 23759.68 | J12: 24019.37 | K12: 23500 | L12: 22851.7 | M12: 0.02827
A13: 3 | B13: ABB | C13: 3327.95 | D13: 3308.20 | E13: 3271.75 | F13: 3215.55 | G13: 3179.10 | H13: 3364.40 | I13: 3400.85 | J13: 3457.05 | K13: 3344.65 | L13: 3252 | M13: 2.57895
A14: 4 | B14: ACC | C14: 1750.3 | D14: 1746.80 | E14: 1723.60 | F14: 1696.90 | G14: 1673.70 | H14: 1773.50 | I14: 1796.70 | J14: 1823.40 | K14: 1770 | L14: 1720.1 | M14: 3.70585
A15: 5 | B15: AIAENG | C15: 2726.95 | D15: 2736.17 | E15: 2703.38 | F15: 2679.82 | G15: 2647.03 | H15: 2759.73 | I15: 2792.52 | J15: 2816.08 | K15: 2768.95 | L15: 2712.6 | M15: 0.25162
A16: 6 | B16: APLAPOLLO | C16: 1183.35 | D16: 1187.62 | E16: 1170.73 | F16: 1158.12 | G16: 1141.23 | H16: 1200.23 | I16: 1217.12 | J16: 1229.73 | K16: 1204.5 | L16: 1175 | M16: 2.47305
A17: 7 | B17: AUBANK | C17: 584 | D17: 582.27 | E17: 575.58 | F17: 567.17 | G17: 560.48 | H17: 590.68 | I17: 597.37 | J17: 605.78 | K17: 588.95 | L17: 573.85 | M17: 14.53328
A18: 8 | B18: AARTIDRUGS | C18: 322.65 | D18: 323.60 | E18: 317.30 | F18: 311.95 | G18: 305.65 | H18: 328.95 | I18: 335.25 | J18: 340.60 | K18: 329.9 | L18: 318.25 | M18: 0.83963
A19: 9 | B19: AAVAS | C19: 1735.3 | D19: 1736.43 | E19: 1723.87 | F19: 1712.43 | G19: 1699.87 | H19: 1747.87 | I19: 1760.43 | J19: 1771.87 | K19: 1749 | L19: 1725 | M19: 0.58328
A20: 10 | B20: ABBOTINDIA | C20: 20704 | D20: 20579.73 | E20: 20379.47 | F20: 20054.93 | G20: 19854.67 | H20: 20904.27 | I20: 21104.53 | J20: 21429.07 | K20: 20780 | L20: 20255.2 | M20: 0.06621
A21: 11 | B21: ADANIENT | C21: 1843.8 | D21: 1837.93 | E21: 1800.87 | F21: 1757.93 | G21: 1720.87 | H21: 1880.87 | I21: 1917.93 | J21: 1960.87 | K21: 1875 | L21: 1795 | M21: 65.09495
A22: 12 | B22: ADANIGREEN | C22: 777.4 | D22: 769.93 | E22: 762.47 | F22: 747.53 | G22: 740.07 | H22: 784.87 | I22: 792.33 | J22: 807.27 | K22: 777.4 | L22: 755 | M22: 30.38749
A23: 13 | B23: ADANIPORTS | C23: 679.6 | D23: 682.37 | E23: 672.38 | F23: 665.17 | G23: 655.18 | H23: 689.58 | I23: 699.57 | J23: 706.78 | K23: 692.35 | L23: 675.15 | M23: 129.92236
A24: 14 | B24: ATGL | C24: 888.4 | D24: 901.47 | E24: 866.93 | F24: 845.47 | G24: 810.93 | H24: 922.93 | I24: 957.47 | J24: 978.93 | K24: 936 | L24: 880 | M24: 25.59661
A25: 15 | B25: ADANITRANS | C25: 973.7 | D25: 951.57 | E25: 928.38 | F25: 883.07 | G25: 859.88 | H25: 996.88 | I25: 1020.07 | J25: 1065.38 | K25: 974.75 | L25: 906.25 | M25: 31.51991
A26: 16 | B26: AWL | C26: 420.65 | D26: 421.95 | E26: 412.90 | F26: 405.15 | G26: 396.10 | H26: 429.70 | I26: 438.75 | J26: 446.50 | K26: 431 | L26: 414.2 | M26: 27.31224
A27: 17 | B27: ABCAPITAL | C27: 148.8 | D27: 147.35 | E27: 145.25 | F27: 141.70 | G27: 139.60 | H27: 150.90 | I27: 153.00 | J27: 156.55 | K27: 149.45 | L27: 143.8 | M27: 22.5879
A28: 18 | B28: ABFRL | C28: 215 | D28: 213.97 | E28: 210.38 | F28: 205.77 | G28: 202.18 | H28: 218.58 | I28: 222.17 | J28: 226.78 | K28: 217.55 | L28: 209.35 | M28: 26.23576
A29: 19 | B29: ABSLAMC | C29: 356.65 | D29: 356.07 | E29: 354.13 | F29: 351.62 | G29: 349.68 | H29: 358.58 | I29: 360.52 | J29: 363.03 | K29: 358 | L29: 353.55 | M29: 0.95226
A30: 20 | B30: AEGISCHEM | C30: 374.75 | D30: 374.42 | E30: 370.08 | F30: 365.42 | G30: 361.08 | H30: 379.08 | I30: 383.42 | J30: 388.08 | K30: 378.75 | L30: 369.75 | M30: 4.41032
A31: 21 | B31: AETHER | C31: 862.7 | D31: 862.03 | E31: 854.67 | F31: 846.63 | G31: 839.27 | H31: 870.07 | I31: 877.43 | J31: 885.47 | K31: 869.4 | L31: 854 | M31: 0.13514
A32: 22 | B32: AFFLE | C32: 931.7 | D32: 938.28 | E32: 923.42 | F32: 915.13 | G32: 900.27 | H32: 946.57 | I32: 961.43 | J32: 969.72 | K32: 953.15 | L32: 930 | M32: 2.86734
A33: 23 | B33: AJANTPHARM | C33: 1196.55 | D33: 1196.17 | E33: 1184.38 | F33: 1172.22 | G33: 1160.43 | H33: 1208.33 | I33: 1220.12 | J33: 1232.28 | K33: 1207.95 | L33: 1184 | M33: 0.61293
A34: 24 | B34: APLLTD | C34: 486.55 | D34: 489.95 | E34: 477.30 | F34: 468.05 | G34: 455.40 | H34: 499.20 | I34: 511.85 | J34: 521.10 | K34: 502.6 | L34: 480.7 | M34: 1.73234
A35: 25 | B35: ALKEM | C35: 3155.05 | D35: 3125.77 | E35: 3081.18 | F35: 3007.32 | G35: 2962.73 | H35: 3199.63 | I35: 3244.22 | J35: 3318.08 | K35: 3170.35 | L35: 3051.9 | M35: 0.73462
A36: 26 | B36: ALKYLAMINE | C36: 2314 | D36: 2329.33 | E36: 2293.67 | F36: 2273.33 | G36: 2237.67 | H36: 2349.67 | I36: 2385.33 | J36: 2405.67 | K36: 2365 | L36: 2309 | M36: 0.18705
A37: 27 | B37: ALOKINDS | C37: 12.95 | D37: 13.08 | E37: 12.67 | F37: 12.38 | G37: 11.97 | H37: 13.37 | I37: 13.78 | J37: 14.07 | K37: 13.5 | L37: 12.8 | M37: 125.65756
A38: 28 | B38: AMARAJABAT | C38: 572.6 | D38: 570.58 | E38: 565.42 | F38: 558.23 | G38: 553.07 | H38: 577.77 | I38: 582.93 | J38: 590.12 | K38: 575.75 | L38: 563.4 | M38: 2.17586
A39: 29 | B39: AMBER | C39: 1925.25 | D39: 1917.12 | E39: 1903.23 | F39: 1881.22 | G39: 1867.33 | H39: 1939.13 | I39: 1953.02 | J39: 1975.03 | K39: 1931 | L39: 1895.1 | M39: 0.46472
A40: 30 | B40: AMBUJACEM | C40: 378.8 | D40: 374.35 | E40: 364.70 | F40: 350.60 | G40: 340.95 | H40: 388.45 | I40: 398.10 | J40: 412.20 | K40: 384 | L40: 360.25 | M40: 172.63261
A41: 31 | B41: ANGELONE | C41: 1045.25 | D41: 1058.67 | E41: 1027.33 | F41: 1009.42 | G41: 978.08 | H41: 1076.58 | I41: 1107.92 | J41: 1125.83 | K41: 1090 | L41: 1040.75 | M41: 4.26301
A42: 32 | B42: ANURAS | C42: 735.2 | D42: 735.25 | E42: 729.05 | F42: 722.90 | G42: 716.70 | H42: 741.40 | I42: 747.60 | J42: 753.75 | K42: 741.45 | L42: 729.1 | M42: 2.12912
A43: 33 | B43: APOLLOHOSP | C43: 4319.05 | D43: 4318.35 | E43: 4266.70 | F43: 4214.35 | G43: 4162.70 | H43: 4370.70 | I43: 4422.35 | J43: 4474.70 | K43: 4370 | L43: 4266 | M43: 3.00181
A44: 34 | B44: APOLLOTYRE | C44: 308.95 | D44: 308.73 | E44: 305.97 | F44: 302.98 | G44: 300.22 | H44: 311.72 | I44: 314.48 | J44: 317.47 | K44: 311.5 | L44: 305.75 | M44: 16.75202
A45: 35 | B45: APTUS | C45: 243.8 | D45: 244.32 | E45: 240.53 | F45: 237.27 | G45: 233.48 | H45: 247.58 | I45: 251.37 | J45: 254.63 | K45: 248.1 | L45: 241.05 | M45: 2.84434
A46: 36 | B46: ASAHIINDIA | C46: 467.5 | D46: 471.68 | E46: 459.37 | F46: 451.23 | G46: 438.92 | H46: 479.82 | I46: 492.13 | J46: 500.27 | K46: 484 | L46: 463.55 | M46: 1.16785
A47: 37 | B47: ASHOKLEY | C47: 139.75 | D47: 138.87 | E47: 137.68 | F47: 135.62 | G47: 134.43 | H47: 140.93 | I47: 142.12 | J47: 144.18 | K47: 140.05 | L47: 136.8 | M47: 101.23191
A48: 38 | B48: ASIANPAINT | C48: 2893.25 | D48: 2873.98 | E48: 2847.97 | F48: 2802.68 | G48: 2776.67 | H48: 2919.27 | I48: 2945.28 | J48: 2990.57 | K48: 2900 | L48: 2828.7 | M48: 17.55487
A49: 39 | B49: ASTERDM | C49: 230.35 | D49: 230.22 | E49: 226.53 | F49: 222.72 | G49: 219.03 | H49: 234.03 | I49: 237.72 | J49: 241.53 | K49: 233.9 | L49: 226.4 | M49: 1.14754
A50: 40 | B50: ASTRAZEN | C50: 3267.15 | D50: 3265.55 | E50: 3228.00 | F50: 3188.85 | G50: 3151.30 | H50: 3304.70 | I50: 3342.25 | J50: 3381.40 | K50: 3303.1 | L50: 3226.4 | M50: 0.02441
A51: 41 | B51: ASTRAL | C51: 1334 | D51: 1339.97 | E51: 1323.03 | F51: 1312.07 | G51: 1295.13 | H51: 1350.93 | I51: 1367.87 | J51: 1378.83 | K51: 1356.9 | L51: 1329 | M51: 2.588
A52: 42 | B52: ATUL | C52: 6945.45 | D52: 6896.03 | E52: 6795.07 | F52: 6644.68 | G52: 6543.72 | H52: 7046.42 | I52: 7147.38 | J52: 7297.77 | K52: 6997 | L52: 6745.65 | M52: 0.58577
A53: 43 | B53: AUROPHARMA | C53: 473.25 | D53: 469.42 | E53: 461.83 | F53: 450.42 | G53: 442.83 | H53: 480.83 | I53: 488.42 | J53: 499.83 | K53: 477 | L53: 458 | M53: 37.2123
A54: 44 | B54: AVANTIFEED | C54: 344.95 | D54: 348.32 | E54: 339.63 | F54: 334.32 | G54: 325.63 | H54: 353.63 | I54: 362.32 | J54: 367.63 | K54: 357 | L54: 343 | M54: 6.31683
A55: 45 | B55: DMART | C55: 3382.15 | D55: 3376.43 | E55: 3297.72 | F55: 3213.28 | G55: 3134.57 | H55: 3460.87 | I55: 3539.58 | J55: 3624.02 | K55: 3455.15 | L55: 3292 | M55: 3.53906
A56: 46 | B56: AXISBANK | C56: 830.55 | D56: 827.58 | E56: 817.27 | F56: 803.98 | G56: 793.67 | H56: 840.87 | I56: 851.18 | J56: 864.47 | K56: 837.9 | L56: 814.3 | M56: 87.91383
A57: 47 | B57: BASF | C57: 2282.1 | D57: 2273.73 | E57: 2258.47 | F57: 2234.83 | G57: 2219.57 | H57: 2297.37 | I57: 2312.63 | J57: 2336.27 | K57: 2289 | L57: 2250.1 | M57: 0.18945
A58: 48 | B58: BEML | C58: 1242.4 | D58: 1207.13 | E58: 1163.27 | F58: 1084.13 | G58: 1040.27 | H58: 1286.27 | I58: 1330.13 | J58: 1409.27 | K58: 1251 | L58: 1128 | M58: 5.50817
A59: 49 | B59: BSE | C59: 440.4 | D59: 444.10 | E59: 436.30 | F59: 432.20 | G59: 424.40 | H59: 448.20 | I59: 456.00 | J59: 460.10 | K59: 451.9 | L59: 440 | M59: 7.46179
A60: 50 | B60: BAJAJ-AUTO | C60: 3800.2 | D60: 3784.05 | E60: 3757.10 | F60: 3714.00 | G60: 3687.05 | H60: 3827.15 | I60: 3854.10 | J60: 3897.20 | K60: 3811 | L60: 3740.95 | M60: 3.77544
A61: 51 | B61: BAJAJELEC | C61: 1076.95 | D61: 1074.55 | E61: 1061.10 | F61: 1045.25 | G61: 1031.80 | H61: 1090.40 | I61: 1103.85 | J61: 1119.70 | K61: 1088 | L61: 1058.7 | M61: 0.28023
A62: 52 | B62: BAJFINANCE | C62: 5715.1 | D62: 5711.70 | E62: 5668.40 | F62: 5621.70 | G62: 5578.40 | H62: 5758.40 | I62: 5801.70 | J62: 5848.40 | K62: 5755 | L62: 5665 | M62: 8.84963
A63: 53 | B63: BAJAJFINSV | C63: 1293.6 | D63: 1289.38 | E63: 1274.77 | F63: 1255.93 | G63: 1241.32 | H63: 1308.22 | I63: 1322.83 | J63: 1341.67 | K63: 1304 | L63: 1270.55 | M63: 15.39281
A64: 54 | B64: BAJAJHLDNG | C64: 6113.35 | D64: 6086.58 | E64: 6027.82 | F64: 5942.28 | G64: 5883.52 | H64: 6172.12 | I64: 6230.88 | J64: 6316.42 | K64: 6145.35 | L64: 6001.05 | M64: 0.24489
A65: 55 | B65: BALAMINES | C65: 2003.7 | D65: 2021.22 | E65: 1980.48 | F65: 1957.27 | G65: 1916.53 | H65: 2044.43 | I65: 2085.17 | J65: 2108.38 | K65: 2061.95 | L65: 1998 | M65: 0.67526
A66: 56 | B66: BALKRISIND | C66: 1980.15 | D66: 1970.63 | E66: 1953.22 | F66: 1926.28 | G66: 1908.87 | H66: 1997.57 | I66: 2014.98 | J66: 2041.92 | K66: 1988.05 | L66: 1943.7 | M66: 1.62807
A67: 57 | B67: BALRAMCHIN | C67: 389.15 | D67: 387.72 | E67: 383.28 | F67: 377.42 | G67: 372.98 | H67: 393.58 | I67: 398.02 | J67: 403.88 | K67: 392.15 | L67: 381.85 | M67: 12.85756
A68: 58 | B68: BANDHANBNK | C68: 204.4 | D68: 202.65 | E68: 199.50 | F68: 194.60 | G68: 191.45 | H68: 207.55 | I68: 210.70 | J68: 215.60 | K68: 205.8 | L68: 197.75 | M68: 94.37354
A69: 59 | B69: BANKBARODA | C69: 159.75 | D69: 158.93 | E69: 156.42 | F69: 153.08 | G69: 150.57 | H69: 162.27 | I69: 164.78 | J69: 168.12 | K69: 161.45 | L69: 155.6 | M69: 242.91234
A70: 60 | B70: BANKINDIA | C70: 71.4 | D70: 70.40 | E70: 68.90 | F70: 66.40 | G70: 64.90 | H70: 72.90 | I70: 74.40 | J70: 76.90 | K70: 71.9 | L70: 67.9 | M70: 178.8391
A71: 61 | B71: MAHABANK | C71: 25.2 | D71: 24.85 | E71: 24.35 | F71: 23.50 | G71: 23.00 | H71: 25.70 | I71: 26.20 | J71: 27.05 | K71: 25.35 | L71: 24 | M71: 129.35251
A72: 62 | B72: BATAINDIA | C72: 1407.9 | D72: 1403.78 | E72: 1393.12 | F72: 1378.33 | G72: 1367.67 | H72: 1418.57 | I72: 1429.23 | J72: 1444.02 | K72: 1414.45 | L72: 1389 | M72: 2.84712
A73: 63 | B73: BAYERCROP | C73: 4031.3 | D73: 4043.33 | E73: 4002.02 | F73: 3972.73 | G73: 3931.42 | H73: 4072.62 | I73: 4113.93 | J73: 4143.22 | K73: 4084.65 | L73: 4014.05 | M73: 0.1034
A74: 64 | B74: BERGEPAINT | C74: 603.7 | D74: 599.65 | E74: 594.30 | F74: 584.90 | G74: 579.55 | H74: 609.05 | I74: 614.40 | J74: 623.80 | K74: 605 | L74: 590.25 | M74: 14.8168
A75: 65 | B75: BDL | C75: 899.2 | D75: 900.00 | E75: 888.00 | F75: 876.80 | G75: 864.80 | H75: 911.20 | I75: 923.20 | J75: 934.40 | K75: 912 | L75: 888.8 | M75: 5.73996
A76: 66 | B76: BEL | C76: 91.9 | D76: 91.42 | E76: 90.13 | F76: 88.37 | G76: 87.08 | H76: 93.18 | I76: 94.47 | J76: 96.23 | K76: 92.7 | L76: 89.65 | M76: 122.78142
A77: 67 | B77: BHARATFORG | C77: 788.5 | D77: 786.42 | E77: 778.18 | F77: 767.87 | G77: 759.63 | H77: 796.73 | I77: 804.97 | J77: 815.28 | K77: 794.65 | L77: 776.1 | M77: 9.6079
A78: 68 | B78: BHEL | C78: 75.6 | D78: 74.95 | E78: 73.90 | F78: 72.20 | G78: 71.15 | H78: 76.65 | I78: 77.70 | J78: 79.40 | K78: 76 | L78: 73.25 | M78: 107.50873
A79: 69 | B79: BPCL | C79: 350.9 | D79: 345.93 | E79: 339.12 | F79: 327.33 | G79: 320.52 | H79: 357.72 | I79: 364.53 | J79: 376.32 | K79: 352.75 | L79: 334.15 | M79: 182.87315
A80: 70 | B80: BHARATRAS | C80: 8586.85 | D80: 8522.33 | E80: 8344.52 | F80: 8102.18 | G80: 7924.37 | H80: 8764.67 | I80: 8942.48 | J80: 9184.82 | K80: 8700.15 | L80: 8280 | M80: 0.00996
A81: 71 | B81: BHARTIARTL | C81: 745.95 | D81: 749.48 | E81: 739.97 | F81: 733.98 | G81: 724.47 | H81: 755.47 | I81: 764.98 | J81: 770.97 | K81: 759 | L81: 743.5 | M81: 74.65693
A82: 72 | B82: BIOCON | C82: 221.85 | D82: 222.83 | E82: 220.02 | F82: 218.18 | G82: 215.37 | H82: 224.67 | I82: 227.48 | J82: 229.32 | K82: 225.65 | L82: 221 | M82: 26.54387
A83: 73 | B83: BIRLACORPN | C83: 862.4 | D83: 860.72 | E83: 850.53 | F83: 838.67 | G83: 828.48 | H83: 872.58 | I83: 882.77 | J83: 894.63 | K83: 870.9 | L83: 848.85 | M83: 1.02928
A84: 74 | B84: BSOFT | C84: 270.85 | D84: 270.40 | E84: 264.25 | F84: 257.65 | G84: 251.50 | H84: 277.00 | I84: 283.15 | J84: 289.75 | K84: 276.55 | L84: 263.8 | M84: 17.49445
A85: 75 | B85: BLUEDART | C85: 6005.05 | D85: 6033.35 | E85: 5932.00 | F85: 5858.95 | G85: 5757.60 | H85: 6106.40 | I85: 6207.75 | J85: 6280.80 | K85: 6134.7 | L85: 5960.3 | M85: 0.19821
A86: 76 | B86: BLUESTARCO | C86: 1420.6 | D86: 1441.17 | E86: 1389.68 | F86: 1358.77 | G86: 1307.28 | H86: 1472.08 | I86: 1523.57 | J86: 1554.48 | K86: 1492.65 | L86: 1410.25 | M86: 0.90406
A87: 77 | B87: BBTC | C87: 864.45 | D87: 862.45 | E87: 857.90 | F87: 851.35 | G87: 846.80 | H87: 869.00 | I87: 873.55 | J87: 880.10 | K87: 867 | L87: 855.9 | M87: 0.18702
A88: 78 | B88: BORORENEW | C88: 440.05 | D88: 440.03 | E88: 434.02 | F88: 427.98 | G88: 421.97 | H88: 446.07 | I88: 452.08 | J88: 458.12 | K88: 446.05 | L88: 434 | M88: 1.56863
A89: 79 | B89: BOSCHLTD | C89: 18118.35 | D89: 18093.98 | E89: 17972.97 | F89: 17827.58 | G89: 17706.57 | H89: 18239.37 | I89: 18360.38 | J89: 18505.77 | K89: 18215 | L89: 17948.6 | M89: 0.246
A90: 80 | B90: BRIGADE | C90: 451.6 | D90: 452.53 | E90: 448.07 | F90: 444.53 | G90: 440.07 | H90: 456.07 | I90: 460.53 | J90: 464.07 | K90: 457 | L90: 449 | M90: 0.59819
A91: 81 | B91: BCG | C91: 17.45 | D91: 18.00 | E91: 16.70 | F91: 15.95 | G91: 14.65 | H91: 18.75 | I91: 20.05 | J91: 20.80 | K91: 19.3 | L91: 17.25 | M91: 545.44824
A92: 82 | B92: BRITANNIA | C92: 4311.2 | D92: 4293.73 | E92: 4267.47 | F92: 4223.73 | G92: 4197.47 | H92: 4337.47 | I92: 4363.73 | J92: 4407.47 | K92: 4320 | L92: 4250 | M92: 2.60044
A93: 83 | B93: MAPMYINDIA | C93: 1073.2 | D93: 1080.05 | E93: 1059.10 | F93: 1045.00 | G93: 1024.05 | H93: 1094.15 | I93: 1115.10 | J93: 1129.20 | K93: 1101 | L93: 1065.95 | M93: 0.39361
A94: 84 | B94: CCL | C94: 566.8 | D94: 563.93 | E94: 557.87 | F94: 548.93 | G94: 542.87 | H94: 572.87 | I94: 578.93 | J94: 587.87 | K94: 570 | L94: 555 | M94: 0.93231
A95: 85 | B95: CESC | C95: 68.9 | D95: 69.13 | E95: 68.42 | F95: 67.93 | G95: 67.22 | H95: 69.62 | I95: 70.33 | J95: 70.82 | K95: 69.85 | L95: 68.65 | M95: 12.35189
A96: 86 | B96: CGPOWER | C96: 290.8 | D96: 289.43 | E96: 284.87 | F96: 278.93 | G96: 274.37 | H96: 295.37 | I96: 299.93 | J96: 305.87 | K96: 294 | L96: 283.5 | M96: 17.72334
A97: 87 | B97: CRISIL | C97: 3097.4 | D97: 3143.47 | E97: 3023.93 | F97: 2950.47 | G97: 2830.93 | H97: 3216.93 | I97: 3336.47 | J97: 3409.93 | K97: 3263 | L97: 3070 | M97: 0.3038
A98: 88 | B98: CSBBANK | C98: 224.15 | D98: 222.82 | E98: 219.88 | F98: 215.62 | G98: 212.68 | H98: 227.08 | I98: 230.02 | J98: 234.28 | K98: 225.75 | L98: 218.55 | M98: 1.50371
A99: 89 | B99: CAMPUS | C99: 378.3 | D99: 381.62 | E99: 373.23 | F99: 368.17 | G99: 359.78 | H99: 386.68 | I99: 395.07 | J99: 400.13 | K99: 390 | L99: 376.55 | M99: 2.07733
A100: 90 | B100: CANFINHOME | C100: 521.15 | D100: 518.60 | E100: 511.10 | F100: 501.05 | G100: 493.55 | H100: 528.65 | I100: 536.15 | J100: 546.20 | K100: 526.1 | L100: 508.55 | M100: 4.76795
A101: 91 | B101: CANBK | C101: 281.65 | D101: 280.98 | E101: 276.37 | F101: 271.08 | G101: 266.47 | H101: 286.27 | I101: 290.88 | J101: 296.17 | K101: 285.6 | L101: 275.7 | M101: 98.40727
A102: 92 | B102: CAPLIPOINT | C102: 613.8 | D102: 618.88 | E102: 604.92 | F102: 596.03 | G102: 582.07 | H102: 627.77 | I102: 641.73 | J102: 650.62 | K102: 632.85 | L102: 610 | M102: 0.86012
A103: 93 | B103: CGCL | C103: 621.25 | D103: 623.72 | E103: 618.53 | F103: 615.82 | G103: 610.63 | H103: 626.43 | I103: 631.62 | J103: 634.33 | K103: 628.9 | L103: 621 | M103: 0.88299
A104: 94 | B104: CARBORUNIV | C104: 973.25 | D104: 977.73 | E104: 961.72 | F104: 950.18 | G104: 934.17 | H104: 989.27 | I104: 1005.28 | J104: 1016.82 | K104: 993.75 | L104: 966.2 | M104: 0.57032
A105: 95 | B105: CASTROLIND | C105: 111.7 | D105: 111.90 | E105: 110.90 | F105: 110.10 | G105: 109.10 | H105: 112.70 | I105: 113.70 | J105: 114.50 | K105: 112.9 | L105: 111.1 | M105: 7.29245
A106: 96 | B106: CEATLTD | C106: 1427.75 | D106: 1415.23 | E106: 1388.47 | F106: 1349.18 | G106: 1322.42 | H106: 1454.52 | I106: 1481.28 | J106: 1520.57 | K106: 1442 | L106: 1375.95 | M106: 1.15514
A107: 97 | B107: CENTRALBK | C107: 24.35 | D107: 24.13 | E107: 23.67 | F107: 22.98 | G107: 22.52 | H107: 24.82 | I107: 25.28 | J107: 25.97 | K107: 24.6 | L107: 23.45 | M107: 68.2054
A108: 98 | B108: CDSL | C108: 952.2 | D108: 958.73 | E108: 943.67 | F108: 935.13 | G108: 920.07 | H108: 967.27 | I108: 982.33 | J108: 990.87 | K108: 973.8 | L108: 950.2 | M108: 3.80628
A109: 99 | B109: CENTURYPLY | C109: 478.85 | D109: 482.42 | E109: 472.78 | F109: 466.72 | G109: 457.08 | H109: 488.48 | I109: 498.12 | J109: 504.18 | K109: 492.05 | L109: 476.35 | M109: 1.26962
A110: 100 | B110: CENTURYTEX | C110: 652.55 | D110: 645.72 | E110: 632.68 | F110: 612.82 | G110: 599.78 | H110: 665.58 | I110: 678.62 | J110: 698.48 | K110: 658.75 | L110: 625.85 | M110: 3.88433
A111: 101 | B111: CERA | C111: 5944.65 | D111: 5992.43 | E111: 5834.87 | F111: 5725.08 | G111: 5567.52 | H111: 6102.22 | I111: 6259.78 | J111: 6369.57 | K111: 6150 | L111: 5882.65 | M111: 0.34022
A112: 102 | B112: CHALET | C112: 363.55 | D112: 363.93 | E112: 360.27 | F112: 356.98 | G112: 353.32 | H112: 367.22 | I112: 370.88 | J112: 374.17 | K112: 367.6 | L112: 360.65 | M112: 0.82861
A113: 103 | B113: CHAMBLFERT | C113: 275.95 | D113: 275.08 | E113: 271.72 | F113: 267.48 | G113: 264.12 | H113: 279.32 | I113: 282.68 | J113: 286.92 | K113: 278.45 | L113: 270.85 | M113: 8.04345
A114: 104 | B114: CHEMPLASTS | C114: 364.95 | D114: 370.63 | E114: 354.07 | F114: 343.18 | G114: 326.62 | H114: 381.52 | I114: 398.08 | J114: 408.97 | K114: 387.2 | L114: 359.75 | M114: 8.47048
A115: 105 | B115: CHOLAHLDNG | C115: 550.85 | D115: 548.27 | E115: 540.03 | F115: 529.22 | G115: 520.98 | H115: 559.08 | I115: 567.32 | J115: 578.13 | K115: 556.5 | L115: 537.45 | M115: 1.7262
A116: 106 | B116: CHOLAFIN | C116: 746.65 | D116: 746.78 | E116: 739.77 | F116: 732.88 | G116: 725.87 | H116: 753.67 | I116: 760.68 | J116: 767.57 | K116: 753.8 | L116: 739.9 | M116: 8.48375
A117: 107 | B117: CIPLA | C117: 883.45 | D117: 883.40 | E117: 876.80 | F117: 870.15 | G117: 863.55 | H117: 890.05 | I117: 896.65 | J117: 903.30 | K117: 890 | L117: 876.75 | M117: 20.23997
A118: 108 | B118: CUB | C118: 130.1 | D118: 130.32 | E118: 127.53 | F118: 124.97 | G118: 122.18 | H118: 132.88 | I118: 135.67 | J118: 138.23 | K118: 133.1 | L118: 127.75 | M118: 68.86975
A119: 109 | B119: CLEAN | C119: 1380.95 | D119: 1388.32 | E119: 1367.63 | F119: 1354.32 | G119: 1333.63 | H119: 1401.63 | I119: 1422.32 | J119: 1435.63 | K119: 1409 | L119: 1375 | M119: 0.72981
A120: 110 | B120: COALINDIA | C120: 220.85 | D120: 219.88 | E120: 217.32 | F120: 213.78 | G120: 211.22 | H120: 223.42 | I120: 225.98 | J120: 229.52 | K120: 222.45 | L120: 216.35 | M120: 49.88245
A121: 111 | B121: COCHINSHIP | C121: 437 | D121: 434.22 | E121: 428.03 | F121: 419.07 | G121: 412.88 | H121: 443.18 | I121: 449.37 | J121: 458.33 | K121: 440.4 | L121: 425.25 | M121: 3.81897
A122: 112 | B122: COFORGE | C122: 3852.05 | D122: 3877.57 | E122: 3810.53 | F122: 3769.02 | G122: 3701.98 | H122: 3919.08 | I122: 3986.12 | J122: 4027.63 | K122: 3944.6 | L122: 3836.05 | M122: 3.4538
A123: 113 | B123: COLPAL | C123: 1500.15 | D123: 1498.22 | E123: 1488.48 | F123: 1476.82 | G123: 1467.08 | H123: 1509.88 | I123: 1519.62 | J123: 1531.28 | K123: 1507.95 | L123: 1486.55 | M123: 3.13224
A124: 114 | B124: CAMS | C124: 2164.6 | D124: 2183.05 | E124: 2141.55 | F124: 2118.50 | G124: 2077.00 | H124: 2206.10 | I124: 2247.60 | J124: 2270.65 | K124: 2224.55 | L124: 2160 | M124: 1.04875
A125: 115 | B125: CONCOR | C125: 592.35 | D125: 589.58 | E125: 585.42 | F125: 578.48 | G125: 574.32 | H125: 596.52 | I125: 600.68 | J125: 607.62 | K125: 593.75 | L125: 582.65 | M125: 6.96941
A126: 116 | B126: COROMANDEL | C126: 861.1 | D126: 865.52 | E126: 853.58 | F126: 846.07 | G126: 834.13 | H126: 873.03 | I126: 884.97 | J126: 892.48 | K126: 877.45 | L126: 858 | M126: 1.79044
A127: 117 | B127: CREDITACC | C127: 894.65 | D127: 894.43 | E127: 888.22 | F127: 881.78 | G127: 875.57 | H127: 900.87 | I127: 907.08 | J127: 913.52 | K127: 900.65 | L127: 888 | M127: 0.60987
A128: 118 | B128: CROMPTON | C128: 286.45 | D128: 288.80 | E128: 283.60 | F128: 280.75 | G128: 275.55 | H128: 291.65 | I128: 296.85 | J128: 299.70 | K128: 294 | L128: 285.95 | M128: 15.99131
A129: 119 | B129: CUMMINSIND | C129: 1657.7 | D129: 1664.03 | E129: 1628.17 | F129: 1598.63 | G129: 1562.77 | H129: 1693.57 | I129: 1729.43 | J129: 1758.97 | K129: 1699.9 | L129: 1634.5 | M129: 6.55835
A130: 120 | B130: CYIENT | C130: 946.15 | D130: 939.40 | E130: 926.80 | F130: 907.45 | G130: 894.85 | H130: 958.75 | I130: 971.35 | J130: 990.70 | K130: 952 | L130: 920.05 | M130: 1.44282
A131: 121 | B131: DCMSHRIRAM | C131: 809.8 | D131: 813.92 | E131: 800.88 | F131: 791.97 | G131: 778.93 | H131: 822.83 | I131: 835.87 | J131: 844.78 | K131: 826.95 | L131: 805 | M131: 0.30087
A132: 122 | B132: DLF | C132: 360.05 | D132: 355.45 | E132: 349.40 | F132: 338.75 | G132: 332.70 | H132: 366.10 | I132: 372.15 | J132: 382.80 | K132: 361.5 | L132: 344.8 | M132: 54.12088
A133: 123 | B133: DABUR | C133: 534.5 | D133: 530.92 | E133: 524.08 | F133: 513.67 | G133: 506.83 | H133: 541.33 | I133: 548.17 | J133: 558.58 | K133: 537.75 | L133: 520.5 | M133: 20.94724
A134: 124 | B134: DALBHARAT | C134: 1785.45 | D134: 1784.83 | E134: 1770.67 | F134: 1755.88 | G134: 1741.72 | H134: 1799.62 | I134: 1813.78 | J134: 1828.57 | K134: 1799 | L134: 1770.05 | M134: 2.29888
A135: 125 | B135: DEEPAKFERT | C135: 587.1 | D135: 592.17 | E135: 577.93 | F135: 568.77 | G135: 554.53 | H135: 601.33 | I135: 615.57 | J135: 624.73 | K135: 606.4 | L135: 583 | M135: 2.23365
A136: 126 | B136: DEEPAKNTR | C136: 1810.2 | D136: 1804.68 | E136: 1780.97 | F136: 1751.73 | G136: 1728.02 | H136: 1833.92 | I136: 1857.63 | J136: 1886.87 | K136: 1828.4 | L136: 1775.45 | M136: 3.40071
A137: 127 | B137: DELHIVERY | C137: 331.35 | D137: 331.48 | E137: 326.97 | F137: 322.58 | G137: 318.07 | H137: 335.87 | I137: 340.38 | J137: 344.77 | K137: 336 | L137: 327.1 | M137: 14.51678
A138: 128 | B138: DELTACORP | C138: 192.5 | D138: 190.43 | E138: 186.57 | F138: 180.63 | G138: 176.77 | H138: 196.37 | I138: 200.23 | J138: 206.17 | K138: 194.3 | L138: 184.5 | M138: 25.89069
A139: 129 | B139: DEVYANI | C139: 145.3 | D139: 144.85 | E139: 142.75 | F139: 140.20 | G139: 138.10 | H139: 147.40 | I139: 149.50 | J139: 152.05 | K139: 146.95 | L139: 142.3 | M139: 12.06474
A140: 130 | B140: DHANI | C140: 28.65 | D140: 28.70 | E140: 28.30 | F140: 27.95 | G140: 27.55 | H140: 29.05 | I140: 29.45 | J140: 29.80 | K140: 29.1 | L140: 28.35 | M140: 14.95167
A141: 131 | B141: DBL | C141: 186.9 | D141: 187.07 | E141: 184.23 | F141: 181.57 | G141: 178.73 | H141: 189.73 | I141: 192.57 | J141: 195.23 | K141: 189.9 | L141: 184.4 | M141: 2.45676
A142: 132 | B142: DIVISLAB | C142: 2801.6 | D142: 2806.03 | E142: 2763.37 | F142: 2725.13 | G142: 2682.47 | H142: 2844.27 | I142: 2886.93 | J142: 2925.17 | K142: 2848.7 | L142: 2767.8 | M142: 4.77596
A143: 133 | B143: DIXON | C143: 2868.05 | D143: 2866.28 | E143: 2832.57 | F143: 2797.08 | G143: 2763.37 | H143: 2901.77 | I143: 2935.48 | J143: 2970.97 | K143: 2900 | L143: 2830.8 | M143: 2.31087
A144: 134 | B144: LALPATHLAB | C144: 1867 | D144: 1857.70 | E144: 1845.40 | F144: 1823.80 | G144: 1811.50 | H144: 1879.30 | I144: 1891.60 | J144: 1913.20 | K144: 1870 | L144: 1836.1 | M144: 1.71777
A145: 135 | B145: DRREDDY | C145: 4383.75 | D145: 4394.70 | E145: 4359.40 | F145: 4335.05 | G145: 4299.75 | H145: 4419.05 | I145: 4454.35 | J145: 4478.70 | K145: 4430 | L145: 4370.35 | M145: 2.76928
A146: 136 | B146: EIDPARRY | C146: 502.6 | D146: 506.53 | E146: 496.62 | F146: 490.63 | G146: 480.72 | H146: 512.52 | I146: 522.43 | J146: 528.42 | K146: 516.45 | L146: 500.55 | M146: 1.08081
A147: 137 | B147: EIHOTEL | C147: 163.9 | D147: 163.87 | E147: 162.13 | F147: 160.37 | G147: 158.63 | H147: 165.63 | I147: 167.37 | J147: 169.13 | K147: 165.6 | L147: 162.1 | M147: 1.56352
A148: 138 | B148: EPL | C148: 156.6 | D148: 156.93 | E148: 154.27 | F148: 151.93 | G148: 149.27 | H148: 159.27 | I148: 161.93 | J148: 164.27 | K148: 159.6 | L148: 154.6 | M148: 3.32614
A149: 139 | B149: EASEMYTRIP | C149: 46.3 | D149: 46.47 | E149: 45.58 | F149: 44.87 | G149: 43.98 | H149: 47.18 | I149: 48.07 | J149: 48.78 | K149: 47.35 | L149: 45.75 | M149: 117.1154
A150: 140 | B150: EDELWEISS | C150: 54.75 | D150: 55.28 | E150: 53.82 | F150: 52.88 | G150: 51.42 | H150: 56.22 | I150: 57.68 | J150: 58.62 | K150: 56.75 | L150: 54.35 | M150: 13.6015
A151: 141 | B151: EICHERMOT | C151: 3035.45 | D151: 3037.48 | E151: 2993.97 | F151: 2952.48 | G151: 2908.97 | H151: 3078.97 | I151: 3122.48 | J151: 3163.97 | K151: 3081 | L151: 2996 | M151: 4.39612
A152: 142 | B152: ELGIEQUIP | C152: 478.9 | D152: 477.80 | E152: 471.80 | F152: 464.70 | G152: 458.70 | H152: 484.90 | I152: 490.90 | J152: 498.00 | K152: 483.8 | L152: 470.7 | M152: 1.02745
A153: 143 | B153: EMAMILTD | C153: 357.95 | D153: 360.95 | E153: 351.85 | F153: 345.75 | G153: 336.65 | H153: 367.05 | I153: 376.15 | J153: 382.25 | K153: 370.05 | L153: 354.85 | M153: 3.80505
A154: 144 | B154: ENDURANCE | C154: 1237.15 | D154: 1240.45 | E154: 1225.90 | F154: 1214.65 | G154: 1200.10 | H154: 1251.70 | I154: 1266.25 | J154: 1277.50 | K154: 1255 | L154: 1229.2 | M154: 0.34298
A155: 145 | B155: ENGINERSIN | C155: 76.6 | D155: 76.15 | E155: 75.35 | F155: 74.10 | G155: 73.30 | H155: 77.40 | I155: 78.20 | J155: 79.45 | K155: 76.95 | L155: 74.9 | M155: 19.92591
A156: 146 | B156: EQUITASBNK | C156: 64.5 | D156: 64.45 | E156: 63.05 | F156: 61.60 | G156: 60.20 | H156: 65.90 | I156: 67.30 | J156: 68.75 | K156: 65.85 | L156: 63 | M156: 85.72094
A157: 147 | B157: ESCORTS | C157: 1896.05 | D157: 1896.20 | E157: 1863.85 | F157: 1831.65 | G157: 1799.30 | H157: 1928.40 | I157: 1960.75 | J157: 1992.95 | K157: 1928.55 | L157: 1864 | M157: 2.32456
A158: 148 | B158: EXIDEIND | C158: 176.55 | D158: 176.42 | E158: 174.88 | F158: 173.22 | G158: 171.68 | H158: 178.08 | I158: 179.62 | J158: 181.28 | K158: 177.95 | L158: 174.75 | M158: 12.84274
A159: 149 | B159: FDC | C159: 249.9 | D159: 249.92 | E159: 247.28 | F159: 244.67 | G159: 242.03 | H159: 252.53 | I159: 255.17 | J159: 257.78 | K159: 252.55 | L159: 247.3 | M159: 0.47411
A160: 150 | B160: NYKAA | C160: 138.1 | D160: 137.17 | E160: 134.53 | F160: 130.97 | G160: 128.33 | H160: 140.73 | I160: 143.37 | J160: 146.93 | K160: 139.8 | L160: 133.6 | M160: 77.97383
A161: 151 | B161: FEDERALBNK | C161: 127.3 | D161: 126.62 | E161: 125.23 | F161: 123.17 | G161: 121.78 | H161: 128.68 | I161: 130.07 | J161: 132.13 | K161: 128 | L161: 124.55 | M161: 93.1876
A162: 152 | B162: FACT | C162: 210 | D162: 210.55 | E162: 205.60 | F162: 201.20 | G162: 196.25 | H162: 214.95 | I162: 219.90 | J162: 224.30 | K162: 215.5 | L162: 206.15 | M162: 2.41671
A163: 153 | B163: FINEORG | C163: 4201.55 | D163: 4224.50 | E163: 4169.05 | F163: 4136.55 | G163: 4081.10 | H163: 4257.00 | I163: 4312.45 | J163: 4344.95 | K163: 4279.95 | L163: 4192 | M163: 0.20691
A164: 154 | B164: FINCABLES | C164: 776.15 | D164: 774.78 | E164: 763.37 | F164: 750.58 | G164: 739.17 | H164: 787.57 | I164: 798.98 | J164: 811.77 | K164: 786.2 | L164: 762 | M164: 6.52574
A165: 155 | B165: FINPIPE | C165: 160.3 | D165: 161.67 | E165: 158.63 | F165: 156.97 | G165: 153.93 | H165: 163.33 | I165: 166.37 | J165: 168.03 | K165: 164.7 | L165: 160 | M165: 2.92621
A166: 156 | B166: FSL | C166: 112 | D166: 111.03 | E166: 109.32 | F166: 106.63 | G166: 104.92 | H166: 113.72 | I166: 115.43 | J166: 118.12 | K166: 112.75 | L166: 108.35 | M166: 21.27147
A167: 157 | B167: FORTIS | C167: 265.3 | D167: 265.83 | E167: 263.47 | F167: 261.63 | G167: 259.27 | H167: 267.67 | I167: 270.03 | J167: 271.87 | K167: 268.2 | L167: 264 | M167: 10.1898
A168: 158 | B168: GRINFRA | C168: 1029.55 | D168: 1036.80 | E168: 1013.45 | F168: 997.35 | G168: 974.00 | H168: 1052.90 | I168: 1076.25 | J168: 1092.35 | K168: 1060.15 | L168: 1020.7 | M168: 0.25879
A169: 159 | B169: GAIL | C169: 109.55 | D169: 109.83 | E169: 107.52 | F169: 105.48 | G169: 103.17 | H169: 111.87 | I169: 114.18 | J169: 116.22 | K169: 112.15 | L169: 107.8 | M169: 267.57814
A170: 160 | B170: GMMPFAUDLR | C170: 1497.8 | D170: 1486.28 | E170: 1468.57 | F170: 1439.33 | G170: 1421.62 | H170: 1515.52 | I170: 1533.23 | J170: 1562.47 | K170: 1504 | L170: 1457.05 | M170: 1.28165
A171: 161 | B171: GMRINFRA | C171: 41.75 | D171: 41.47 | E171: 40.68 | F171: 39.62 | G171: 38.83 | H171: 42.53 | I171: 43.32 | J171: 44.38 | K171: 42.25 | L171: 40.4 | M171: 173.98465
A172: 162 | B172: GALAXYSURF | C172: 2324.65 | D172: 2333.97 | E172: 2307.63 | F172: 2290.62 | G172: 2264.28 | H172: 2350.98 | I172: 2377.32 | J172: 2394.33 | K172: 2360.3 | L172: 2316.95 | M172: 0.06029
A173: 163 | B173: GARFIBRES | C173: 2840.85 | D173: 2840.97 | E173: 2810.88 | F173: 2780.92 | G173: 2750.83 | H173: 2870.93 | I173: 2901.02 | J173: 2930.98 | K173: 2871.05 | L173: 2811 | M173: 0.06117
A174: 164 | B174: GICRE | C174: 132.15 | D174: 133.35 | E174: 130.40 | F174: 128.65 | G174: 125.70 | H174: 135.10 | I174: 138.05 | J174: 139.80 | K174: 136.3 | L174: 131.6 | M174: 8.95971
A175: 165 | B175: GLAND | C175: 1217.75 | D175: 1215.35 | E175: 1192.80 | F175: 1167.85 | G175: 1145.30 | H175: 1240.30 | I175: 1262.85 | J175: 1287.80 | K175: 1237.9 | L175: 1190.4 | M175: 4.0602
A176: 166 | B176: GLAXO | C176: 1259.95 | D176: 1262.63 | E176: 1246.87 | F176: 1233.78 | G176: 1218.02 | H176: 1275.72 | I176: 1291.48 | J176: 1304.57 | K176: 1278.4 | L176: 1249.55 | M176: 0.53186
A177: 167 | B177: GLENMARK | C177: 432.55 | D177: 429.98 | E177: 425.37 | F177: 418.18 | G177: 413.57 | H177: 437.17 | I177: 441.78 | J177: 448.97 | K177: 434.6 | L177: 422.8 | M177: 5.08033
A178: 168 | B178: GOCOLORS | C178: 949.25 | D178: 944.98 | E178: 934.27 | F178: 919.28 | G178: 908.57 | H178: 959.97 | I178: 970.68 | J178: 985.67 | K178: 955.7 | L178: 930 | M178: 0.78163
A179: 169 | B179: GODFRYPHLP | C179: 1876.8 | D179: 1895.08 | E179: 1847.72 | F179: 1818.63 | G179: 1771.27 | H179: 1924.17 | I179: 1971.53 | J179: 2000.62 | K179: 1942.45 | L179: 1866 | M179: 0.70528
A180: 170 | B180: GODREJAGRO | C180: 407.9 | D180: 411.55 | E180: 403.35 | F180: 398.80 | G180: 390.60 | H180: 416.10 | I180: 424.30 | J180: 428.85 | K180: 419.75 | L180: 407 | M180: 1.5017
A181: 171 | B181: GODREJCP | C181: 932.35 | D181: 925.52 | E181: 912.18 | F181: 892.02 | G181: 878.68 | H181: 945.68 | I181: 959.02 | J181: 979.18 | K181: 938.85 | L181: 905.35 | M181: 13.06258
A182: 172 | B182: GODREJIND | C182: 408.25 | D182: 408.52 | E182: 402.33 | F182: 396.42 | G182: 390.23 | H182: 414.43 | I182: 420.62 | J182: 426.53 | K182: 414.7 | L182: 402.6 | M182: 1.13297
A183: 173 | B183: GODREJPROP | C183: 1101.8 | D183: 1095.03 | E183: 1078.22 | F183: 1054.63 | G183: 1037.82 | H183: 1118.62 | I183: 1135.43 | J183: 1159.02 | K183: 1111.85 | L183: 1071.45 | M183: 3.86256
A184: 174 | B184: GRANULES | C184: 283.05 | D184: 283.05 | E184: 280.30 | F184: 277.55 | G184: 274.80 | H184: 285.80 | I184: 288.55 | J184: 291.30 | K184: 285.8 | L184: 280.3 | M184: 4.6665
A185: 175 | B185: GRAPHITE | C185: 277.35 | D185: 277.32 | E185: 274.03 | F185: 270.72 | G185: 267.43 | H185: 280.63 | I185: 283.92 | J185: 287.23 | K185: 280.6 | L185: 274 | M185: 2.92375
A186: 176 | B186: GRASIM | C186: 1560.45 | D186: 1551.40 | E186: 1536.10 | F186: 1511.75 | G186: 1496.45 | H186: 1575.75 | I186: 1591.05 | J186: 1615.40 | K186: 1566.7 | L186: 1527.05 | M186: 5.81059
A187: 177 | B187: GESHIP | C187: 591.15 | D187: 587.70 | E187: 572.60 | F187: 554.05 | G187: 538.95 | H187: 606.25 | I187: 621.35 | J187: 639.90 | K187: 602.8 | L187: 569.15 | M187: 5.04483
A188: 178 | B188: GREENPANEL | C188: 272.9 | D188: 275.93 | E188: 264.37 | F188: 255.83 | G188: 244.27 | H188: 284.47 | I188: 296.03 | J188: 304.57 | K188: 287.5 | L188: 267.4 | M188: 4.39325
A189: 179 | B189: GRINDWELL | C189: 1775.8 | D189: 1781.30 | E189: 1758.60 | F189: 1741.40 | G189: 1718.70 | H189: 1798.50 | I189: 1821.20 | J189: 1838.40 | K189: 1804 | L189: 1764.1 | M189: 0.43363
A190: 180 | B190: GUJALKALI | C190: 606.8 | D190: 605.02 | E190: 597.83 | F190: 588.87 | G190: 581.68 | H190: 613.98 | I190: 621.17 | J190: 630.13 | K190: 612.2 | L190: 596.05 | M190: 0.60539
A191: 181 | B191: GAEL | C191: 248.35 | D191: 247.25 | E191: 242.40 | F191: 236.45 | G191: 231.60 | H191: 253.20 | I191: 258.05 | J191: 264.00 | K191: 252.1 | L191: 241.3 | M191: 2.21817
A192: 182 | B192: FLUOROCHEM | C192: 3060.5 | D192: 3079.52 | E192: 2975.98 | F192: 2891.47 | G192: 2787.93 | H192: 3164.03 | I192: 3267.57 | J192: 3352.08 | K192: 3183.05 | L192: 2995 | M192: 2.31065
A193: 183 | B193: GUJGASLTD | C193: 496.8 | D193: 493.27 | E193: 487.58 | F193: 478.37 | G193: 472.68 | H193: 502.48 | I193: 508.17 | J193: 517.38 | K193: 498.95 | L193: 484.05 | M193: 4.41404
A194: 184 | B194: GNFC | C194: 523.35 | D194: 522.77 | E194: 513.68 | F194: 504.02 | G194: 494.93 | H194: 532.43 | I194: 541.52 | J194: 551.18 | K194: 531.85 | L194: 513.1 | M194: 7.34246
A195: 185 | B195: GPPL | C195: 112.9 | D195: 112.13 | E195: 110.27 | F195: 107.63 | G195: 105.77 | H195: 114.77 | I195: 116.63 | J195: 119.27 | K195: 114 | L195: 109.5 | M195: 28.75192
A196: 186 | B196: GSFC | C196: 122.25 | D196: 122.77 | E196: 121.03 | F196: 119.82 | G196: 118.08 | H196: 123.98 | I196: 125.72 | J196: 126.93 | K196: 124.5 | L196: 121.55 | M196: 12.78126
A197: 187 | B197: GSPL | C197: 274.3 | D197: 272.67 | E197: 270.28 | F197: 266.27 | G197: 263.88 | H197: 276.68 | I197: 279.07 | J197: 283.08 | K197: 275.05 | L197: 268.65 | M197: 6.90987
A198: 188 | B198: HEG | C198: 961.1 | D198: 963.05 | E198: 957.05 | F198: 953.00 | G198: 947.00 | H198: 967.10 | I198: 973.10 | J198: 977.15 | K198: 969.05 | L198: 959 | M198: 0.71501
A199: 189 | B199: HCLTECH | C199: 1072.4 | D199: 1076.53 | E199: 1065.52 | F199: 1058.63 | G199: 1047.62 | H199: 1083.42 | I199: 1094.43 | J199: 1101.32 | K199: 1087.55 | L199: 1069.65 | M199: 18.12907
A200: 190 | B200: HDFCAMC | C200: 1682.65 | D200: 1674.50 | E200: 1652.90 | F200: 1623.15 | G200: 1601.55 | H200: 1704.25 | I200: 1725.85 | J200: 1755.60 | K200: 1696.1 | L200: 1644.75 | M200: 6.55602
A201: 191 | B201: HDFCBANK | C201: 1551.9 | D201: 1547.68 | E201: 1536.27 | F201: 1520.63 | G201: 1509.22 | H201: 1563.32 | I201: 1574.73 | J201: 1590.37 | K201: 1559.1 | L201: 1532.05 | M201: 108.76671
A202: 192 | B202: HDFCLIFE | C202: 461.4 | D202: 462.73 | E202: 456.47 | F202: 451.53 | G202: 445.27 | H202: 467.67 | I202: 473.93 | J202: 478.87 | K202: 469 | L202: 457.8 | M202: 67.90599
A203: 193 | B203: HFCL | C203: 63 | D203: 62.87 | E203: 61.83 | F203: 60.67 | G203: 59.63 | H203: 64.03 | I203: 65.07 | J203: 66.23 | K203: 63.9 | L203: 61.7 | M203: 39.59419
A204: 194 | B204: HLEGLAS | C204: 485.35 | D204: 488.42 | E204: 475.03 | F204: 464.72 | G204: 451.33 | H204: 498.73 | I204: 512.12 | J204: 522.43 | K204: 501.8 | L204: 478.1 | M204: 0.69423
A205: 195 | B205: HAPPSTMNDS | C205: 812.2 | D205: 818.33 | E205: 802.87 | F205: 793.53 | G205: 778.07 | H205: 827.67 | I205: 843.13 | J205: 852.47 | K205: 833.8 | L205: 809 | M205: 1.87438
A206: 196 | B206: HATSUN | C206: 844.8 | D206: 846.87 | E206: 836.58 | F206: 828.37 | G206: 818.08 | H206: 855.08 | I206: 865.37 | J206: 873.58 | K206: 857.15 | L206: 838.65 | M206: 0.07991
... 320 more rows

Sheet Bulk Deals
E6: Back To Main Page
A7: Subject : | B7: BULK DEAL | D7: =Main!B10 -> 2023-03-17
A9: Date | B9: Scrip code | C9: Scrip Name | D9: Client Name | E9: Buy / Sell | F9: Quantity Traded | G9: Trade Price / Wt.Avg.trade price | H9: Exchange
A10: 2023-03-16 | B10: 512165 | C10: ABANSENT | D10: TRISHNA TRADING SERVICES PRIVATE LIMITED | E10: SELL | F10: 72,000 | G10: 177.33 | H10: BSE
A11: 2023-03-16 | B11: 512165 | C11: ABANSENT | D11: DELIGHT INTERNATIONAL TRADING-F.Z.C | E11: BUY | F11: 72,000 | G11: 177.33 | H11: BSE
A12: 2023-03-16 | B12: 539115 | C12: ALAN SCOTT | D12: OM PRAKASH CHUGH | E12: BUY | F12: 11,810 | G12: 50.33 | H12: BSE
A13: 2023-03-16 | B13: 531591 | C13: BAMPSL | D13: SANJAY GUPTA | E13: BUY | F13: 600,000 | G13: 6.52 | H13: BSE
A14: 2023-03-16 | B14: 531591 | C14: BAMPSL | D14: SATENDER KUMAR GOEL | E14: SELL | F14: 287,531 | G14: 6.51 | H14: BSE
A15: 2023-03-16 | B15: 531591 | C15: BAMPSL | D15: PREM SHANKER | E15: SELL | F15: 651,457 | G15: 6.69 | H15: BSE
A16: 2023-03-16 | B16: 539799 | C16: BHARATWIRE | D16: BHATIA SURESH HUF | E16: BUY | F16: 727,000 | G16: 107.52 | H16: BSE
A17: 2023-03-16 | B17: 539799 | C17: BHARATWIRE | D17: SURESH BHATIA ASSOCIATES | E17: SELL | F17: 727,000 | G17: 107.52 | H17: BSE
A18: 2023-03-16 | B18: 543435 | C18: CLARA | D18: SHERWOOD SECURITIES PVT LTD | E18: SELL | F18: 43,500 | G18: 225 | H18: BSE
A19: 2023-03-16 | B19: 543435 | C19: CLARA | D19: SWATIPUSHP TRADELINK PRIVATE LIMITED | E19: BUY | F19: 43,500 | G19: 225 | H19: BSE
A20: 2023-03-16 | B20: 539559 | C20: DDIL | D20: SALONI LOHIA | E20: BUY | F20: 178,858 | G20: 12.89 | H20: BSE
A21: 2023-03-16 | B21: 539596 | C21: DELTA | D21: MANIKARAN MERCANTILE PRIVATE LIMITED . | E21: SELL | F21: 50,000 | G21: 16.97 | H21: BSE
A22: 2023-03-16 | B22: 543516 | C22: DHYAANI | D22: PLURIS FUND LIMITED | E22: BUY | F22: 36,000 | G22: 163 | H22: BSE
A23: 2023-03-16 | B23: 543516 | C23: DHYAANI | D23: SUNIL GIRIDHARILAL RAHEJA | E23: SELL | F23: 36,000 | G23: 163 | H23: BSE
A24: 2023-03-16 | B24: 540811 | C24: DML | D24: KIRTIKUMAR MAFATLAL VAKHARIA | E24: BUY | F24: 60,000 | G24: 16 | H24: BSE
A25: 2023-03-16 | B25: 540811 | C25: DML | D25: GUNVANTIBEN KIRTIKUMAR VAKHARIA | E25: BUY | F25: 60,000 | G25: 16.17 | H25: BSE
A26: 2023-03-16 | B26: 540811 | C26: DML | D26: TEAM INDIA MANAGERS LTD | E26: SELL | F26: 70,000 | G26: 17 | H26: BSE
A27: 2023-03-16 | B27: 540811 | C27: DML | D27: SIMPLURIS TECHNOLOGIES PVT LTD . | E27: BUY | F27: 30,000 | G27: 17.53 | H27: BSE
A28: 2023-03-16 | B28: 540811 | C28: DML | D28: SIMPLURIS TECHNOLOGIES PVT LTD . | E28: SELL | F28: 80,000 | G28: 15.63 | H28: BSE
A29: 2023-03-16 | B29: 543595 | C29: EPBIO | D29: KULBHUSHANPARASHAR | E29: BUY | F29: 11,000 | G29: 181.5 | H29: BSE
A30: 2023-03-16 | B30: 543595 | C30: EPBIO | D30: JAGDISHPRASHADSHARMA | E30: SELL | F30: 11,000 | G30: 181.5 | H30: BSE
A31: 2023-03-16 | B31: 532022 | C31: FILATFASH | D31: SHANKAR NATH | E31: BUY | F31: 600,000 | G31: 13.97 | H31: BSE
A32: 2023-03-16 | B32: 532022 | C32: FILATFASH | D32: ANKITGERA | E32: SELL | F32: 600,000 | G32: 13.97 | H32: BSE
A33: 2023-03-16 | B33: 543239 | C33: GMPL | D33: BAZZ COMMOTRADE PRIVATE LIMITED | E33: BUY | F33: 92,400 | G33: 110 | H33: BSE
A34: 2023-03-16 | B34: 543239 | C34: GMPL | D34: SHERWOOD SECURITIES PVT LTD | E34: SELL | F34: 92,400 | G34: 110 | H34: BSE
A35: 2023-03-16 | B35: 531913 | C35: GOPAIST | D35: HEMA JAYPRAKASH BHAVSAR | E35: BUY | F35: 28,070 | G35: 6.03 | H35: BSE
A36: 2023-03-16 | B36: 532467 | C36: HAZOOR | D36: CHAITANYA DILIP CHANDAN | E36: BUY | F36: 55,575 | G36: 82.65 | H36: BSE
A37: 2023-03-16 | B37: 526967 | C37: HEERAISP | D37: MAYANK RASIKLAL KOTADIA | E37: SELL | F37: 23,764 | G37: 11.45 | H37: BSE
A38: 2023-03-16 | B38: 526967 | C38: HEERAISP | D38: MAYANK RASIKLAL KOTADIA | E38: BUY | F38: 44,898 | G38: 11.85 | H38: BSE
A39: 2023-03-16 | B39: 514428 | C39: HINDADH | D39: ZAKI ABBAS NASSER | E39: BUY | F39: 45,000 | G39: 209.46 | H39: BSE
A40: 2023-03-16 | B40: 514428 | C40: HINDADH | D40: DEEPINDER SINGH POONIAN | E40: SELL | F40: 44,190 | G40: 212.69 | H40: BSE
A41: 2023-03-16 | B41: 524614 | C41: INDXTRA | D41: VADODARIA KAJOL RAJENDRAKUMAR | E41: BUY | F41: 115,000 | G41: 68.32 | H41: BSE
A42: 2023-03-16 | B42: 524614 | C42: INDXTRA | D42: VADODARIA RAJENDRA MAHENDRAKUMAR | E42: BUY | F42: 50,000 | G42: 68.5 | H42: BSE
A43: 2023-03-16 | B43: 524614 | C43: INDXTRA | D43: KALPANABEN CHAMPAKLAL SHAH | E43: SELL | F43: 60,556 | G43: 68.48 | H43: BSE
A44: 2023-03-16 | B44: 524614 | C44: INDXTRA | D44: RONIT CHAMPAKLAL SHAH | E44: SELL | F44: 100,000 | G44: 68.32 | H44: BSE
A45: 2023-03-16 | B45: 538794 | C45: JETINFRA | D45: KAILASHBEN ASHOKKUMAR PATEL | E45: SELL | F45: 22,000 | G45: 30.15 | H45: BSE
A46: 2023-03-16 | B46: 538794 | C46: JETINFRA | D46: SHEDHAL KRISHNA KUMAR | E46: BUY | F46: 16,000 | G46: 30.15 | H46: BSE
A47: 2023-03-16 | B47: 543286 | C47: JETMALL | D47: JINSURI ELECTROMET LIMITED | E47: SELL | F47: 30,000 | G47: 23.25 | H47: BSE
A48: 2023-03-16 | B48: 530443 | C48: KIRANSY-B | D48: HANSABEN RAMESHCHANDRA MODI | E48: SELL | F48: 38,900 | G48: 4.69 | H48: BSE
A49: 2023-03-16 | B49: 541337 | C49: MILEFUR | D49: MAYANK RASIKLAL KOTADIA | E49: SELL | F49: 48,000 | G49: 5.07 | H49: BSE
A50: 2023-03-16 | B50: 543351 | C50: NBL | D50: PLURIS FUND LIMITED | E50: BUY | F50: 25,600 | G50: 76 | H50: BSE
A51: 2023-03-16 | B51: 543351 | C51: NBL | D51: SUNIL GIRIDHARILAL RAHEJA | E51: SELL | F51: 25,600 | G51: 76 | H51: BSE
A52: 2023-03-16 | B52: 543285 | C52: RCAN | D52: SHAH REKHABEN MUKESHKUMAR | E52: BUY | F52: 50,000 | G52: 130 | H52: BSE
A53: 2023-03-16 | B53: 543285 | C53: RCAN | D53: AMAR MUKESHBHAI SHAH | E53: BUY | F53: 34,000 | G53: 130.68 | H53: BSE
A54: 2023-03-16 | B54: 543285 | C54: RCAN | D54: PINAKINI ARUNKUMAR SOLANKI | E54: BUY | F54: 54,000 | G54: 127 | H54: BSE
A55: 2023-03-16 | B55: 543285 | C55: RCAN | D55: VIJAY VINODCHANDRA SHAH | E55: SELL | F55: 84,000 | G55: 130.27 | H55: BSE
A56: 2023-03-16 | B56: 543285 | C56: RCAN | D56: BINDIYA VIJAY SHAH | E56: SELL | F56: 54,000 | G56: 127 | H56: BSE
A57: 2023-03-16 | B57: 543805 | C57: RESGEN | D57: MAVEN INDIA FUND | E57: SELL | F57: 270,000 | G57: 41.22 | H57: BSE
A58: 2023-03-16 | B58: 543805 | C58: RESGEN | D58: SHREE BAHUBALI CORPORATION LTD | E58: SELL | F58: 3,000 | G58: 41.22 | H58: BSE
A59: 2023-03-16 | B59: 543805 | C59: RESGEN | D59: SHREE BAHUBALI CORPORATION LTD | E59: BUY | F59: 525,000 | G59: 41.22 | H59: BSE
A60: 2023-03-16 | B60: 530617 | C60: SAMPRE | D60: SHANKAR NATH | E60: SELL | F60: 85,759 | G60: 67.61 | H60: BSE
A61: 2023-03-16 | B61: 530617 | C61: SAMPRE | D61: ANKITGERA | E61: BUY | F61: 85,759 | G61: 67.61 | H61: BSE
A62: 2023-03-16 | B62: 531569 | C62: SANJIVIN | D62: ASHWANI ANAMISHARAN KHEMKA | E62: BUY | F62: 60,000 | G62: 34 | H62: BSE
A63: 2023-03-16 | B63: 538975 | C63: SHREESEC | D63: SMILE SUPPLIERS PRIVATE LIMITED | E63: SELL | F63: 400,000 | G63: 13.25 | H63: BSE
A64: 2023-03-16 | B64: 538923 | C64: SOFCOM | D64: VISAGAR FINANCIAL SERVICES LIMITED | E64: BUY | F64: 23,724 | G64: 65 | H64: BSE
A65: 2023-03-16 | B65: 538923 | C65: SOFCOM | D65: SETHIA GEMS PRIVATE LIMITED | E65: SELL | F65: 25,000 | G65: 65 | H65: BSE
A66: 2023-03-16 | B66: 540914 | C66: SRUSTEELS | D66: ARPIT AGARWAL | E66: SELL | F66: 125,000 | G66: 19.04 | H66: BSE
A67: 2023-03-16 | B67: 540914 | C67: SRUSTEELS | D67: APOORV AGARWAL | E67: SELL | F67: 75,000 | G67: 19.41 | H67: BSE
A68: 2023-03-16 | B68: 540914 | C68: SRUSTEELS | D68: PRABHULAL LALLUBHAI PAREKH | E68: BUY | F68: 100,000 | G68: 19 | H68: BSE
A69: 2023-03-16 | B69: 542025 | C69: SUNRETAIL | D69: KAMLESH NAVINCHANDRA SHAH | E69: SELL | F69: 1,248,000 | G69: 0.43 | H69: BSE
A70: 2023-03-16 | B70: 542025 | C70: SUNRETAIL | D70: ARVIND GALA ADVISORY SERVICES (OPC) PRIVATE LIMITED . | E70: BUY | F70: 1,248,000 | G70: 0.43 | H70: BSE
A71: 2023-03-16 | B71: 541735 | C71: VIVANTA | D71: BP EQUITIES PVT. LTD. | E71: SELL | F71: 50,505 | G71: 26.61 | H71: BSE
A72: 2023-03-16 | B72: 541735 | C72: VIVANTA | D72: BP EQUITIES PVT. LTD. | E72: BUY | F72: 59,620 | G72: 26.61 | H72: BSE
A73: 2023-03-16 | B73: 63MOONS | C73: 63 moons tech limited | D73: GAZANIA ADVISORY LLP | E73: BUY | F73: 550,000 | G73: 164 | H73: NSE
A74: 2023-03-16 | B74: ARIHANTACA | C74: Arihant Academy Limited | D74: HEENA GANDHI | E74: BUY | F74: 30,400 | G74: 101.1 | H74: NSE
A75: 2023-03-16 | B75: ASTRON | C75: Astron Paper Bord Mil Ltd | D75: BETARSTEP TRADING PVT LTD | E75: BUY | F75: 2,759,999 | G75: 24.15 | H75: NSE
A76: 2023-03-16 | B76: JETFREIGHT | C76: Jet Freight Logistics Ltd | D76: JILESH NAVIN CHHEDA | E76: BUY | F76: 413,590 | G76: 12.39 | H76: NSE
A77: 2023-03-16 | B77: KSHITIJPOL | C77: Kshitij Polyline Limited | D77: ZENAB AIYUB YACOOBALI | E77: BUY | F77: 235,000 | G77: 25.8 | H77: NSE
A78: 2023-03-16 | B78: MOTHERSON | C78: Samvrdhna Mthrsn Intl Ltd | D78: COPTHALL MAURITIUS INVESTMENT LIMITED | E78: BUY | F78: 44,300,000 | G78: 70.05 | H78: NSE
A79: 2023-03-16 | B79: MOTHERSON | C79: Samvrdhna Mthrsn Intl Ltd | D79: SOCIETE GENERALE | E79: BUY | F79: 52,801,250 | G79: 70.05 | H79: NSE
A80: 2023-03-16 | B80: SCAPDVR | C80: Stampede Capital Limited | D80: ACHINTYA SECURITIES PRIVATE LIMITED | E80: BUY | F80: 1,645,879 | G80: 12.13 | H80: NSE
A81: 2023-03-16 | B81: SYSTANGO | C81: Systango Technologies Ltd | D81: MANSI SHARES & STOCK ADVISORS PVT LTD | E81: BUY | F81: 172,800 | G81: 108 | H81: NSE
A82: 2023-03-16 | B82: TEMBO | C82: Tembo Global Ind Ltd | D82: RAMAN TALWAR | E82: BUY | F82: 249,208 | G82: 160.11 | H82: NSE
A83: 2023-03-16 | B83: VERTEXPLUS | C83: Vertexplus Technologies L | D83: AXITA INDUSTRIES PRIVATE LIMITED | E83: BUY | F83: 39,600 | G83: 104.56 | H83: NSE
A84: 2023-03-16 | B84: VISHAL | C84: Vishal Fabrics Limited | D84: ANAND JAIN | E84: BUY | F84: 923,912 | G84: 18.8 | H84: NSE
A85: 2023-03-16 | B85: 63MOONS | C85: 63 moons tech limited | D85: CVCIGP II EMPLOYEE ROSEHILL LT | E85: SELL | F85: 593,500 | G85: 164.04 | H85: NSE
A86: 2023-03-16 | B86: ARIHANTACA | C86: Arihant Academy Limited | D86: BIREN P GANDHI | E86: SELL | F86: 30,400 | G86: 101.1 | H86: NSE
A87: 2023-03-16 | B87: ASTRON | C87: Astron Paper Bord Mil Ltd | D87: VYANKTESH CORRUGATORS PRIVATE LIMITED | E87: SELL | F87: 2,759,999 | G87: 24.15 | H87: NSE
A88: 2023-03-16 | B88: JETFREIGHT | C88: Jet Freight Logistics Ltd | D88: JILESH NAVIN CHHEDA | E88: SELL | F88: 410,475 | G88: 12.09 | H88: NSE
A89: 2023-03-16 | B89: KSHITIJPOL | C89: Kshitij Polyline Limited | D89: ZENAB AIYUB YACOOBALI | E89: SELL | F89: 397,903 | G89: 25.9 | H89: NSE
A90: 2023-03-16 | B90: MOTHERSON | C90: Samvrdhna Mthrsn Intl Ltd | D90: SUMITOMO WIRING SYSTEMS LIMITED | E90: SELL | F90: 230,000,000 | G90: 70.1 | H90: NSE
A91: 2023-03-16 | B91: SCAPDVR | C91: Stampede Capital Limited | D91: GUARDIAN FINANCE PRIVATE LIMITED | E91: SELL | F91: 317,776 | G91: 12.13 | H91: NSE
A92: 2023-03-16 | B92: SCAPDVR | C92: Stampede Capital Limited | D92: BHAVNABEN KAMLESHBHAI CHOTALIYA | E92: SELL | F92: 784,127 | G92: 12.11 | H92: NSE
A93: 2023-03-16 | B93: SCAPDVR | C93: Stampede Capital Limited | D93: GUARDIAN FINANCE PVT LTD | E93: SELL | F93: 603,148 | G93: 12.11 | H93: NSE
A94: 2023-03-16 | B94: TEMBO | C94: Tembo Global Ind Ltd | D94: TARUNA PIYUSH PATEL | E94: SELL | F94: 300,000 | G94: 160.16 | H94: NSE
A95: 2023-03-16 | B95: VISHAL | C95: Vishal Fabrics Limited | D95: SUSHMA ANAND JAIN | E95: SELL | F95: 920,805 | G95: 18.8 | H95: NSE

Sheet Call Tracker (Equity & F&O)
M5: Back To Main Page
A6: Retail Research Technical Calls & Fundamental Performance Report for the month of Mar-2023
M7: =Main!B10 -> 2023-03-17
B8: Positional Call
A9: Sr.no | B9: Date | D9: Company | E9: Rec | F9: Rec Price | G9: Stop Loss*** | H9: Call Closed At | I9: Target | J9: Remark | K9: Profit / Loss per Share | L9: All charges | M9: Net Gain / Loss % | N9: Status | O9: Closed Date | P9: Market Closing Price
A10: 1 | B10: 2022-12-01 | D10: TCS | E10: Buy<> | F10: 3380 | G10: 3140 | H10: 3565 | I10: 3800-4000 | J10: Part profit of Rs.185/- | K10: =H10-F10 -> 185 | L10: =(F10*-0.7)/100 -> -23.66 | M10: =(K10+L10)/F10 -> 4.77% | N10: Successful | O10: 2023-02-16 | R10: H
A11: 2 | B11: 2023-01-10 | D11: BHARTIARTL | E11: Buy | F11: 780-800 | G11: 735 | I11: 870-900 | J11: Open | R11: H
A12: 3 | B12: 2023-01-24 | D12: KIMS | E12: Buy | F12: 1435 | G12: 1340 | H12: 1512.5 | I12: 1580-1650 | J12: Part Profit of Rs.77.5/- | K12: =H12-F12 -> 77.5 | L12: =(F12*-0.7)/100 -> -10.05 | M12: =(K12+L12)/F12 -> 4.70% | N12: Successful | O12: 2023-01-31 | R12: N
A13: 4 | B13: 2023-02-01 | D13: AXISBANK | E13: Accu | F13: 825-850 | G13: 790 | I13: 900-950 | J13: Open | R13: H
A14: 5 | B14: 2023-02-06 | D14: JSWSTEEL | E14: Accu | F14: 695-717.5 | G14: 660 | I14: 770-800 | J14: Open | R14: H
A15: 6 | B15: 2023-02-16 | D15: PIDILITIND | E15: Accu | F15: 2250-2310 | G15: 2170 | I15: 2450-2500 | J15: Open | R15: H
A16: 7 | B16: 2023-02-20 | D16: SHARDACROP | E16: Accu | F16: 452.5-472.5 | G16: 425 | I16: 520-550 | J16: Open | R16: H
A17: 8 | B17: 2023-02-21 | D17: CANBK | E17: Accu | F17: 284.5 | G17: 268 | H17: 303.5 | I17: 315-335 | J17: Profit of Rs.19/- | K17: =H17-F17 -> 19 | L17: =(F17*-0.7)/100 -> -1.99 | M17: =(K17+L17)/F17 -> 5.98% | N17: Successful | O17: 2023-03-03 | R17: N
A18: 9 | B18: 2023-02-21 | D18: HAPPIESTMNDS | E18: Accu | F18: =(865+899)/2 -> 882 | G18: 830 | H18: 830 | I18: 960-1000 | J18: Loss of Rs.52/- | K18: =H18-F18 -> -52 | L18: =(F18*-0.7)/100 -> -6.17 | M18: =(K18+L18)/F18 -> -6.60% | N18: Unsuccessful | O18: 2023-03-15 | R18: H
A19: 10 | B19: 2023-02-24 | D19: PIIND | E19: Accu | F19: 3110-3010 | G19: 2890 | I19: 3300-3400 | J19: Open | R19: H
A20: 11 | B20: 2023-02-27 | D20: SBIN | E20: Accu | F20: 522.5 | G20: 478 | H20: 554 | I20: 570-600 | J20: Profit of Rs.31.50/- | K20: =H20-F20 -> 31.5 | L20: =(F20*-0.7)/100 -> -3.66 | M20: =(K20+L20)/F20 -> 5.33% | N20: Successful | O20: 2023-03-03 | R20: H
A21: 12 | B21: 2023-03-01 | D21: REDINGTON | E21: Accu | F21: 169.5-165 | G21: 158 | I21: 180-185 | J21: Open | R21: H
A22: 13 | B22: 2023-03-14 | D22: SANOFI | E22: Accu | F22: 5625-5725 | G22: 5340 | I22: 6000-6300 | J22: Open
A23: 14 | B23: 2023-03-14 | D23: COFORGE | E23: Accu | F23: 3810-3905 | G23: 3680 | I23: 4200-4300 | J23: Open
A24: 15 | B24: 2023-03-16 | D24: CANBK | E24: Accu | F24: 270-280.5 | G24: 255 | I24: 310-320 | J24: Open
A29: CLBS = Closing Basis ***
A30: Dividend adjusted <> | F30: Reinitiated $
A31: Part book {} | D31: s | F31: Revised stoploss #
B33: Momentum Call
A34: Sr.no | B34: Date | D34: Company | E34: Rec | F34: Rec Price | G34: Stop Loss | H34: Call Closed At | I34: Target | J34: Remark | K34: Profit / Loss per Share/Lot | L34: All charges | M34: Net Gain / Loss % | N34: Status | O34: Closed Date
A35: 1 | B35: 2023-02-28 | D35: RELIANCE | E35: Buy | F35: 2357 | G35: 2270 | H35: 2270 | I35: 2450-2500 | J35: Loss of Rs.87/- | K35: =H35-F35 -> -87 | L35: =(F35*-0.7)/100 -> -16.50 | M35: =(K35+L35)/F35 -> -4.39% | N35: Unsuccessful | O35: 2023-03-15 | R35: H
A36: 2 | B36: 2023-03-01 | D36: AMARAJABAT | E36: Buy | F36: 561 | G36: 545 | H36: 576.5 | I36: 585-595 | J36: Profit of Rs.15.5/- | K36: =H36-F36 -> 15.5 | L36: =(F36*-0.7)/100 -> -3.93 | M36: =(K36+L36)/F36 -> 2.06% | N36: Successful | O36: 2023-03-02 | R36: H
A37: 3 | B37: 2023-03-01 | D37: VTL | E37: Buy | F37: 310 | G37: 300 | H37: 318.5 | I37: 325-330 | J37: Profit of Rs.8.5/- | K37: =H37-F37 -> 8.5 | L37: =(F37*-0.7)/100 -> -2.17 | M37: =(K37+L37)/F37 -> 2.04% | N37: Successful | O37: 2023-03-06 | R37: N
A38: 4 | B38: 2023-03-01 | D38: TECHM | E38: Buy | F38: 1110 | G38: 1078 | H38: 1063.5 | I38: 1150-1170 | J38: Loss of Rs.46.5/- | K38: =H38-F38 -> -46.5 | L38: =(F38*-0.7)/100 -> -7.77 | M38: =(K38+L38)/F38 -> -4.89% | N38: Unsuccessful | O38: 2023-03-09 | R38: H
A39: 5 | B39: 2023-03-03 | D39: M&M | E39: Buy | F39: 1266 | G39: 1230 | H39: 1230 | I39: 1320-1350 | J39: Loss of Rs.36/- | K39: =H39-F39 -> -36 | L39: =(F39*-0.7)/100 -> -8.86 | M39: =(K39+L39)/F39 -> -3.54% | N39: Unsuccessful | O39: 2023-03-10 | R39: H
A40: 6 | B40: 2023-03-03 | D40: TATACONSUM | E40: Buy | F40: 707-713 | G40: 689 | I40: 740-750 | J40: Open | R40: H
A41: 7 | B41: 2023-03-06 | D41: STARHEALTH | E41: Buy | F41: 582 | G41: 566 | H41: 560 | I41: 600-615 | J41: Loss of Rs.22/- | K41: =H41-F41 -> -22 | L41: =(F41*-0.7)/100 -> -4.07 | M41: =(K41+L41)/F41 -> -4.48% | N41: Unsuccessful | O41: 2023-03-13 | R41: N
A42: 8 | B42: 2023-03-15 | D42: M&M | E42: Buy | F42: 1160-1170 | G42: 1137 | I42: 1200-1220 | J42: Open
A43: 9 | B43: 2023-03-16 | D43: VTL | E43: Buy | F43: 298-300 | G43: 290 | I43: 315-320 | J43: Open
A44: 10
A45: 11
A46: 12
A47: CLBS = Closing Basis *** | H47: *
A48: Dividend adjusted <> | F48: Reinitiated $
F49: Revised stoploss #
A51: Master Trade High Risk
A52: Sr.no | B52: Date | D52: Company | E52: Rec | F52: Rec Price | G52: Stop Loss | H52: Call Closed At | I52: Target | J52: Remark | K52: Profit / Loss per share | L52: All charges | M52: Gain / Loss per Lot | N52: Lot | O52: Status | P52: Closed Date
A53: 1 | B53: 2023-02-21 | D53: IGL MAR FUT | E53: Buy | F53: 442.5 | G53: 432 | H53: 432 | I53: 455-463 | J53: Loss of Rs.10.50/- | K53: =H53-F53 -> -10.5 | L53: 100.00 | M53: =(K53*N53)-100 -> -14275.0 | N53: 1350 | O53: Unsuccessful | P53: 2023-03-03 | R53: N
A54: 2 | B54: 2023-02-22 | D54: BATAINDIA MAR FUT | E54: Buy | F54: 1420-1425 | G54: 1380 | I54: 1470-1480 | J54: Open | R54: H
A55: 3 | B55: 2023-03-01 | D55: LT MAR FUT | E55: Buy | F55: 2130 | G55: 2090 | H55: 2162 | I55: 2170-2200 | J55: Profit of Rs.32/- | K55: =H55-F55 -> 32 | L55: 100.00 | M55: =(K55*N55)-100 -> 9500.0 | N55: 300 | O55: Successful | P55: 2023-03-03 | R55: H
A56: 4 | B56: 2023-03-01 | D56: BHARTIARTL MAR FUT | E56: Buy | F56: 753 | G56: 739 | H56: 762.5 | I56: 770-780 | J56: Profit of Rs.9.50/- | K56: =H56-F56 -> 9.5 | L56: 100.00 | M56: =(K56*N56)-100 -> 8925.0 | N56: 950 | O56: Successful | P56: 2023-03-03 | R56: H
A57: 5 | B57: 2023-03-02 | D57: SIEMENS MAR FUT | E57: Buy | F57: 3202.5 | G57: 3155 | H57: 3155 | I57: 3260-3290 | J57: Loss of Rs.47.5/- | K57: =H57-F57 -> -47.5 | L57: 100.00 | M57: =(K57*N57)-100 -> -13162.5 | N57: 275 | O57: Unsuccessful | P57: 2023-03-02 | R57: N
A58: 6 | B58: 2023-03-10 | D58: RELIANCE MAR FUT | E58: Buy | F58: 2340 | G58: 2290 | H58: 2290 | I58: 2390-2420 | J58: Loss of Rs.50/- | K58: =H58-F58 -> -50 | L58: 100.00 | M58: =(K58*N58)-100 -> -12600.0 | N58: 250 | O58: Unsuccessful | P58: 2023-03-13
A59: 7 | B59: 2023-03-14 | D59: LUPIN MAR FUT | E59: Buy | F59: 659 | G59: 645 | H59: 669.5 | I59: 680-690 | J59: Profit of Rs.10.50/- | K59: 10.5 | L59: 100.00 | M59: 8825.0 | N59: 850 | O59: Successful | P59: 2023-03-16
A60: 8 | B60: 2023-03-14 | D60: NIFTY MAR FUT | E60: Buy | F60: 17140-17160 | G60: 16880 | I60: 17400-17500 | J60: Open
D61: NIFTY 17400 CE 29 MAR | E61: Sell | F61: 100-110
A62: 9 | B62: 2023-03-14 | D62: ONGC MAR FUT | E62: Buy | F62: 156 | G62: 152.75 | H62: 152.75 | I62: 160-162 | J62: Loss of Rs.3.25/- | K62: =H62-F62 -> -3.25 | L62: 100.00 | M62: =(K62*N62)-100 -> -12612.5 | N62: 3850 | O62: Unsuccessful | P62: 2023-03-15
A63: 10 | B63: 2023-03-15 | D63: MCDOWELL-N MAR FUT | E63: Buy | F63: 771-773 | G63: 752 | I63: 795-805 | J63: Open
A64: 11 | B64: 2023-03-15 | D64: MPHASIS MAR FUT | E64: Buy | F64: 1900-1910 | G64: 1845 | I64: 1980-2020 | J64: Open
A68: Master Trade Medium Risk
A69: Sr.no | B69: Date | D69: Company | E69: Rec | F69: Rec Price | G69: Stop Loss | H69: Call Closed At | I69: Target | J69: Remark | K69: Profit/ Loss per lot | L69: All charges | M69: Gain / Loss per Lot | N69: Lot | O69: Status | P69: Closed Date
A70: 1 | B70: 2023-02-28 | D70: LT 2160 CE MAR | E70: Buy | F70: 38 | G70: 21 | H70: 45.5 | I70: 60-70 | J70: Profit of Rs.7.5/- | K70: =H70-F70 -> 7.5 | L70: 100.00 | M70: =(K70*N70)-100 -> 2150.0 | N70: 300 | O70: Successful | P70: 2023-03-02 | R70: N
A71: 2 | B71: 2023-02-28 | D71: RELIANCE 2400 CE MAR | E71: Buy | F71: 38-40 | J71: Open | R71: H
D72: RELIANCE 2460 CE MAR | E72: Sell | F72: 19-21
A73: 3 | B73: 2023-02-28 | D73: ACC 1900 CE MAR | E73: Buy | F73: 22 | H73: 28.5 | I73: 50-60 | J73: Profit of Rs.6.5/- | K73: =H73-F73 -> 6.5 | L73: 100.00 | M73: =(K73*N73)-100 -> 1525.0 | N73: 250 | O73: Successful | P73: 2023-03-01 | R73: H
A74: 4 | B74: 2023-03-01 | D74: ACC 1900 CE MAR | E74: Buy | F74: 20.5 | H74: 27.5 | I74: 50-60 | J74: Profit of Rs.7/- | K74: =H74-F74 -> 7 | L74: 100.00 | M74: =(K74*N74)-100 -> 1650.0 | N74: 250 | O74: Successful | P74: 2023-03-02 | R74: H
A75: 5 | B75: 2023-03-01 | D75: NIFTY 17400 CE 2-MAR | E75: Buy | F75: 71 | G75: 40 | H75: 91 | I75: 110-140 | J75: Profit of Rs.20/- | K75: =H75-F75 -> 20 | L75: 100.00 | M75: =(K75*N75)-100 -> 900.0 | N75: 50 | O75: Successful | P75: 2023-03-01 | R75: H
A76: 6 | B76: 2023-03-02 | D76: NIFTY 17400 CE 2-MAR | E76: Buy | F76: 19 | G76: 0 | H76: 0 | I76: 50-60 | J76: Loss of Rs.19/- | K76: =H76-F76 -> -19 | L76: 100.00 | M76: =(K76*N76)-100 -> -1050.0 | N76: 50 | O76: Unsuccessful | P76: 2023-03-02 | R76: N
A77: 7 | B77: 2023-03-02 | D77: BANKNIFTY 40400 CE 2-MAR | E77: Buy | F77: 65 | G77: 0 | H77: 95 | I77: 150-200 | J77: Profit of Rs.30/- | K77: 30 | L77: 100.00 | M77: 650.0 | N77: 25 | O77: Successful | P77: 2023-03-02 | R77: H
A78: 8 | B78: 2023-03-03 | D78: POLYCAB 3200 CE MAR | E78: Sell | F78: 43 | G78: 64 | H78: 27 | I78: 20.0-5 | J78: Profit of Rs.16/- | K78: =F78-H78 -> 16 | L78: 100.00 | M78: 4700.0 | N78: 300 | O78: Successful | P78: 2023-03-10 | R78: H
A79: 9 | B79: 2023-03-06 | D79: NIFTY 18000 CE 29-MAR | E79: Sell | F79: 97.5 | G79: 140 | H79: 67.5 | I79: 40-5 | J79: Profit of Rs.30/- | K79: =F79-H79 -> 30 | L79: 100.00 | M79: =(K79*N79)-100 -> 1400.0 | N79: 50 | O79: Successful | P79: 2023-03-08 | R79: H
A80: 10 | B80: 2023-03-06 | D80: NIFTY 17750 PE 9-MAR | E80: Buy | F80: 57 | G80: 18 | H80: 80 | I80: 100-130 | J80: Profit of Rs.23/- | K80: =H80-F80 -> 23 | L80: 100.00 | M80: =(K80*N80)-100 -> 1050.0 | N80: 50 | O80: Successful | P80: 2023-03-06 | R80: N
A81: 11 | B81: 2023-03-08 | D81: IGL 460 CE MAR | E81: Buy | F81: 10.5 | G81: 7 | H81: 6 | I81: 16-18 | J81: Profit of Rs.4.50/- | K81: =H81-F81 -> -4.5 | L81: 100.00 | M81: =(K81*N81)-100 -> -6287.5 | N81: 1375 | O81: Unsuccessful | P81: 2023-03-10
A82: 12 | B82: 2023-03-08 | D82: BATAINDIA 1420 CE MAR | E82: Buy | F82: 29 | G82: 13 | H82: 37.5 | I82: 45-50 | J82: Profit of Rs.8.5/- | K82: =H82-F82 -> 8.5 | L82: 100.00 | M82: =(K82*N82)-100 -> 2237.5 | N82: 275 | O82: Successful | P82: 2023-03-08
A83: 13 | B83: 2023-03-08 | D83: NIFTY 18000 CE 29-MAR | E83: Sell | F83: 94 | G83: 140 | H83: 73 | I83: 1.00 | J83: Profit of Rs.21/- | K83: =F83-H83 -> 21 | L83: 100.00 | M83: 950.0 | N83: 50 | O83: Successful | P83: 2023-03-09
A84: 14 | B84: 2023-03-09 | D84: BANKNIFTY 41500 CE 9-MAR | E84: Buy | F84: 65 | H84: 125 | I84: 150-200 | J84: Profit of Rs.60/- | K84: =H84-F84 -> 60 | L84: 100.00 | M84: 1400.0 | N84: 25 | O84: Successful | P84: 2023-03-09
A85: 15 | B85: 2023-03-09 | D85: RELIANCE 2380 CE MAR | E85: Buy | F85: 50 | G85: 30 | H85: 30 | I85: 80-90 | J85: Loss of Rs.20/- | K85: -20 | L85: 100.00 | M85: -5100.0 | N85: 250 | O85: Unsuccessful | P85: 2023-03-10
A86: 16 | B86: 2023-03-09 | D86: NIFTY 17650 CE 9-MAR | E86: Buy | F86: 45 | G86: 9 | H86: 67 | I86: 90-110 | J86: Profit of Rs.22/- | K86: =H86-F86 -> 22 | L86: 100.00 | M86: =(K86*N86)-100 -> 1000.0 | N86: 50 | O86: Successful | P86: 2023-03-09
A87: 17 | B87: 2023-03-09 | D87: BATAINDIA 1440 CE MAR | E87: Buy | F87: 27-28 | G87: 13 | I87: 45-60 | J87: Open
A88: 18 | B88: 2023-03-09 | D88: BANKNIFTY 41400 CE 9-MAR | E88: Buy | F88: 45 | G88: 0 | H88: 0 | I88: 80-100 | J88: Loss of Rs.45/- | K88: =H88-F88 -> -45 | L88: 100.00 | M88: =(K88*N88)-100 -> -1225.0 | N88: 25 | O88: Unsuccessful | P88: 2023-03-09
A89: 19 | B89: 2023-03-10 | D89: NIFTY 17500 CE 16-MAR | E89: Buy | F89: 62.5 | G89: 28 | H89: 64 | I89: 90-110 | J89: Profit of Rs.1.5/- | K89: 1.5 | L89: 100.00 | M89: -25.0 | N89: 50 | O89: Neutral | P89: 2023-03-10
A90: 20 | B90: 2023-03-10 | D90: LT 2160 CE MAR | E90: Buy | F90: 39 | G90: 21 | H90: 48.5 | I90: 60-75 | J90: Profit of Rs.9.5/- | K90: =H90-F90 -> 9.5 | L90: 100.00 | M90: =(K90*N90)-100 -> 2750.0 | N90: 300 | O90: Successful | P90: 2023-03-13
A91: 21 | B91: 2023-03-10 | D91: MARUTI 8600 CE MAR | E91: Buy | F91: 138 | G91: 90 | H91: 163.5 | I91: 180-220 | J91: Profit of Rs.25.5/- | K91: =H91-F91 -> 25.5 | L91: 100.00 | M91: =(K91*N91)-100 -> 2450.0 | N91: 100 | O91: Successful | P91: 2023-03-10
A92: 22 | B92: 2023-03-10 | D92: MARUTI 8600 CE MAR | E92: Buy | F92: 131 | G92: 80 | H92: 154 | I92: 170-200 | J92: Profit of Rs.23/- | K92: =H92-F92 -> 23 | L92: 100.00 | M92: =(K92*N92)-100 -> 2200.0 | N92: 100 | O92: Successful | P92: 2023-03-10
A93: 23 | B93: 2023-03-13 | D93: LALPATHLAB 1800 PE MAR | E93: Buy | F93: 32 | G93: 14 | H93: 52 | I93: 50-65 | J93: Profit of Rs.23/- | K93: =H93-F93 -> 20 | L93: 100.00 | M93: =(K93*N93)-100 -> 4900.0 | N93: 250 | O93: Successful | P93: 2023-03-13
A94: 24 | B94: 2023-03-13 | D94: TECHM 1180 CE 29-MAR | E94: Sell | F94: 16 | G94: 25 | H94: 10 | I94: 1.00 | J94: Profit of Rs.6/- | K94: =F94-H94 -> 6 | L94: 100.00 | M94: 3500.0 | N94: 600 | O94: Successful | P94: 2023-03-13
A95: 25 | B95: 2023-03-13 | D95: LT 2160 CE MAR | E95: Buy | F95: 41 | G95: 23 | H95: 48.5 | I95: 60-75 | J95: Profit of Rs.7.5/- | K95: =H95-F95 -> 7.5 | L95: 100.00 | M95: 2150.0 | N95: 300 | O95: Successful | P95: 2023-03-14
A96: 26 | B96: 2023-03-13 | D96: NIFTY 17500 CE 16-MAR | E96: Buy | F96: 38 | G96: 8 | H96: 9.5 | I96: 80-100 | J96: Loss of Rs.28.5/- | K96: -28.5 | L96: 100.00 | M96: -2950.0 | N96: 100 | O96: Unsuccessful | P96: 2023-03-14
A97: 27 | B97: 2023-03-13 | D97: ULTRACEMCO 7200 CE MAR | E97: Buy | F97: 128 | G97: 90 | H97: 90 | I97: 170-200 | J97: Loss of Rs.38/- | K97: =H97-F97 -> -38 | L97: 100.00 | M97: =(K97*N97)-100 -> -3900.0 | N97: 100 | O97: Unsuccessful | P97: 2023-03-14
A98: 28 | B98: 2023-03-13 | D98: BANKNIFTY 40100 CE 16-MAR | E98: Buy | F98: 250 | G98: 130 | H98: 130 | I98: 400-500 | J98: Loss of Rs.120/- | K98: =H98-F98 -> -120 | L98: 100.00 | M98: =(K98*N98)-100 -> -3100.0 | N98: 25 | O98: Unsuccessful | P98: 2023-03-13
A99: 29 | B99: 2023-03-14 | D99: LT 2160 CE MAR | E99: Buy | F99: 39 | G99: 21 | H99: 49 | I99: 60-75 | J99: Profit of Rs.10/- | K99: 10 | L99: 100.00 | M99: 2900.0 | N99: 300 | O99: Successful | P99: 2023-03-15
A100: 30 | B100: 2023-03-14 | D100: MARUTI 8500 CE MAR | E100: Buy | F100: 145 | G100: 95 | H100: 165 | I100: 200-240 | J100: Profit of Rs.20/- | K100: =H100-F100 -> 20 | L100: 100.00 | M100: =(K100*N100)-100 -> 1900.0 | N100: 100 | O100: Successful | P100: 2023-03-14
A101: 31 | B101: 2023-03-14 | D101: MARUTI 8500 CE MAR | E101: Buy | F101: 145 | G101: 95 | H101: 163 | I101: 200-240 | J101: Profit of Rs.18/- | K101: 18 | L101: 100.00 | M101: 1700.0 | N101: 100 | O101: Successful | P101: 2023-03-14
A102: 32 | B102: 2023-03-14 | D102: BANKNIFTY 39600 CE 16 MAR | E102: Buy | F102: 285 | G102: 150 | H102: 425 | I102: 500.00 | J102: Profit of Rs.140/- | K102: 140 | L102: 100.00 | M102: 3400.0 | N102: 25 | O102: Successful | P102: 2023-03-15
A103: 33 | B103: 2023-03-15 | D103: BANKNIFTY 39500 CE 16 MAR | E103: Buy | F103: 260 | G103: 130 | H103: 315 | I103: 400-500 | J103: Profit of Rs.55/- | K103: =H103-F103 -> 55 | L103: 100.00 | M103: =(K103*N103)-100 -> 1275.0 | N103: 25 | O103: Successful | P103: 2023-03-15
A104: 34 | B104: 2023-03-15 | D104: M&M 1180 CE MAR | E104: Buy | F104: 19.5 | G104: 13 | H104: 23.5 | I104: 30-35 | J104: Profit of Rs.4/- | K104: 4 | L104: 100.00 | M104: 2700.0 | N104: 700 | O104: Successful | P104: 2023-03-15
A105: 35 | B105: 2023-03-15 | D105: BANKNIFTY 39500 CE 16 MAR | E105: Buy | F105: 235 | G105: 120 | H105: 120 | I105: 400-500 | J105: Loss of Rs.115/- | K105: =H105-F105 -> -115 | L105: 100.00 | M105: =(K105*N105)-100 -> -2975.0 | N105: 25 | O105: Unsuccessful | P105: 2023-03-15
A106: 36 | B106: 2023-03-16 | D106: LT 2160 CE MAR | E106: Buy | F106: 30 | G106: 13 | H106: 37.5 | I106: 55-70 | J106: Profit of Rs.7.5/- | K106: =H106-F106 -> 7.5 | L106: 100.00 | M106: 2150.0 | N106: 300 | O106: Successful | P106: 2023-03-16
A107: 37 | B107: 2023-03-16 | D107: NIFTY 16950 CE 16-MAR | E107: Buy | F107: 26 | G107: 0 | H107: 46 | I107: 50-70 | J107: Profit of Rs.20/- | K107: 20 | L107: 100.00 | M107: =(K107*N107)-100 -> 900.0 | N107: 50 | O107: Successful | P107: 2023-03-16
A109: Techno -Funda (positional)
A110: Sr.no | B110: Date | D110: Company | E110: Rec | F110: Rec Price | G110: Stop Loss*** | H110: Call Closed At | I110: Target | J110: Remark | K110: Profit / Loss per Share/Lot | L110: All charges | M110: Net Gain / Loss % | N110: Status | O110: Closed Date | P110: Market Closing Price
A111: 1 | B111: 2022-10-06 | D111: AMBIKCO | E111: Buy | F111: 1420-1620 | G111: 1220 | I111: 2000-2300 | J111: Open | R111: H
A113: CLBS = Closing Basis *** | F113: Reinitiated $
A114: Dividend adjusted <> | F114: Revised stoploss # | H114: .................
B118: Investment Idea
A119: Sr.no | B119: Date | D119: Company | E119: Rec | F119: Rec Price | G119: Point of Review | H119: Close Rate | I119: Target | J119: Remark | K119: Profit / Loss per Share | L119: Gain / Loss % | M119: Status | N119: Closed Date
A120: 1 | B120: 2013-11-01 | D120: L&T Finance Holding | E120: Accu | F120: 82.00 | G120: - | H120: 100 | I120: 100.00 | J120: Target Achieved | K120: =H120-F120 -> 18.00 | L120: =K120/F120 -> 21.95% | M120: Successful | N120: 2016-10-14
A121: 2 | B121: 2014-06-04 | D121: Finolex Inds | E121: Buy | F121: 257.00 | G121: - | H121: 300 | I121: 300.00 | J121: Target Achieved | K121: 43.00 | L121: 16.73% | M121: Successful | N121: 2014-07-02
A122: 3 | B122: 2014-07-08 | D122: JK Cement | E122: Buy | F122: 393.00 | G122: - | H122: 468 | I122: 468.00 | J122: Target Achieved | K122: 75.00 | L122: 19.08% | M122: Successful | N122: 2014-08-12
A123: 4 | B123: 2014-08-06 | D123: Finolex Cables | E123: Buy | F123: 205.00 | G123: - | H123: 275 | I123: 250.00 | J123: Target Achieved | K123: 70.00 | L123: 34.15% | M123: Successful | N123: 2014-11-19
A124: 5 | B124: 2014-09-04 | D124: Exide Inds | E124: Buy | F124: 162.00 | G124: - | H124: 190 | I124: 190.00 | J124: Target Achieved | K124: 28.00 | L124: 17.28% | M124: Successful | N124: 2015-01-02
A125: 6 | B125: 2014-09-04 | D125: Deepak Nitrite | E125: Buy | F125: 75.00 | G125: - | H125: 91.5 | I125: 95-100 | J125: Profit of Rs.16.50/- | K125: 16.50 | L125: 22.00% | M125: Successful | N125: 2014-11-11
A126: 7 | B126: 2014-10-01 | D126: Mercks | E126: Buy | F126: 850.00 | G126: - | H126: 982.5 | I126: 1050.00 | J126: Profit of Rs.132.50/- | K126: 132.50 | L126: 15.59% | M126: Successful | N126: 2015-02-04
A127: 8 | B127: 2014-10-01 | D127: Grindwell Norton | E127: Buy | F127: 475.00 | G127: - | H127: 515 | I127: 600.00 | J127: Profit of Rs.40/- | K127: 40.00 | L127: 8.42% | M127: Successful | N127: 2014-10-27
A128: 9 | B128: 2014-10-01 | D128: Snowman Logistics | E128: Buy | F128: 86.00 | G128: - | H128: 99 | I128: 140.00 | J128: Profit of Rs.13.00/- | K128: 13.00 | L128: 15.12% | M128: Successful | N128: 2014-10-27
A129: 10 | B129: 2014-10-14 | D129: Birla Corp | E129: Buy | F129: 496.60 | G129: - | H129: 621 | I129: 580.00 | J129: Target Achieved | K129: 124.40 | L129: 25.05% | M129: Successful | N129: 2016-08-23
A130: 11 | B130: 2014-10-14 | D130: Ultratech Cem | E130: Buy | F130: 2481.90 | G130: - | H130: 2840 | I130: 2870.00 | J130: Profit of Rs.358.10/- | K130: 358.10 | L130: 14.43% | M130: Successful | N130: 2015-01-13
A131: 12 | B131: 2014-10-16 | D131: Sintex Inds | E131: Buy | F131: 84.50 | G131: - | H131: 93 | I131: 110.00 | J131: Profit of Rs.8.50/- | K131: 8.50 | L131: 10.06% | M131: Successful | N131: 2014-10-27
A132: 13 | B132: 2014-10-16 | D132: HSIL | E132: Buy | F132: 401.00 | G132: - | H132: 428 | I132: 450.00 | J132: Profit of Rs.27.00/- | K132: 27.00 | L132: 6.73% | M132: Successful | N132: 2015-01-16
A133: 14 | B133: 2014-10-16 | D133: Eveready Inds | E133: Buy | F133: 101.00 | G133: - | H133: 112 | I133: 120.00 | J133: Profit of Rs.11.00/- | K133: 11.00 | L133: 10.89% | M133: Successful | N133: 2014-10-27
A134: 15 | B134: 2014-11-11 | D134: Pennar Inds | E134: Buy | F134: 59.00 | G134: - | H134: 76 | I134: 76.00 | J134: Target Achieved | K134: 17.00 | L134: 28.81% | M134: Successful | N134: 2017-10-24
A135: 16 | B135: 2014-11-11 | D135: Snowman Logistics | E135: Buy | F135: 99.00 | G135: - | H135: 120 | I135: 120.00 | J135: Profit of Rs.21/- | K135: 21.00 | L135: 21.21% | M135: Successful | N135: 2014-11-17
A136: 17 | B136: 2014-11-13 | D136: Dharamsi Morarji Chem | E136: Buy | F136: 22.00 | G136: - | H136: 33.55 | I136: 32.00 | J136: Profit of Rs 11.55/- | K136: 11.55 | L136: 52.50% | M136: Successful | N136: 2015-07-03
A137: 18 | B137: 2014-12-03 | D137: Tatachem | E137: Buy | F137: 440.00 | G137: - | H137: 520 | I137: 520.00 | J137: Profit of Rs 80.00/- | K137: 80.00 | L137: 18.18% | M137: Successful | N137: 2015-07-23
A138: 19 | B138: 2014-12-03 | D138: Advanta | E138: Buy | F138: 360.00 | G138: - | H138: 427 | I138: 425.00 | J138: Profit of Rs.67.00/- | K138: 67.00 | L138: 18.61% | M138: Successful | N138: 2015-02-23
A139: 20 | B139: 2015-01-08 | D139: GDL | E139: Buy | F139: 360.00 | G139: - | H139: 455 | I139: 420.00 | J139: Profit of Rs.95.00/- | K139: 95.00 | L139: 26.39% | M139: Successful | N139: 2015-01-20
A140: 21 | B140: 2015-01-08 | D140: NRB Bearing | E140: Buy | F140: 130.00 | H140: 175.5 | I140: 165.00 | J140: Profit of Rs 45.50/- | K140: 45.50 | L140: 35.00% | M140: Successful | N140: 2017-12-19
A141: 22 | B141: 2015-02-05 | D141: GSFC | E141: Accu | F141: 98.00 | H141: 120 | I141: 120.00 | J141: Target Achieved | K141: 22.00 | L141: 22.45% | M141: Successful | N141: 2017-01-18
A142: 23 | B142: 2015-02-05 | D142: Sundrmfast | E142: Accu | F142: 196.00 | H142: 262 | I142: 255.00 | J142: Target Achieved | K142: 66.00 | L142: 33.67% | M142: Successful | N142: 2016-08-17
A143: 24 | B143: 2015-03-04 | D143: GPPL | E143: Accu | F143: 235 | H143: 77.00 | I143: 280-285 | J143: Loss of Rs.158/- | K143: -158.00 | L143: -67.23% | M143: Unsuccessful | N143: 2019-02-26
A144: 25 | B144: 2015-03-04 | D144: ORIENTCEM | E144: Accu | F144: 185.00 | H144: 224 | I144: 220-225 | J144: Target Achieved | K144: 39.00 | L144: 21.08% | M144: Successful | N144: 2016-10-04
A145: 26 | B145: 2015-03-27 | D145: PFS | E145: Accu | F145: 49.5 | H145: 15.85 | I145: 67.00 | J145: Loss of Rs.33.65/- | K145: -33.65 | L145: -68% | M145: Unsuccessful | N145: 2019-06-11
A146: 27 | B146: 2015-03-30 | D146: Walchandnagar Ind Ltd | E146: Accu | F146: 183.50 | H146: 219 | I146: 218.00 | J146: Profit of Rs.35.50/- | K146: 35.50 | L146: 19.35% | M146: Successful | N146: 2015-04-09
A147: 28 | B147: 2015-04-20 | D147: Kalpataru Power Transmission Ltd | E147: Accu | F147: =(227+237)/2 -> 232.00 | H147: 298 | I147: 298.00 | J147: Target Achieved | K147: 66.00 | L147: 28.45% | M147: Successful | N147: 2017-03-29
A148: 29 | B148: 2015-05-04 | D148: Mastek Ltd | E148: Buy | F148: 385.00 | H148: =212.5+331 -> 543.5 | I148: 510.00 | J148: Profit of Rs 158.50/- | K148: 158.50 | L148: 41.17% | M148: Successful | N148: 2015-08-19
A149: 30 | B149: 2015-05-04 | D149: Suprajit Eng | E149: Buy | F149: 115.50 | H149: 146 | I149: 142.00 | J149: Profit of Rs 30.50/- | K149: 30.50 | L149: 26.41% | M149: Successful | N149: 2015-07-17
A150: 31 | B150: 2015-05-27 | D150: TCI | E150: Buy | F150: 237.50 | H150: 279.5 | I150: 278.00 | J150: Target Achieved | K150: 42.00 | L150: 17.68% | M150: Successful | N150: 2015-08-06
A151: 32 | B151: 2015-06-19 | D151: HSIL | E151: Accu | F151: 340.00 | H151: 448 | I151: 448.00 | J151: Target Achieved | K151: 108.00 | L151: 31.76% | M151: Successful | N151: 2017-10-10
A152: 33 | B152: 2015-07-06 | D152: Capital First | E152: Accu | F152: 390.00 | H152: 460 | I152: 460.00 | J152: Target Achieved | K152: 70.00 | L152: 17.95% | M152: Successful | N152: 2016-04-18
A153: 34 | B153: 2015-07-10 | D153: Dolphin OffShore | E153: Accu | F153: 122.5 | H153: 61.00 | I153: 172.00 | J153: Loss of Rs.61.50/- | K153: -61.50 | L153: -50.20% | M153: Unsuccessful | N153: 2018-08-21
A154: 35 | B154: 2015-08-03 | D154: Allcargo logistics | E154: Accu | F154: 297.50 | H154: 350 | I154: 360.00 | J154: Profit of Rs 52.50/- | K154: 52.50 | L154: 17.65% | M154: Successful | N154: 2015-08-16
A155: 36 | B155: 2015-08-03 | D155: Camline Fine | E155: Accu | F155: 115.50 | H155: 149 | I155: 140.00 | J155: Profit of Rs 33.50/- | K155: 33.50 | L155: 29.00% | M155: Successful | N155: 2017-01-05
A156: 37 | B156: 2015-09-04 | D156: TCI | E156: Accu | F156: 226.00 | H156: 292 | I156: 292.00 | J156: Target Achieved | K156: 66.00 | L156: 29.20% | M156: Successful | N156: 2015-10-09
A157: 38 | B157: 2015-09-07 | D157: Kalpataru Power Transmission Ltd | E157: Accu | F157: 232.50 | H157: 312.5 | I157: 310.00 | J157: Target Achieved | K157: 80.00 | L157: 34.41% | M157: Successful | N157: 2017-03-29
A158: 39 | B158: 2015-09-21 | D158: LLOYD ELECTRIC & ENG LTD | E158: Accu | F158: 196.50 | H158: 238 | I158: 238.00 | J158: Target Achieved | K158: 41.50 | L158: 21.12% | M158: Successful | N158: 2015-10-14
A159: 40 | B159: 2015-09-24 | D159: L&T Finance Holding | E159: Accu | F159: 65.00 | H159: 82 | I159: 82.00 | J159: Target Achieved | K159: 17.00 | L159: 26.15% | M159: Successful | N159: 2016-07-27
A160: 41 | B160: 2015-10-14 | D160: KEC International ltd | E160: Accu | F160: 144.00 | H160: 182.5 | I160: 181.00 | J160: Target Achieved | K160: 38.50 | L160: 26.74% | M160: Successful | N160: 2017-03-23
A161: 42 | B161: 2015-10-14 | D161: Gruh Finance | E161: Accu | F161: 264.00 | H161: 311 | I161: 311.00 | J161: Target Achieved | K161: 47.00 | L161: 17.80% | M161: Successful | N161: 2016-08-22
A162: 43 | B162: 2015-11-10 | D162: Pidilitind | E162: Buy | F162: 549.50 | H162: 630 | I162: 630.00 | J162: Target Achieved | K162: 80.50 | L162: 14.65% | M162: Successful | N162: 2016-02-19
A163: 44 | B163: 2015-12-04 | D163: Zensar Technology | E163: Accu | F163: 1027.50 | H163: 1315 | I163: 1250.00 | J163: Target Achieved | K163: 287.50 | L163: 27.98% | M163: Successful | N163: 2018-05-24
A164: 45 | B164: 2015-12-29 | D164: Vinati Organics Ltd | E164: Accu | F164: 465.00 | H164: 540 | I164: 540.00 | J164: Target Achieved | K164: 75.00 | L164: 16.13% | M164: Successful | N164: 2016-06-09
A165: 46 | B165: 2016-01-11 | D165: GSFC | E165: Buy | F165: 81.00 | H165: 110 | I165: 110.00 | J165: Target Achieved | K165: 29.00 | L165: 35.80% | M165: Successful | N165: 2017-01-10
A166: 47 | B166: 2016-01-13 | D166: SSWL | E166: Buy | F166: 417.50 | H166: 547 | I166: 535.00 | J166: Target Achieved | K166: 129.50 | L166: 31.02% | M166: Successful | N166: 2016-07-27
A167: 48 | B167: 2016-02-08 | D167: Persistent System Ltd | E167: Accu | F167: 650.00 | H167: 800 | I167: 800.00 | J167: Target Achieved | K167: 150.00 | L167: 23.08% | M167: Successful | N167: 2018-02-23
A168: 49 | B168: 2016-03-04 | D168: UPL | E168: Accu | F168: 437.50 | H168: 504.5 | I168: 522.00 | J168: Profit of Rs.67/- | K168: 67.00 | L168: 15.31% | M168: Successful | N168: 2016-04-20
A169: 50 | B169: 2016-03-09 | D169: Ashoka Buildcon Ltd | E169: Accu | F169: 189.50 | H169: 218 | I169: 218.00 | J169: Target Achieved | K169: 28.50 | L169: 15.04% | M169: Successful | N169: 2017-10-26
A170: 51 | B170: 2016-04-11 | D170: PTC INDIA FIN SERV LTD | E170: Accu | F170: 36.5 | H170: 15.85 | I170: 60.00 | J170: Loss of Rs.20.65/- | K170: -20.65 | L170: -56.58% | M170: Unsuccessful | N170: 2019-06-11
A171: 52 | B171: 2016-04-12 | D171: CAMLINFINE $ | E171: Accu | F171: 93.00 | H171: 149 | I171: 140.00 | J171: Profit of Rs 56/- | K171: 56.00 | L171: 60.22% | M171: Successful | N171: 2017-01-05
A172: 53 | B172: 2016-04-12 | D172: Greaves Cotton Ltd. | E172: Accu | F172: 130.00 | H172: 150 | I172: 150-155 | J172: Target Achieved | K172: 20.00 | L172: 15.38% | M172: Successful | N172: 2016-07-13
A173: 54 | B173: 2016-04-13 | D173: DHFL | E173: Accu | F173: 196.00 | H173: 299 | I173: 299.00 | J173: Target Achieved | K173: 103.00 | L173: 52.55% | M173: Successful | N173: 2016-09-07
A174: 55 | B174: 2016-04-13 | D174: Magma | E174: Accu | F174: 88.00 | H174: 103 | I174: 103.00 | J174: Target Achieved | K174: 15.00 | L174: 17.05% | M174: Successful | N174: 2016-06-09
A175: 56 | B175: 2016-05-02 | D175: KEC International ltd $ | E175: Accu | F175: 127.50 | H175: 148 | I175: 148-150 | J175: Target Achieved | K175: =H175-F175 -> 20.50 | L175: =K175/F175 -> 16.08% | M175: Successful | N175: 2016-07-13
A176: 57 | B176: 2016-05-03 | D176: Mindtree | E176: Accu | F176: 675.00 | H176: 815 | I176: 790-800 | J176: Target Achieved | K176: =H176-F176 -> 140.00 | L176: =K176/F176 -> 20.74% | M176: Successful | N176: 2018-02-23
A177: 58 | B177: 2016-06-01 | D177: Atulauto | E177: Accu | F177: 500 | H177: 232.50 | I177: 565-570 | J177: Loss of Rs.267.50 /- | K177: =H177-F177 -> -267.50 | L177: =K177/F177 -> -53.50% | M177: Unsuccessful | N177: 2019-09-27
A178: 59 | B178: 2016-06-06 | D178: TRITURBINE | E178: Accu | F178: 110.00 | H178: 126.5 | I178: 125.00 | J178: Profit of Rs.16.50/- | K178: =H178-F178 -> 16.50 | L178: =K178/F178 -> 15.00% | M178: Successful | N178: 2016-07-01
A179: 60 | B179: 2016-06-17 | D179: Pennar Industries Ltd | E179: Accu | F179: 44.00 | H179: 69.5 | I179: 69.50 | J179: Profit of Rs.25.50/- | K179: =H179-F179 -> 25.50 | L179: =K179/F179 -> 57.95% | M179: Successful | N179: 2017-08-30
A180: 61 | B180: 2016-06-28 | D180: EVEREADY | E180: Accu | F180: 262.50 | H180: 340 | I180: 333.00 | J180: Profit of Rs.77.50/- | K180: 77.50 | L180: 29.52% | M180: Successful | N180: 2017-10-09
A181: 62 | B181: 2016-06-28 | D181: FIEMIND | E181: Accu | F181: 840.00 | H181: 1230 | I181: 1230.00 | J181: Target Achieved | K181: 390.00 | L181: 46.43% | M181: Successful | N181: 2016-10-06
A182: 63 | B182: 2016-07-05 | D182: Bajaj Corp Ltd | E182: Accu | F182: 395 | H182: =(468.5+342.5)/2 -> 405.50 | I182: 510.00 | J182: Profit of Rs.10.50/- | K182: =H182-F182 -> 10.50 | L182: =K182/F182 -> 3% | M182: Neutral | N182: 2019-05-21
A183: 64 | B183: 2016-08-02 | D183: GPPL $ | E183: Buy | F183: =169.5-12.8 -> 156.7 | H183: 77.00 | I183: 198-200 | J183: Loss of Rs.79.7/- | K183: -79.70 | L183: -50.86% | M183: Unsuccessful | N183: 2019-02-26
A184: 65 | B184: 2016-08-04 | D184: WONDERLA HOLIDAYS LTD | E184: Accu | F184: 400 | H184: 305.00 | I184: 475.00 | J184: Loss of Rs.95/- | K184: -95.00 | L184: -23.75% | M184: Unsuccessful | N184: 2019-05-21
A185: 66 | B185: 2016-08-11 | D185: CAMLINFINE | E185: Accu | F185: 86.50 | H185: 130 | I185: 130.00 | J185: Profit of Rs.43.50/- | K185: 43.50 | L185: 50.29% | M185: Successful | N185: 2017-12-22
A186: 67 | B186: 2016-08-18 | D186: GRANULES | E186: Accu | F186: 133.5 | H186: 126.50 | I186: 178.00 | J186: Exit | K186: -7.00 | L186: -5.24% | M186: Unsuccessful | N186: 2016-09-02
A187: 68 | B187: 2016-08-31 | D187: VA TECH WABAG | E187: Accu | F187: 560.00 | H187: 725 | I187: 725.00 | J187: Target Achieved | K187: 165.00 | L187: 29.46% | M187: Successful | N187: 2016-03-27
A188: 69 | B188: 2016-09-01 | D188: SKIPPER LIMITED | E188: Accu | F188: 160.50 | H188: 210 | I188: 210.00 | J188: Target Achieved | K188: 49.50 | L188: 30.84% | M188: Successful | N188: 2017-05-16
A189: 70 | B189: 2016-10-03 | D189: IFBIND | E189: Accu | F189: 430.00 | H189: 596 | I189: 575.00 | J189: Profit of Rs.166/- | K189: 166.00 | L189: 38.60% | M189: Successful | N189: 2017-02-03
A190: 71 | B190: 2016-10-14 | D190: ASIANTILES | E190: Accu | F190: 280.00 | H190: 345 | I190: 345.00 | J190: Target Achieved | K190: =H190-F190 -> 65.00 | L190: =K190/F190 -> 23.21% | M190: Successful | N190: 2017-03-20
A191: 72 | B191: 2016-10-14 | D191: DEEPIND | E191: Accu | F191: 245.00 | H191: 325.5 | I191: 330.00 | J191: Profit of Rs.80.5/- | K191: 80.50 | L191: =K191/F191 -> 32.86% | M191: Successful | N191: 2017-02-03
A192: 73 | B192: 2016-10-17 | D192: DCBBANK | E192: Accu | F192: 125.00 | H192: 160 | I192: 160.00 | J192: Target Achieved | K192: 35.00 | L192: 28.00% | M192: Successful | N192: 2017-03-09
A193: 74 | B193: 2016-10-17 | D193: ORIENTREF | E193: Accu | F193: 114.00 | H193: 145 | I193: 145.00 | J193: Target Achieved | K193: 31.00 | L193: =K193/F193 -> 27.19% | M193: Successful | N193: 2017-05-04
A194: 75 | B194: 2016-10-17 | D194: GANECOS | E194: Accu | F194: 212.00 | H194: 280 | I194: 276.00 | J194: Profit of Rs.68/- | K194: 68.00 | L194: =K194/F194 -> 32.08% | M194: Successful | N194: 2017-05-03
A195: 76 | B195: 2016-11-04 | D195: NBCC | E195: Accu | F195: 155.00 | H195: 210 | I195: 210.00 | J195: Profit of Rs.55/- | K195: 55.00 | L195: =K195/F195 -> 35.48% | M195: Successful | N195: 2017-07-28
A196: 77 | B196: 2016-12-06 | D196: PRECAM | E196: Accu | F196: 150.5 | H196: 72.50 | I196: 174.00 | J196: Loss of Rs.78/- | K196: -78.00 | L196: -51.83% | M196: Unsuccessful | N196: 2018-08-21
A197: 78 | B197: 2016-12-08 | D197: INFRATEL | E197: Accu | F197: 380.00 | H197: 478 | I197: 468.00 | J197: Target Achieved | K197: =H197-F197 -> 98.00 | L197: =K197/F197 -> 25.79% | M197: Successful | N197: 2017-10-17
A198: 79 | B198: 2016-12-30 | D198: GODREJPROP | E198: Accu | F198: 305.00 | H198: 375 | I198: 375.00 | J198: Target Achieved | K198: =H198-F198 -> 70.00 | L198: =K198/F198 -> 22.95% | M198: Successful | N198: 2017-02-02
A199: 80 | B199: 2017-01-04 | D199: DEEPAKNTR | E199: Accu | F199: 99.50 | H199: 158 | I199: 158.00 | J199: Target Achieved | K199: =H199-F199 -> 58.50 | L199: =K199/F199 -> 58.79% | M199: Successful | N199: 2017-06-12
A200: 81 | B200: 2017-01-04 | D200: DEEPAKNTR | E200: Accu | F200: 99.50 | H200: 158 | I200: 158.00 | J200: Target Achieved | K200: 58.50 | L200: 58.79% | M200: Successful | N200: 2017-06-12
A201: 82 | B201: 2017-02-20 | D201: RECLTD | E201: Accu | F201: 140.50 | H201: 220 | I201: 220.00 | J201: Target Achieved | K201: =H201-F201 -> 79.50 | L201: =K201/F201 -> 56.58% | M201: Successful | N201: 2017-05-09
A202: 83 | B202: 2017-02-20 | D202: SUBROS | E202: Accu | F202: 202.50 | H202: 234 | I202: 234.00 | J202: Target Achieved | K202: 31.50 | L202: 15.56% | M202: Successful | N202: 2017-04-11
A203: 84 | B203: 2017-03-24 | D203: VRLLOG | E203: Accu | F203: 300.50 | H203: 417.5 | I203: 420.00 | J203: Profit of Rs.117/- | K203: =H203-F203 -> 117.00 | L203: =K203/F203 -> 38.94% | M203: Successful | N203: 2017-12-01
A204: 85 | B204: 2017-03-24 | D204: FIEMIND | E204: Accu | F204: 850.00 | H204: 1042.5 | I204: 1023.00 | J204: Profit of Rs 192.50/- | K204: 192.50 | L204: 22.65% | M204: Successful | N204: 2017-04-05
A205: 86 | B205: 2017-04-05 | D205: RATNAMANI | E205: Accu | F205: 785.00 | H205: 930 | I205: 920.00 | J205: Profit of Rs.145/- | K205: =H205-F205 -> 145.00 | L205: =K205/F205 -> 18.47% | M205: Successful | N205: 2017-08-29
A206: 87 | B206: 2017-04-06 | D206: ZEEMEDIA | E206: Accu | F206: 40 | H206: 13.10 | I206: 60.00 | J206: Loss of Rs.26.9/- | K206: -26.90 | L206: -67.25% | M206: Unsuccessful | N206: 2018-02-07
A207: 88 | B207: 2017-04-12 | D207: DABUR | E207: Accu | F207: 289.50 | H207: 354 | I207: 360.00 | J207: Profit of Rs.64.5/- | K207: =H207-F207 -> 64.50 | L207: =K207/F207 -> 22.28% | M207: Successful | N207: 2017-11-01
A208: 89 | B208: 2017-04-20 | D208: KPRMILL | E208: Accu | F208: 700.00 | H208: 840 | I208: 840.00 | J208: Profit of Rs.140/- | K208: 140.00 | L208: 20.00% | M208: Successful | N208: 2017-06-07
A209: 90 | B209: 2017-06-01 | D209: ESSELPACK | E209: Accu | F209: 130.00 | H209: 144.25 | I209: 170.00 | J209: Profit of Rs.14.25/- | K209: 14.25 | L209: 10.96% | M209: Successful | N209: 2019-07-29
A210: 91 | B210: 2017-06-15 | D210: KEI | E210: Accu | F210: 214.50 | H210: 262 | I210: 262.00 | J210: Profit of Rs.47.5/- | K210: 47.50 | L210: 22.14% | M210: Successful | N210: 2017-08-30
A211: 92 | B211: 2017-07-17 | D211: MAYURUNIQ | E211: Accu | F211: 370.00 | H211: 447.5 | I211: 450.00 | J211: Target Achieved | K211: 77.50 | L211: 20.95% | M211: Successful | N211: 2017-10-27
A212: 93 | B212: 2017-07-27 | D212: RAMCOCEM | E212: Accu | F212: 657.50 | H212: 825 | I212: 820.00 | J212: Target Achieved | K212: 167.50 | L212: 25.48% | M212: Successful | N212: 2017-12-21
A213: 94 | B213: 2017-08-17 | D213: FINPIPE | E213: Accu | F213: 605.00 | H213: 750 | I213: 750.00 | J213: Profit of Rs.145/- | K213: 145.00 | L213: 23.97% | M213: Successful | N213: 2017-10-19
A214: 95 | B214: 2017-09-01 | D214: SHK | E214: Accu | F214: 255 | H214: 217.25 | I214: 320.00 | J214: Loss of Rs.37.75/- | K214: -37.75 | L214: -15% | M214: Unsuccessful | N214: 2019-07-15
A215: 96 | B215: 2017-09-19 | D215: SKIPPER | E215: Accu | F215: 215.00 | H215: 258 | I215: 258.00 | J215: Target Achieved | K215: 43.00 | L215: 20.00% | M215: Successful | N215: 2017-11-01
A216: 97 | B216: 2017-09-19 | D216: SKIPPER | E216: Accu | F216: 215.00 | H216: 258 | I216: 258.00 | J216: Target Achieved | K216: 43.00 | L216: 20.00% | M216: Successful | N216: 2017-11-01
A217: 98 | B217: 2017-09-20 | D217: CAMLINFINE$ | E217: Accu | F217: 75.00 | H217: 90 | I217: 90.00 | J217: Profit of Rs.15.00/- | K217: =H217-F217 -> 15.00 | L217: =K217/F217 -> 20.00% | M217: Successful | N217: 2017-10-11
A218: 99 | B218: 2017-10-03 | D218: GNA | E218: Accu | F218: 315.00 | H218: 392 | I218: 384.00 | J218: Profit of Rs.77/- | K218: 77.00 | L218: 24.44% | M218: Successful | N218: 2017-10-09
... 84 more rows
